Body Name,Body,Service label,Ser,Organisational Unit,Organisational Unit Code,Expenditure Category,Expenditure Code,Date (Posting Date),Transaction Number,Amount,Supplier Name,Supplier ID
Warrington Borough Council,http://statistics.data.gov.uk/id/local-authority/00EU,Neighbourhood & Community Services,NCS,Great Sankey Leisure Centre,51018,Snack Foods,410150,01/08/2011,1900059255,886.36,Paul Bentley Wholesale Ltd,101938
Warrington Borough Council,http://statistics.data.gov.uk/id/local-authority/00EU,Children & Young People,CHL,Child Disability,32212,CP-Domicil.External,440950,01/08/2011,1900059256,"3,371.13",Castlerock Care Services,105279
Warrington Borough Council,http://statistics.data.gov.uk/id/local-authority/00EU,Children & Young People,CHL,Child Disability,32212,CP-Domicil.External,440950,01/08/2011,1900059257,"3,945.40",Castlerock Care Services,105279
Warrington Borough Council,http://statistics.data.gov.uk/id/local-authority/00EU,Children & Young People,CHL,Child Disability,32212,CP-Domicil.External,440950,01/08/2011,1900059258,"2,611.80",Castlerock Care Services,105279
Warrington Borough Council,http://statistics.data.gov.uk/id/local-authority/00EU,Neighbourhood & Community Services,NCS,SLA - Voluntary Sector Grants,53930,SLA Debtors,560100,01/08/2011,1900059260,"2,000.00",Ethnic Over 50s Yoga Group,106123
Warrington Borough Council,http://statistics.data.gov.uk/id/local-authority/00EU,Neighbourhood & Community Services,NCS,Neighbourhood Enga,51305,Payment of Grants,470050,01/08/2011,1900059264,800,Warrington Town Fc,100345
Warrington Borough Council,http://statistics.data.gov.uk/id/local-authority/00EU,Children & Young People,CHL,Foster Allowances,31106,Fostering Allowance,550050,01/08/2011,1900059265,582.82,Redacted Personal Data,460493
Warrington Borough Council,http://statistics.data.gov.uk/id/local-authority/00EU,Children & Young People,CHL,Placement Services Team,31103,Hospitality,490050,01/08/2011,1900059266,713.7,Sandwich Heaven Ltd,106533
Warrington Borough Council,http://statistics.data.gov.uk/id/local-authority/00EU,People & Improvement,PIM,Organisational Change,20010,Consult.& Prof. Serv,440000,01/08/2011,1900059276,"1,800.00",Calbrig Consultancy Ltd,107731
Warrington Borough Council,http://statistics.data.gov.uk/id/local-authority/00EU,Environment & Regeneration,ENO,Housing Projects,82008,Works Contract Paymt,442500,01/08/2011,1900059278,"1,003.00",Cobbetts Llp,102496
Warrington Borough Council,http://statistics.data.gov.uk/id/local-authority/00EU,Neighbourhood & Community Services,NCS,The Recreation Centre,51008,Premises Maintenance Materials,250100,01/08/2011,1900059279,"1,124.00",Continental Sports Ltd,105338
Warrington Borough Council,http://statistics.data.gov.uk/id/local-authority/00EU,People & Improvement,PIM,Future Jobs Fund,22400,Payment of Grants,470050,01/08/2011,1900059281,700,Cri,440139
Warrington Borough Council,http://statistics.data.gov.uk/id/local-authority/00EU,Environment & Regeneration,ENO,Housing Projects,82008,Works Contract Paymt,442500,01/08/2011,1900059282,"2,500.00",Davis Langdon Llp,103123
Warrington Borough Council,http://statistics.data.gov.uk/id/local-authority/00EU,Environment & Regeneration,ENO,Housing Projects,82008,Contract Works,492550,01/08/2011,1900059284,"6,252.32",Golden Gates Housing Trust,101005
Warrington Borough Council,http://statistics.data.gov.uk/id/local-authority/00EU,Environment & Regeneration,ENO,Housing Projects,82008,Contract Works,492550,01/08/2011,1900059285,"38,165.42",Golden Gates Housing Trust,101005
Warrington Borough Council,http://statistics.data.gov.uk/id/local-authority/00EU,Environment & Regeneration,ENO,Housing Projects,82008,Contract Works,492550,01/08/2011,1900059286,"41,794.75",Golden Gates Housing Trust,101005
Warrington Borough Council,http://statistics.data.gov.uk/id/local-authority/00EU,Neighbourhood & Community Services,NCS,Head of Service LCH,51000,Other Advertising & Publicity,450050,01/08/2011,1900059292,999,Thomson Directories Ltd,105176
Warrington Borough Council,http://statistics.data.gov.uk/id/local-authority/00EU,Environment & Regeneration,ER1,Walton Estate,41430,Cleaning Materials,400450,01/08/2011,1900059299,"2,716.85",Concept Hygiene Limited,104629
Warrington Borough Council,http://statistics.data.gov.uk/id/local-authority/00EU,Environment & Regeneration,ER1,Walton Hall Catering,41433,ICT Comms - Line Usage,450300,01/08/2011,1900059300,"2,098.41",Chubb Fire and Security Ltd,105335
Warrington Borough Council,http://statistics.data.gov.uk/id/local-authority/00EU,Neighbourhood & Community Services,NCS,Care Purchase - Learning Disability,54450,Direct Payments,552000,01/08/2011,1900059302,"12,019.61",Redacted Personal Data,460091
Warrington Borough Council,http://statistics.data.gov.uk/id/local-authority/00EU,Neighbourhood & Community Services,NCS,Care Purchase - OP & OT Central,54420,Direct Payments,552000,01/08/2011,1900059303,"1,000.00",Redacted Personal Data,460301
Warrington Borough Council,http://statistics.data.gov.uk/id/local-authority/00EU,Neighbourhood & Community Services,NCS,Care Purchase - PD,54440,Direct Payments,552000,01/08/2011,1900059304,"6,006.07",Redacted Personal Data,460193
Warrington Borough Council,http://statistics.data.gov.uk/id/local-authority/00EU,Neighbourhood & Community Services,NCS,Care Purchase - Learning Disability,54450,CP-LongStayExternal,441150,02/08/2011,1900059311,"4,229.65",St Olaf Manor,103831
Warrington Borough Council,http://statistics.data.gov.uk/id/local-authority/00EU,Neighbourhood & Community Services,NCS,Care Purchase - OP & OT Central,54420,CP-LongStayExternal,441150,02/08/2011,1900059312,"2,059.29",Eton House Residential Home,106252
Warrington Borough Council,http://statistics.data.gov.uk/id/local-authority/00EU,Neighbourhood & Community Services,NCS,Care Purchase - Learning Disability,54450,CP-LongStayExternal,441150,02/08/2011,1900059313,"4,496.00",Autism Initiatives,104503
Warrington Borough Council,http://statistics.data.gov.uk/id/local-authority/00EU,Neighbourhood & Community Services,NCS,Care Purchase - Mental Health Team 1,54230,CP-Domicil.External,440950,02/08/2011,1900059317,"5,772.80",Independent Living Alliance,100726
Warrington Borough Council,http://statistics.data.gov.uk/id/local-authority/00EU,Neighbourhood & Community Services,NCS,Care Purchase - PD,54440,CP-Domicil.External,440950,02/08/2011,1900059317,"2,886.40",Independent Living Alliance,100726
Warrington Borough Council,http://statistics.data.gov.uk/id/local-authority/00EU,Neighbourhood & Community Services,NCS,Care Purchase - Mental Health Team 1,54230,Supporting People - External,441250,02/08/2011,1900059317,"2,800.00",Independent Living Alliance,100726
Warrington Borough Council,http://statistics.data.gov.uk/id/local-authority/00EU,Neighbourhood & Community Services,NCS,Care Purchase - PD,54440,Supporting People - External,441250,02/08/2011,1900059317,"1,400.00",Independent Living Alliance,100726
Warrington Borough Council,http://statistics.data.gov.uk/id/local-authority/00EU,Neighbourhood & Community Services,NCS,Care Purchase Budget,54490,Voids,515150,02/08/2011,1900059317,"8,572.80",Independent Living Alliance,100726
Warrington Borough Council,http://statistics.data.gov.uk/id/local-authority/00EU,Neighbourhood & Community Services,NCS,Care Purchase - Mental Health Team 1,54230,CP-Domicil.External,440950,02/08/2011,1900059318,"5,772.80",Independent Living Alliance,100726
Warrington Borough Council,http://statistics.data.gov.uk/id/local-authority/00EU,Neighbourhood & Community Services,NCS,Care Purchase - PD,54440,CP-Domicil.External,440950,02/08/2011,1900059318,"2,886.40",Independent Living Alliance,100726
Warrington Borough Council,http://statistics.data.gov.uk/id/local-authority/00EU,Neighbourhood & Community Services,NCS,Care Purchase - Mental Health Team 1,54230,Supporting People - External,441250,02/08/2011,1900059318,"2,800.00",Independent Living Alliance,100726
Warrington Borough Council,http://statistics.data.gov.uk/id/local-authority/00EU,Neighbourhood & Community Services,NCS,Care Purchase - PD,54440,Supporting People - External,441250,02/08/2011,1900059318,"1,400.00",Independent Living Alliance,100726
Warrington Borough Council,http://statistics.data.gov.uk/id/local-authority/00EU,Neighbourhood & Community Services,NCS,Care Purchase Budget,54490,Voids,515150,02/08/2011,1900059318,"8,572.80",Independent Living Alliance,100726
Warrington Borough Council,http://statistics.data.gov.uk/id/local-authority/00EU,Neighbourhood & Community Services,NCS,Care Purchase - Mental Health Team 1,54230,CP-Domicil.External,440950,02/08/2011,1900059319,"1,078.00",Independent Living Alliance,100726
Warrington Borough Council,http://statistics.data.gov.uk/id/local-authority/00EU,Neighbourhood & Community Services,NCS,Care Purchase - Mental Health Team 1,54230,CP-Domicil.External,440950,02/08/2011,1900059320,"1,078.00",Independent Living Alliance,100726
Warrington Borough Council,http://statistics.data.gov.uk/id/local-authority/00EU,Environment & Regeneration,ER0,Customer Contact Centre,52201,Ticket Master Charges,490450,02/08/2011,1900059323,"3,003.90",National Express Ltd,104957
Warrington Borough Council,http://statistics.data.gov.uk/id/local-authority/00EU,Neighbourhood & Community Services,NCS,Woolston Leisure Centre           (new h,51007,Response Maintenance,200000,02/08/2011,1900059324,526.4,Manchester Working Limited,105646
Warrington Borough Council,http://statistics.data.gov.uk/id/local-authority/00EU,Neighbourhood & Community Services,NCS,Broomfields Leisure Centre,51013,Response Maintenance,200000,02/08/2011,1900059324,595.35,Manchester Working Limited,105646
Warrington Borough Council,http://statistics.data.gov.uk/id/local-authority/00EU,Environment & Regeneration,ER0,GGL Joint Use (J Taylor),43312,Response Maintenance,200000,02/08/2011,1900059326,"6,328.00",Manchester Working Limited,105646
Warrington Borough Council,http://statistics.data.gov.uk/id/local-authority/00EU,Neighbourhood & Community Services,NCS,Great Sankey Leisure Centre,51018,Response Maintenance,200000,02/08/2011,1900059326,"7,427.76",Manchester Working Limited,105646
Warrington Borough Council,http://statistics.data.gov.uk/id/local-authority/00EU,Children & Young People,CHL,Agency Placements,30904,CP-LongStayExternal,441150,02/08/2011,1900059331,520,EAM House Respite Home,107912
Warrington Borough Council,http://statistics.data.gov.uk/id/local-authority/00EU,Assistant Chief Executive,CEX,Coroners Service,11100,Post Mortem Fees-Rep,440250,02/08/2011,1900059339,"3,705.10",B Rodgers,100499
Warrington Borough Council,http://statistics.data.gov.uk/id/local-authority/00EU,Children & Young People,CHL,Agency Placements,30904,CP ExternalOther Exp,440800,02/08/2011,1900059340,"9,156.00",Penarth Group Kamina House,106915
Warrington Borough Council,http://statistics.data.gov.uk/id/local-authority/00EU,Children & Young People,CHL,Agency Placements,30904,Fostering Accommodation,441050,02/08/2011,1900059341,"5,730.00",The Fostering Partnership Ltd,106274
Warrington Borough Council,http://statistics.data.gov.uk/id/local-authority/00EU,Children & Young People,CHL,Agency Placements,30904,CP ExternalOther Exp,440800,02/08/2011,1900059342,500,Bed Space,103530
Warrington Borough Council,http://statistics.data.gov.uk/id/local-authority/00EU,Children & Young People,CHL,Placement Services Team,31103,Accommodation Allowance,550650,02/08/2011,1900059344,598.04,Arena Options,101746
Warrington Borough Council,http://statistics.data.gov.uk/id/local-authority/00EU,Children & Young People,CHL,Placement Services Team,31103,Accommodation Allowance,550650,02/08/2011,1900059345,598.04,Arena Options,101746
Warrington Borough Council,http://statistics.data.gov.uk/id/local-authority/00EU,Assistant Chief Executive,CEX,Coroners Service,11100,Post Mortem Fees-Rep,440250,02/08/2011,1900059348,605.4,Dr Michael Wall,107545
Warrington Borough Council,http://statistics.data.gov.uk/id/local-authority/00EU,Assistant Chief Executive,CEX,Coroners Service,11100,Post Mortem Fees-Rep,440250,02/08/2011,1900059349,"1,800.70",Dr B.N.A Hamid,100354
Warrington Borough Council,http://statistics.data.gov.uk/id/local-authority/00EU,Assistant Chief Executive,CEX,Coroners Service,11100,Analysts Fees,440300,02/08/2011,1900059350,"3,335.00",Forensics Ltd Head Office,105295
Warrington Borough Council,http://statistics.data.gov.uk/id/local-authority/00EU,Children & Young People,CHL,Agency Placements,30904,CP-LongStayExternal,441150,02/08/2011,1900059357,"5,110.20",Oliver House Priory,107946
Warrington Borough Council,http://statistics.data.gov.uk/id/local-authority/00EU,Assistant Chief Executive,CEX,Coroners Service,11100,Post Mortem Fees-Rep,440250,02/08/2011,1900059377,"1,787.70",Dr Gk Kokai,100079
Warrington Borough Council,http://statistics.data.gov.uk/id/local-authority/00EU,Neighbourhood & Community Services,NCS,Warrington Area Library Service,51116,Multimedia,401200,02/08/2011,1900059378,563.5,Ulverscroft Large Print Books Ltd,105207
Warrington Borough Council,http://statistics.data.gov.uk/id/local-authority/00EU,Assistant Chief Executive,CEX,Coroners Service,11100,Analysts Fees,440300,02/08/2011,1900059381,510,Forensics Ltd Head Office,105295
Warrington Borough Council,http://statistics.data.gov.uk/id/local-authority/00EU,Neighbourhood & Community Services,NCS,Warrington Area Library Service,51116,Adult Books,400300,02/08/2011,1900059390,515.83,Promotional Books,106458
Warrington Borough Council,http://statistics.data.gov.uk/id/local-authority/00EU,Neighbourhood & Community Services,NCS,Library Service - Prison Fund,51163,Adult Books,400300,02/08/2011,1900059401,"2,345.46",Bertrams,105746
Warrington Borough Council,http://statistics.data.gov.uk/id/local-authority/00EU,Neighbourhood & Community Services,NCS,Warrington Area Library Service,51116,Junior Stock,400350,02/08/2011,1900059407,"4,489.25",Bertrams,105746
Warrington Borough Council,http://statistics.data.gov.uk/id/local-authority/00EU,Neighbourhood & Community Services,NCS,Neighbourhood Co-o South,51308,Payment of Grants,470050,02/08/2011,1900059412,"3,000.00",VPX Group,109004
Warrington Borough Council,http://statistics.data.gov.uk/id/local-authority/00EU,Environment & Regeneration,ER0,Golden Sq. Centre,43550,Consult.& Prof. Serv,440000,02/08/2011,1900059428,"12,498.28",Eversheds,100413
Warrington Borough Council,http://statistics.data.gov.uk/id/local-authority/00EU,Assistant Chief Executive,CEX,Council Tax & Recovery,10320,External Printing,430100,02/08/2011,1900059429,"1,977.80",Vertex Data Science,100530
Warrington Borough Council,http://statistics.data.gov.uk/id/local-authority/00EU,Assistant Chief Executive,CEX,Debtors,10380,External Printing,430100,02/08/2011,1900059429,"2,289.83",Vertex Data Science,100530
Warrington Borough Council,http://statistics.data.gov.uk/id/local-authority/00EU,People & Improvement,PIM,Business Support Centre,52120,External Printing,430100,02/08/2011,1900059429,"7,484.61",Vertex Data Science,100530
Warrington Borough Council,http://statistics.data.gov.uk/id/local-authority/00EU,Children & Young People,CHL,SCM St Joseph's Primary School,33147,Response Maintenance,200000,02/08/2011,1900059432,551.36,Catering Engineers NW Ltd,108320
Warrington Borough Council,http://statistics.data.gov.uk/id/local-authority/00EU,Children & Young People,CHL,DSG Pupil Referral Unit,32001,Agency Supply Teaching Assistants,180100,02/08/2011,1900059436,525,Just Teachers Ltd,101946
Warrington Borough Council,http://statistics.data.gov.uk/id/local-authority/00EU,Children & Young People,CHL,DSG Pupil Referral Unit,32001,Agency Supply Teachers,180050,02/08/2011,1900059437,975,Just Teachers Ltd,101946
Warrington Borough Council,http://statistics.data.gov.uk/id/local-authority/00EU,Children & Young People,CHL,DSG Pupil Referral Unit,32001,Agency Supply Teachers,180050,02/08/2011,1900059441,975,Just Teachers Ltd,101946
Warrington Borough Council,http://statistics.data.gov.uk/id/local-authority/00EU,Children & Young People,CHL,DSG Pupil Referral Unit,32001,Agency Supply Teaching Assistants,180100,02/08/2011,1900059442,525,Just Teachers Ltd,101946
Warrington Borough Council,http://statistics.data.gov.uk/id/local-authority/00EU,Children & Young People,CHL,DSG Pupil Referral Unit,32001,Agency Supply Teachers,180050,02/08/2011,1900059443,975,Just Teachers Ltd,101946
Warrington Borough Council,http://statistics.data.gov.uk/id/local-authority/00EU,Children & Young People,CHL,DSG Pupil Referral Unit,32001,Agency Supply Teachers,180050,02/08/2011,1900059444,723.16,Randstad Education,101381
Warrington Borough Council,http://statistics.data.gov.uk/id/local-authority/00EU,Balance Sheet,BAL,Single Billing Holding Account,91130,Specific Work,200200,02/08/2011,1900059445,"39,001.07",Manchester Working Limited,105646
Warrington Borough Council,http://statistics.data.gov.uk/id/local-authority/00EU,Assistant Chief Executive,CEX,Coroners Service,11100,Post Mortem Fees-Rep,440250,02/08/2011,1900059446,651.9,Dr Daniel Crooks,101689
Warrington Borough Council,http://statistics.data.gov.uk/id/local-authority/00EU,Assistant Chief Executive,CEX,Coroners Service,11100,Analysts Fees,440300,02/08/2011,1900059447,500,Dr Daniel Crooks,101689
Warrington Borough Council,http://statistics.data.gov.uk/id/local-authority/00EU,Children & Young People,CHL,DSG Pupil Referral Unit,32001,Agency Supply Teachers,180050,02/08/2011,1900059448,723.16,Randstad Education,101381
Warrington Borough Council,http://statistics.data.gov.uk/id/local-authority/00EU,Environment & Regeneration,ER1,Walton Hall Catering,41433,Beers Wines Spirits,410100,02/08/2011,1900059455,592.37,Carlsberg Tetley Brewing Ltd,104575
Warrington Borough Council,http://statistics.data.gov.uk/id/local-authority/00EU,Balance Sheet,BAL,Single Billing Holding Account,91130,Agency Supply - GF,180000,02/08/2011,1900059456,"46,365.47",Comensura,102009
Warrington Borough Council,http://statistics.data.gov.uk/id/local-authority/00EU,Children & Young People,CHL,DSG Pupil Referral Unit,32001,Agency Supply Teachers,180050,02/08/2011,1900059471,542.37,Randstad Education,101381
Warrington Borough Council,http://statistics.data.gov.uk/id/local-authority/00EU,Children & Young People,CHL,DSG Pupil Referral Unit,32001,Agency Supply Teachers,180050,02/08/2011,1900059472,700,Randstad Education,101381
Warrington Borough Council,http://statistics.data.gov.uk/id/local-authority/00EU,Children & Young People,CHL,DSG Pupil Referral Unit,32001,Agency Supply Teachers,180050,02/08/2011,1900059477,716,Randstad Education,101381
Warrington Borough Council,http://statistics.data.gov.uk/id/local-authority/00EU,Children & Young People,CHL,DSG Pupil Referral Unit,32001,Agency Supply Teachers,180050,02/08/2011,1900059480,560,Randstad Education,101381
Warrington Borough Council,http://statistics.data.gov.uk/id/local-authority/00EU,Children & Young People,CHL,DSG Pupil Referral Unit,32001,Agency Supply Teachers,180050,02/08/2011,1900059481,895,Randstad Education,101381
Warrington Borough Council,http://statistics.data.gov.uk/id/local-authority/00EU,Children & Young People,CHL,DSG Pupil Referral Unit,32001,Agency Supply Teachers,180050,02/08/2011,1900059486,723.16,Randstad Education,101381
Warrington Borough Council,http://statistics.data.gov.uk/id/local-authority/00EU,People & Improvement,PIM,CRB Checks,52122,CRB Checks,190050,02/08/2011,1900059493,"16,482.00",Criminal Records Bureau,440085
Warrington Borough Council,http://statistics.data.gov.uk/id/local-authority/00EU,Neighbourhood & Community Services,NCS,Care Purchase - OPMH,54220,CP-Nursing Care-External,441200,03/08/2011,1900059513,"4,136.00",Abbey Lawns Care Home Ltd,101816
Warrington Borough Council,http://statistics.data.gov.uk/id/local-authority/00EU,Neighbourhood & Community Services,NCS,Care Purchase - PD,54440,CP-Domicil.External,440950,03/08/2011,1900059514,571.69,Allied Healthcare Group Ltd,100796
Warrington Borough Council,http://statistics.data.gov.uk/id/local-authority/00EU,Neighbourhood & Community Services,NCS,Care Purchase - PD,54440,CP-Domicil.External,440950,03/08/2011,1900059515,571.69,Allied Healthcare Group Ltd,100796
Warrington Borough Council,http://statistics.data.gov.uk/id/local-authority/00EU,Neighbourhood & Community Services,NCS,Care Purchase - Learning Disability,54450,CP-Domicil.External,440950,03/08/2011,1900059516,885.12,Autism Initiatives,104503
Warrington Borough Council,http://statistics.data.gov.uk/id/local-authority/00EU,Neighbourhood & Community Services,NCS,Care Purchase - Learning Disability,54450,CP-Day Care-External,441100,03/08/2011,1900059516,"1,081.08",Autism Initiatives,104503
Warrington Borough Council,http://statistics.data.gov.uk/id/local-authority/00EU,Neighbourhood & Community Services,NCS,Care Purchase - OP & OT Central,54420,CP-LongStayExternal,441150,03/08/2011,1900059518,"1,616.00",Bupa Care Homes,103381
Warrington Borough Council,http://statistics.data.gov.uk/id/local-authority/00EU,Neighbourhood & Community Services,NCS,Care Purchase - Learning Disability,54450,CP-Domicil.External,440950,03/08/2011,1900059519,"20,505.67",Care Uk Care Solutions Ltd,102263
Warrington Borough Council,http://statistics.data.gov.uk/id/local-authority/00EU,Neighbourhood & Community Services,NCS,Care Purchase - Learning Disability,54450,Supporting People - External,441250,03/08/2011,1900059519,"16,470.00",Care Uk Care Solutions Ltd,102263
Warrington Borough Council,http://statistics.data.gov.uk/id/local-authority/00EU,Neighbourhood & Community Services,NCS,Care Purchase - Learning Disability,54450,CP-Domicil.External,440950,03/08/2011,1900059520,"5,419.20",Care Uk Care Solutions Ltd,102263
Warrington Borough Council,http://statistics.data.gov.uk/id/local-authority/00EU,Neighbourhood & Community Services,NCS,Care Purchase - Learning Disability,54450,CP-Domicil.External,440950,03/08/2011,1900059521,829.6,Care Uk Care Solutions Ltd,102263
Warrington Borough Council,http://statistics.data.gov.uk/id/local-authority/00EU,Neighbourhood & Community Services,NCS,Care Purchase - Learning Disability,54450,CP-Domicil.External,440950,03/08/2011,1900059522,"1,305.40",Care Uk Care Solutions Ltd,102263
Warrington Borough Council,http://statistics.data.gov.uk/id/local-authority/00EU,Neighbourhood & Community Services,NCS,Care Purchase - Learning Disability,54450,CP-Domicil.External,440950,03/08/2011,1900059523,"1,366.40",Care Uk Care Solutions Ltd,102263
Warrington Borough Council,http://statistics.data.gov.uk/id/local-authority/00EU,Neighbourhood & Community Services,NCS,Care Purchase - Learning Disability,54450,Supporting People - External,441250,03/08/2011,1900059524,536.8,Care Uk Care Solutions Ltd,102263
Warrington Borough Council,http://statistics.data.gov.uk/id/local-authority/00EU,Neighbourhood & Community Services,NCS,Care Purchase - Learning Disability,54450,CP-Domicil.External,440950,03/08/2011,1900059525,"7,673.80",Care Uk Care Solutions Ltd,102263
Warrington Borough Council,http://statistics.data.gov.uk/id/local-authority/00EU,Neighbourhood & Community Services,NCS,Care Purchase - Learning Disability,54450,CP-Domicil.External,440950,03/08/2011,1900059526,"1,366.40",Care Uk Care Solutions Ltd,102263
Warrington Borough Council,http://statistics.data.gov.uk/id/local-authority/00EU,Neighbourhood & Community Services,NCS,Care Purchase - Learning Disability,54450,CP-Domicil.External,440950,03/08/2011,1900059527,536.8,Care Uk Care Solutions Ltd,102263
Warrington Borough Council,http://statistics.data.gov.uk/id/local-authority/00EU,Neighbourhood & Community Services,NCS,Care Purchase - Learning Disability,54450,Supporting People - External,441250,03/08/2011,1900059527,"3,623.40",Care Uk Care Solutions Ltd,102263
Warrington Borough Council,http://statistics.data.gov.uk/id/local-authority/00EU,Neighbourhood & Community Services,NCS,Care Purchase - Learning Disability,54450,CP-Domicil.External,440950,03/08/2011,1900059528,"1,366.40",Care Uk Care Solutions Ltd,102263
Warrington Borough Council,http://statistics.data.gov.uk/id/local-authority/00EU,Neighbourhood & Community Services,NCS,Care Purchase - Learning Disability,54450,Supporting People - External,441250,03/08/2011,1900059529,536.8,Care Uk Care Solutions Ltd,102263
Warrington Borough Council,http://statistics.data.gov.uk/id/local-authority/00EU,Neighbourhood & Community Services,NCS,Care Purchase - Learning Disability,54450,CP-Domicil.External,440950,03/08/2011,1900059530,"1,024.80",Care Uk Care Solutions Ltd,102263
Warrington Borough Council,http://statistics.data.gov.uk/id/local-authority/00EU,Neighbourhood & Community Services,NCS,Care Purchase - Learning Disability,54450,CP-Domicil.External,440950,03/08/2011,1900059531,951.6,Care Uk Care Solutions Ltd,102263
Warrington Borough Council,http://statistics.data.gov.uk/id/local-authority/00EU,Neighbourhood & Community Services,NCS,Care Purchase - Learning Disability,54450,CP-Domicil.External,440950,03/08/2011,1900059532,"5,322.44",Care Uk Care Solutions Ltd,102263
Warrington Borough Council,http://statistics.data.gov.uk/id/local-authority/00EU,Neighbourhood & Community Services,NCS,Transport,54950,Transport-Snad Cot,300600,03/08/2011,1900059533,"2,380.00",Redacted Personal Data,100473
Warrington Borough Council,http://statistics.data.gov.uk/id/local-authority/00EU,Neighbourhood & Community Services,NCS,Care Purchase - Learning Disability,54450,CP-Nursing Care-External,441200,03/08/2011,1900059534,"2,436.00",Chadderton Total-Care Unit Ltd,100425
Warrington Borough Council,http://statistics.data.gov.uk/id/local-authority/00EU,Neighbourhood & Community Services,NCS,Care Purchase - Learning Disability,54450,CP-LongStayExternal,441150,03/08/2011,1900059535,"13,863.92",The David Lewis Centre,104879
Warrington Borough Council,http://statistics.data.gov.uk/id/local-authority/00EU,Neighbourhood & Community Services,NCS,Care Purchase - Learning Disability,54450,CP-Nursing Care-External,441200,03/08/2011,1900059536,"10,015.88",The David Lewis Centre,104879
Warrington Borough Council,http://statistics.data.gov.uk/id/local-authority/00EU,Neighbourhood & Community Services,NCS,Care Purchase - OP & OT Central,54420,CP-Nursing Care-External,441200,03/08/2011,1900059538,"1,496.00",Four Seasons Health Care,100629
Warrington Borough Council,http://statistics.data.gov.uk/id/local-authority/00EU,Neighbourhood & Community Services,NCS,Care Purchase - Learning Disability,54450,CP-Domicil.External,440950,03/08/2011,1900059540,"2,464.00",Macintyre Care,104907
Warrington Borough Council,http://statistics.data.gov.uk/id/local-authority/00EU,Neighbourhood & Community Services,NCS,Care Purchase - Mental Health Team 1,54230,CP-Nursing Care-External,441200,03/08/2011,1900059541,"3,552.00",Rosebridge Court,101954
Warrington Borough Council,http://statistics.data.gov.uk/id/local-authority/00EU,Neighbourhood & Community Services,NCS,Care Purchase - Learning Disability,54450,CP-LongStayExternal,441150,03/08/2011,1900059542,"7,036.00",Sense,440092
Warrington Borough Council,http://statistics.data.gov.uk/id/local-authority/00EU,Neighbourhood & Community Services,NCS,Care Purchase - Learning Disability,54450,CP-LongStayExternal,441150,03/08/2011,1900059543,"8,418.40",Robinia Care Midlands,101591
Warrington Borough Council,http://statistics.data.gov.uk/id/local-authority/00EU,Neighbourhood & Community Services,NCS,Care Purchase - PD,54440,CP-Nursing Care-External,441200,03/08/2011,1900059544,864.3,Woodlands Respite Care Centre,105252
Warrington Borough Council,http://statistics.data.gov.uk/id/local-authority/00EU,Neighbourhood & Community Services,NCS,Supporting People Grant Payments,53260,Sheltd/Xtra Care Hsing and Comm Alarms,535050,03/08/2011,1900059547,"11,714.43",Frontis Homes,101685
Warrington Borough Council,http://statistics.data.gov.uk/id/local-authority/00EU,Neighbourhood & Community Services,NCS,Supporting People Grant Payments,53260,Sheltd/Xtra Care Hsing and Comm Alarms,535050,03/08/2011,1900059547,"1,622.88",Frontis Homes,101685
Warrington Borough Council,http://statistics.data.gov.uk/id/local-authority/00EU,Neighbourhood & Community Services,NCS,Supporting People Grant Payments,53260,People with Mental Health Problems,535200,03/08/2011,1900059548,"2,806.01",Redacted Personal Data,100735
Warrington Borough Council,http://statistics.data.gov.uk/id/local-authority/00EU,Neighbourhood & Community Services,NCS,Supporting People Grant Payments,53260,Sheltd/Xtra Care Hsing and Comm Alarms,535050,03/08/2011,1900059552,"2,449.72",Muir Housing Association Ltd,100053
Warrington Borough Council,http://statistics.data.gov.uk/id/local-authority/00EU,Neighbourhood & Community Services,NCS,Supporting People Grant Payments,53260,Sheltd/Xtra Care Hsing and Comm Alarms,535050,03/08/2011,1900059552,755.04,Muir Housing Association Ltd,100053
Warrington Borough Council,http://statistics.data.gov.uk/id/local-authority/00EU,Neighbourhood & Community Services,NCS,Supporting People Grant Payments,53260,Sheltd/Xtra Care Hsing and Comm Alarms,535050,03/08/2011,1900059553,861.3,St Vincents Housing Association,100756
Warrington Borough Council,http://statistics.data.gov.uk/id/local-authority/00EU,Neighbourhood & Community Services,NCS,Supporting People Grant Payments,53260,Sheltd/Xtra Care Hsing and Comm Alarms,535050,03/08/2011,1900059556,"2,233.98",Warrington Housing Association,101208
Warrington Borough Council,http://statistics.data.gov.uk/id/local-authority/00EU,Neighbourhood & Community Services,NCS,Supporting People Grant Payments,53260,Sheltd/Xtra Care Hsing and Comm Alarms,535050,03/08/2011,1900059556,"1,232.00",Warrington Housing Association,101208
Warrington Borough Council,http://statistics.data.gov.uk/id/local-authority/00EU,Neighbourhood & Community Services,NCS,Supporting People Grant Payments,53260,Sheltd/Xtra Care Hsing and Comm Alarms,535050,03/08/2011,1900059556,"1,134.00",Warrington Housing Association,101208
Warrington Borough Council,http://statistics.data.gov.uk/id/local-authority/00EU,Neighbourhood & Community Services,NCS,Supporting People Grant Payments,53260,Sheltd/Xtra Care Hsing and Comm Alarms,535050,03/08/2011,1900059556,547.2,Warrington Housing Association,101208
Warrington Borough Council,http://statistics.data.gov.uk/id/local-authority/00EU,Neighbourhood & Community Services,NCS,Supporting People Grant Payments,53260,Sheltd/Xtra Care Hsing and Comm Alarms,535050,03/08/2011,1900059558,720.44,Redacted Personal Data,100886
Warrington Borough Council,http://statistics.data.gov.uk/id/local-authority/00EU,Neighbourhood & Community Services,NCS,Care Purchase - Learning Disability,54450,CP Adult Placement,443450,03/08/2011,1900059560,782.14,Redacted Personal Data,460225
Warrington Borough Council,http://statistics.data.gov.uk/id/local-authority/00EU,Children & Young People,CHL,DSG Pupil Referral Unit,32001,Agency Supply Teachers,180050,03/08/2011,1900059578,716,Randstad Education,101381
Warrington Borough Council,http://statistics.data.gov.uk/id/local-authority/00EU,Children & Young People,CHL,DSG Independent School Fees,32011,Independent School Fees,490200,03/08/2011,1900059596,"142,859.36",Wargrave House School,400175
Warrington Borough Council,http://statistics.data.gov.uk/id/local-authority/00EU,Children & Young People,CHL,DSG Inter Authority Recoupment,32009,Recoupment Charges,490700,03/08/2011,1900059599,"166,200.23",Halton Borough Council,410008
Warrington Borough Council,http://statistics.data.gov.uk/id/local-authority/00EU,Neighbourhood & Community Services,NCS,DAT Pooled Budget,53860,Drug Action,443600,03/08/2011,1900059612,768,Hall And Stevens Pharmacy,104278
Warrington Borough Council,http://statistics.data.gov.uk/id/local-authority/00EU,Children & Young People,CHL,St Katherine's Children's Home,31109,Consult.& Prof. Serv,440000,03/08/2011,1900059614,"1,088.00",Verity Care Ltd,107357
Warrington Borough Council,http://statistics.data.gov.uk/id/local-authority/00EU,Neighbourhood & Community Services,NCS,DAT Pooled Budget,53860,Drug Action,443600,03/08/2011,1900059618,673.5,Hall And Stevens Pharmacy,104278
Warrington Borough Council,http://statistics.data.gov.uk/id/local-authority/00EU,Children & Young People,CHL,Foster Allowances,31106,Fostering Allowance,550050,03/08/2011,1900059620,"1,045.12",Redacted Personal Data,460059
Warrington Borough Council,http://statistics.data.gov.uk/id/local-authority/00EU,Children & Young People,CHL,DSG Pupil Referral Unit,32001,Gas,210050,03/08/2011,1900059630,873.55,British Gas Business,104540
Warrington Borough Council,http://statistics.data.gov.uk/id/local-authority/00EU,Children & Young People,CHL,DSG Pupil Referral Unit,32001,Examination Fees,440150,03/08/2011,1900059633,659.02,Assessment And Qualifications Allia,100487
Warrington Borough Council,http://statistics.data.gov.uk/id/local-authority/00EU,Neighbourhood & Community Services,NCS,LINKS,56150,Payment of Grants,470050,03/08/2011,1900059636,"26,863.75",Black Health Agency,102360
Warrington Borough Council,http://statistics.data.gov.uk/id/local-authority/00EU,Children & Young People,CHL,DSG EOTAS & Home Tuition,32002,Consult.& Prof. Serv,440000,03/08/2011,1900059648,560.55,Randstad Education,101381
Warrington Borough Council,http://statistics.data.gov.uk/id/local-authority/00EU,Neighbourhood & Community Services,NCS,Care Purchase - OPMH,54220,CP-Domicil.External,440950,03/08/2011,1900059652,"3,884.07",Nightingales Homecare Services Agen,104972
Warrington Borough Council,http://statistics.data.gov.uk/id/local-authority/00EU,Neighbourhood & Community Services,NCS,Care Purchase - OP & OT Central,54420,CP-Domicil.External,440950,03/08/2011,1900059652,"44,272.95",Nightingales Homecare Services Agen,104972
Warrington Borough Council,http://statistics.data.gov.uk/id/local-authority/00EU,Neighbourhood & Community Services,NCS,Care Purchase - PD,54440,CP-Domicil.External,440950,03/08/2011,1900059652,"8,316.91",Nightingales Homecare Services Agen,104972
Warrington Borough Council,http://statistics.data.gov.uk/id/local-authority/00EU,Neighbourhood & Community Services,NCS,Care Purchase - Learning Disability,54450,CP-Domicil.External,440950,03/08/2011,1900059652,566.61,Nightingales Homecare Services Agen,104972
Warrington Borough Council,http://statistics.data.gov.uk/id/local-authority/00EU,Neighbourhood & Community Services,NCS,Care Purchase Budget,54490,CP - Cont Care - External,441350,03/08/2011,1900059652,"1,540.54",Nightingales Homecare Services Agen,104972
Warrington Borough Council,http://statistics.data.gov.uk/id/local-authority/00EU,Environment & Regeneration,ER1,Transport Holding Account,41311,Diesel,300100,04/08/2011,1900059679,"22,864.29",GB Oils Ltd (Martindale Fuels),103439
Warrington Borough Council,http://statistics.data.gov.uk/id/local-authority/00EU,Neighbourhood & Community Services,NCS,Care Purchase - OP & OT Central,54420,Direct Payments,552000,04/08/2011,1900059714,"2,436.00",Redacted Personal Data,101174
Warrington Borough Council,http://statistics.data.gov.uk/id/local-authority/00EU,Assistant Chief Executive,CEX,Referendum,11600,Equipment Purchase & Contract,400000,04/08/2011,1900059715,720,Manchester City Council,410021
Warrington Borough Council,http://statistics.data.gov.uk/id/local-authority/00EU,Children & Young People,CHL,DSG EOTAS & Home Tuition,32002,Consult.& Prof. Serv,440000,04/08/2011,1900059717,560.55,Randstad Education,101381
Warrington Borough Council,http://statistics.data.gov.uk/id/local-authority/00EU,Corporate Financing,COR,General Contingencies,61000,Corporate Initiative,491000,04/08/2011,1900059733,"7,063.00",Halton & St Helens Pct Nhs,440129
Warrington Borough Council,http://statistics.data.gov.uk/id/local-authority/00EU,Assistant Chief Executive,CEX,Legal Services,11200,Training,190150,04/08/2011,1900059735,"1,000.00",Sefton Metropolitan Borough Council,410066
Warrington Borough Council,http://statistics.data.gov.uk/id/local-authority/00EU,Environment & Regeneration,ER0,Urban Traffic Management Control,44370,Signal Management,531600,04/08/2011,1900059738,"10,478.09",British Telecommunications Plc,104543
Warrington Borough Council,http://statistics.data.gov.uk/id/local-authority/00EU,Neighbourhood & Community Services,NCS,Supporting People Grant Payments,53260,Sheltd/Xtra Care Hsing and Comm Alarms,535050,04/08/2011,1900059742,"12,174.69",Arena Housing,102199
Warrington Borough Council,http://statistics.data.gov.uk/id/local-authority/00EU,Neighbourhood & Community Services,NCS,Supporting People Grant Payments,53260,Sheltd/Xtra Care Hsing and Comm Alarms,535050,04/08/2011,1900059742,"1,105.44",Arena Housing,102199
Warrington Borough Council,http://statistics.data.gov.uk/id/local-authority/00EU,Neighbourhood & Community Services,NCS,Supporting People Grant Payments,53260,Sheltd/Xtra Care Hsing and Comm Alarms,535050,04/08/2011,1900059742,994.56,Arena Housing,102199
Warrington Borough Council,http://statistics.data.gov.uk/id/local-authority/00EU,Neighbourhood & Community Services,NCS,Supporting People Grant Payments,53260,Sheltd/Xtra Care Hsing and Comm Alarms,535050,04/08/2011,1900059742,932.48,Arena Housing,102199
Warrington Borough Council,http://statistics.data.gov.uk/id/local-authority/00EU,Neighbourhood & Community Services,NCS,Supporting People Grant Payments,53260,Sheltd/Xtra Care Hsing and Comm Alarms,535050,04/08/2011,1900059742,895.16,Arena Housing,102199
Warrington Borough Council,http://statistics.data.gov.uk/id/local-authority/00EU,Neighbourhood & Community Services,NCS,Supporting People Grant Payments,53260,Sheltd/Xtra Care Hsing and Comm Alarms,535050,04/08/2011,1900059742,811.8,Arena Housing,102199
Warrington Borough Council,http://statistics.data.gov.uk/id/local-authority/00EU,Neighbourhood & Community Services,NCS,Transport,54950,Transport-Snad Cot,300600,04/08/2011,1900059745,588,Manhatton Transfers,101264
Warrington Borough Council,http://statistics.data.gov.uk/id/local-authority/00EU,Children & Young People,CHL,DSG LEA Initiatives SCC,32410,Legal Costs Incurred,440200,04/08/2011,1900059750,626.5,Weightman Llp,100768
Warrington Borough Council,http://statistics.data.gov.uk/id/local-authority/00EU,Neighbourhood & Community Services,NCS,Care Purchase - IC,54290,CP - Intermediate Care - External,441300,04/08/2011,1900059751,"35,202.00",CareConcepts (Appleton) Ltd,105804
Warrington Borough Council,http://statistics.data.gov.uk/id/local-authority/00EU,Environment & Regeneration,ER0,Traffic and Safety,44350,Temporary Traffic Regulation Orders,442400,04/08/2011,1900059753,747.82,TMP UK Ltd,108498
Warrington Borough Council,http://statistics.data.gov.uk/id/local-authority/00EU,Neighbourhood & Community Services,NCS,Care Purchase - Mental Health Team 1,54230,CP-LongStayExternal,441150,04/08/2011,1900059755,"1,564.00",Hilton Residential Homes Ltd,104783
Warrington Borough Council,http://statistics.data.gov.uk/id/local-authority/00EU,Neighbourhood & Community Services,NCS,Care Purchase - OP & OT Central,54420,CP-LongStayExternal,441150,04/08/2011,1900059756,"1,300.00",Bondcare (Spinney),102023
Warrington Borough Council,http://statistics.data.gov.uk/id/local-authority/00EU,Neighbourhood & Community Services,NCS,Care Purchase - OPMH,54220,CP-Day Care-External,441100,04/08/2011,1900059757,"3,283.00",CareConcepts (Appleton) Ltd,105804
Warrington Borough Council,http://statistics.data.gov.uk/id/local-authority/00EU,Neighbourhood & Community Services,NCS,Care Purchase - OP & OT Central,54420,CP-Day Care-External,441100,04/08/2011,1900059757,"9,011.60",CareConcepts (Appleton) Ltd,105804
Warrington Borough Council,http://statistics.data.gov.uk/id/local-authority/00EU,Neighbourhood & Community Services,NCS,Care Purchase Budget,54490,Voids,515150,04/08/2011,1900059757,"7,305.40",CareConcepts (Appleton) Ltd,105804
Warrington Borough Council,http://statistics.data.gov.uk/id/local-authority/00EU,Neighbourhood & Community Services,NCS,Care Purchase - Learning Disability,54450,CP-Nursing Care-External,441200,04/08/2011,1900059760,"4,800.00",Health & Social Care Partnerships,107996
Warrington Borough Council,http://statistics.data.gov.uk/id/local-authority/00EU,Neighbourhood & Community Services,NCS,Care Purchase - Learning Disability,54450,CP-Nursing Care-External,441200,04/08/2011,1900059763,"4,800.00",Health & Social Care Partnerships,107996
Warrington Borough Council,http://statistics.data.gov.uk/id/local-authority/00EU,Neighbourhood & Community Services,NCS,Care Purchase - Learning Disability,54450,CP-Nursing Care-External,441200,04/08/2011,1900059766,"4,800.00",Health & Social Care Partnerships,107996
Warrington Borough Council,http://statistics.data.gov.uk/id/local-authority/00EU,Environment & Regeneration,ENO,Highways LTP,82004,Temporary Traffic Regulation Orders,442400,04/08/2011,1900059767,534.16,TMP UK Ltd,108498
Warrington Borough Council,http://statistics.data.gov.uk/id/local-authority/00EU,Neighbourhood & Community Services,NCS,Care Purchase - Learning Disability,54450,CP ExternalOther Exp,440800,04/08/2011,1900059768,969.95,Carewatch North Cheshire,104573
Warrington Borough Council,http://statistics.data.gov.uk/id/local-authority/00EU,Environment & Regeneration,ENO,Highways Other,82005,Permanent Traffic Regulation Orders,442350,04/08/2011,1900059769,640.99,TMP UK Ltd,108498
Warrington Borough Council,http://statistics.data.gov.uk/id/local-authority/00EU,Neighbourhood & Community Services,NCS,Care Purchase - OPMH,54220,CP-Domicil.External,440950,04/08/2011,1900059771,814.08,Carewatch North Cheshire,104573
Warrington Borough Council,http://statistics.data.gov.uk/id/local-authority/00EU,Neighbourhood & Community Services,NCS,Care Purchase - OP & OT Central,54420,CP-Domicil.External,440950,04/08/2011,1900059771,"14,118.64",Carewatch North Cheshire,104573
Warrington Borough Council,http://statistics.data.gov.uk/id/local-authority/00EU,Neighbourhood & Community Services,NCS,Care Purchase - Learning Disability,54450,CP-Domicil.External,440950,04/08/2011,1900059771,"6,479.66",Carewatch North Cheshire,104573
Warrington Borough Council,http://statistics.data.gov.uk/id/local-authority/00EU,Environment & Regeneration,ER0,Traffic and Safety,44350,Temporary Traffic Regulation Orders,442400,04/08/2011,1900059772,622.5,TMP UK Ltd,108498
Warrington Borough Council,http://statistics.data.gov.uk/id/local-authority/00EU,Neighbourhood & Community Services,NCS,Care Purchase - Learning Disability,54450,CP-Nursing Care-External,441200,04/08/2011,1900059774,"14,880.00",Health & Social Care Partnerships,107996
Warrington Borough Council,http://statistics.data.gov.uk/id/local-authority/00EU,Neighbourhood & Community Services,NCS,Care Purchase - Learning Disability,54450,CP-LongStayExternal,441150,04/08/2011,1900059775,"5,075.96",Macintyre Care,104907
Warrington Borough Council,http://statistics.data.gov.uk/id/local-authority/00EU,Neighbourhood & Community Services,NCS,Care Purchase - Learning Disability,54450,CP-LongStayExternal,441150,04/08/2011,1900059777,"4,800.00",Health & Social Care Partnerships,107996
Warrington Borough Council,http://statistics.data.gov.uk/id/local-authority/00EU,Neighbourhood & Community Services,NCS,Care Purchase - Learning Disability,54450,CP-LongStayExternal,441150,04/08/2011,1900059778,"9,840.00",Health & Social Care Partnerships,107996
Warrington Borough Council,http://statistics.data.gov.uk/id/local-authority/00EU,Neighbourhood & Community Services,NCS,Care Purchase - Learning Disability,54450,CP-Nursing Care-External,441200,04/08/2011,1900059779,"4,800.00",Health & Social Care Partnerships,107996
Warrington Borough Council,http://statistics.data.gov.uk/id/local-authority/00EU,Neighbourhood & Community Services,NCS,Care Purchase - Learning Disability,54450,CP-Nursing Care-External,441200,04/08/2011,1900059780,"4,800.00",Health & Social Care Partnerships,107996
Warrington Borough Council,http://statistics.data.gov.uk/id/local-authority/00EU,Neighbourhood & Community Services,NCS,Care Purchase - OP & OT Central,54420,CP-LongStayExternal,441150,04/08/2011,1900059781,"5,892.00",Cotebrook,104638
Warrington Borough Council,http://statistics.data.gov.uk/id/local-authority/00EU,Neighbourhood & Community Services,NCS,Care Purchase - PD,54440,CP-LongStayExternal,441150,04/08/2011,1900059781,"3,928.00",Cotebrook,104638
Warrington Borough Council,http://statistics.data.gov.uk/id/local-authority/00EU,Neighbourhood & Community Services,NCS,Care Purchase - Mental Health Team 1,54230,CP-LongStayExternal,441150,04/08/2011,1900059782,"6,428.00",Milbury Care Services Limited,100099
Warrington Borough Council,http://statistics.data.gov.uk/id/local-authority/00EU,Neighbourhood & Community Services,NCS,Care Purchase - PD,54440,CP-Nursing Care-External,441200,04/08/2011,1900059783,"2,372.00",Beechley Care Home,104790
Warrington Borough Council,http://statistics.data.gov.uk/id/local-authority/00EU,Neighbourhood & Community Services,NCS,Care Purchase - OP & OT Central,54420,CP-LongStayExternal,441150,04/08/2011,1900059784,"1,308.00",Pymgate House,107621
Warrington Borough Council,http://statistics.data.gov.uk/id/local-authority/00EU,Neighbourhood & Community Services,NCS,Care Purchase - Learning Disability,54450,CP-Domicil.External,440950,04/08/2011,1900059785,687.12,Progress Adult Services Ltd,101817
Warrington Borough Council,http://statistics.data.gov.uk/id/local-authority/00EU,Neighbourhood & Community Services,NCS,Care Purchase - Learning Disability,54450,CP-LongStayExternal,441150,04/08/2011,1900059785,"11,237.84",Progress Adult Services Ltd,101817
Warrington Borough Council,http://statistics.data.gov.uk/id/local-authority/00EU,Neighbourhood & Community Services,NCS,Care Purchase - OP & OT Central,54420,CP-Nursing Care-External,441200,04/08/2011,1900059786,"2,580.00",The Turner Home,102163
Warrington Borough Council,http://statistics.data.gov.uk/id/local-authority/00EU,Neighbourhood & Community Services,NCS,Care Purchase - Learning Disability,54450,CP-LongStayExternal,441150,04/08/2011,1900059787,"11,237.84",Progress Adult Services Ltd,101817
Warrington Borough Council,http://statistics.data.gov.uk/id/local-authority/00EU,Neighbourhood & Community Services,NCS,Care Purchase - Learning Disability,54450,CP-LongStayExternal,441150,04/08/2011,1900059788,"19,417.59",Progress Care and Education Ltd,108888
Warrington Borough Council,http://statistics.data.gov.uk/id/local-authority/00EU,Neighbourhood & Community Services,NCS,Care Purchase - Learning Disability,54450,CP-Day Care-External,441100,04/08/2011,1900059789,"3,650.80",Autism Initiatives,104503
Warrington Borough Council,http://statistics.data.gov.uk/id/local-authority/00EU,Neighbourhood & Community Services,NCS,Care Purchase - Learning Disability,54450,CP-LongStayExternal,441150,04/08/2011,1900059790,"10,471.32",Pendleton Care Limited,101213
Warrington Borough Council,http://statistics.data.gov.uk/id/local-authority/00EU,Neighbourhood & Community Services,NCS,Care Purchase - OP & OT Central,54420,CP-LongStayExternal,441150,04/08/2011,1900059791,"1,516.00",Mayfield House Care Home Ltd,101862
Warrington Borough Council,http://statistics.data.gov.uk/id/local-authority/00EU,Neighbourhood & Community Services,NCS,Care Purchase - OPMH,54220,CP-Nursing Care-External,441200,04/08/2011,1900059792,"2,628.00",The Turner Home,102163
Warrington Borough Council,http://statistics.data.gov.uk/id/local-authority/00EU,Neighbourhood & Community Services,NCS,Care Purchase - OP & OT Central,54420,CP-LongStayExternal,441150,04/08/2011,1900059793,"1,724.00",Linear Park (Housing With Care),100897
Warrington Borough Council,http://statistics.data.gov.uk/id/local-authority/00EU,Neighbourhood & Community Services,NCS,Care Purchase - OP & OT Central,54420,CP-LongStayExternal,441150,04/08/2011,1900059794,"1,304.00",Croftwood Care Limited,103738
Warrington Borough Council,http://statistics.data.gov.uk/id/local-authority/00EU,Neighbourhood & Community Services,NCS,Care Purchase - OP & OT Central,54420,CP-LongStayExternal,441150,04/08/2011,1900059795,"1,596.86",Ladydale Residential Home,102470
Warrington Borough Council,http://statistics.data.gov.uk/id/local-authority/00EU,Neighbourhood & Community Services,NCS,Care Purchase - OP & OT Central,54420,CP-LongStayExternal,441150,04/08/2011,1900059796,"1,471.92",The Knoll Care Partnership,101987
Warrington Borough Council,http://statistics.data.gov.uk/id/local-authority/00EU,Neighbourhood & Community Services,NCS,Care Purchase - Learning Disability,54450,CP-LongStayExternal,441150,04/08/2011,1900059797,"1,481.76",Inclusive Lifestyles Ltd,101840
Warrington Borough Council,http://statistics.data.gov.uk/id/local-authority/00EU,Neighbourhood & Community Services,NCS,Care Purchase - Learning Disability,54450,CP-LongStayExternal,441150,04/08/2011,1900059798,"12,744.00",Inclusive Lifestyles Ltd,101840
Warrington Borough Council,http://statistics.data.gov.uk/id/local-authority/00EU,Neighbourhood & Community Services,NCS,Care Purchase - OP & OT Central,54420,CP-LongStayExternal,441150,04/08/2011,1900059799,"2,544.00",The Turner Home,102163
Warrington Borough Council,http://statistics.data.gov.uk/id/local-authority/00EU,Neighbourhood & Community Services,NCS,Care Purchase - Learning Disability,54450,CP-LongStayExternal,441150,04/08/2011,1900059800,"12,532.00",Inclusive Lifestyles Ltd,101840
Warrington Borough Council,http://statistics.data.gov.uk/id/local-authority/00EU,Neighbourhood & Community Services,NCS,Care Purchase - PD,54440,CP-Nursing Care-External,441200,04/08/2011,1900059801,"2,780.00",Leonard Cheshire Disability,100370
Warrington Borough Council,http://statistics.data.gov.uk/id/local-authority/00EU,Neighbourhood & Community Services,NCS,Care Purchase - Learning Disability,54450,CP-LongStayExternal,441150,04/08/2011,1900059802,"1,257.60",Inclusive Lifestyles Ltd,101840
Warrington Borough Council,http://statistics.data.gov.uk/id/local-authority/00EU,Neighbourhood & Community Services,NCS,Care Purchase - OP & OT Central,54420,CP-Nursing Care-External,441200,04/08/2011,1900059803,"1,500.00",Carefirst Health Care Ltd-Crawfords,100460
Warrington Borough Council,http://statistics.data.gov.uk/id/local-authority/00EU,Neighbourhood & Community Services,NCS,Care Purchase - OP & OT Central,54420,CP-Nursing Care-External,441200,04/08/2011,1900059804,"1,494.08",European Care UK Limited,106600
Warrington Borough Council,http://statistics.data.gov.uk/id/local-authority/00EU,Neighbourhood & Community Services,NCS,Care Purchase Budget,54490,CP - Cont Care - External,441350,04/08/2011,1900059805,"2,177.56",Home Instead Senior Care,103236
Warrington Borough Council,http://statistics.data.gov.uk/id/local-authority/00EU,Neighbourhood & Community Services,NCS,Care Purchase - OP & OT Central,54420,CP-LongStayExternal,441150,04/08/2011,1900059806,"1,652.00",Ennerdale Nursing & Residential Hom,108529
Warrington Borough Council,http://statistics.data.gov.uk/id/local-authority/00EU,Neighbourhood & Community Services,NCS,Care Purchase - OP & OT Central,54420,CP-LongStayExternal,441150,04/08/2011,1900059807,"1,452.00",St Michaels Manor,108474
Warrington Borough Council,http://statistics.data.gov.uk/id/local-authority/00EU,Neighbourhood & Community Services,NCS,Care Purchase - Learning Disability,54450,CP-LongStayExternal,441150,04/08/2011,1900059808,"2,797.20",Redacted Personal Data,100583
Warrington Borough Council,http://statistics.data.gov.uk/id/local-authority/00EU,Neighbourhood & Community Services,NCS,Care Purchase - Learning Disability,54450,CP-Day Care-External,441100,04/08/2011,1900059809,"2,217.08",Deafness Support Network,104657
Warrington Borough Council,http://statistics.data.gov.uk/id/local-authority/00EU,Neighbourhood & Community Services,NCS,Care Purchase - Learning Disability,54450,CP-LongStayExternal,441150,04/08/2011,1900059810,"2,797.20",Redacted Personal Data,460030
Warrington Borough Council,http://statistics.data.gov.uk/id/local-authority/00EU,Neighbourhood & Community Services,NCS,Care Purchase - OP & OT Central,54420,CP-LongStayExternal,441150,04/08/2011,1900059811,"1,359.44",Care First Health Care Ltd - Bedfor,104569
Warrington Borough Council,http://statistics.data.gov.uk/id/local-authority/00EU,Neighbourhood & Community Services,NCS,Care Purchase - Mental Health Team 1,54230,CP-LongStayExternal,441150,04/08/2011,1900059812,"3,928.00",Cotebrook,104638
Warrington Borough Council,http://statistics.data.gov.uk/id/local-authority/00EU,Neighbourhood & Community Services,NCS,Care Purchase - OP & OT Central,54420,CP-LongStayExternal,441150,04/08/2011,1900059812,"3,928.00",Cotebrook,104638
Warrington Borough Council,http://statistics.data.gov.uk/id/local-authority/00EU,Neighbourhood & Community Services,NCS,Care Purchase - PD,54440,CP-LongStayExternal,441150,04/08/2011,1900059812,"14,828.57",Cotebrook,104638
Warrington Borough Council,http://statistics.data.gov.uk/id/local-authority/00EU,Neighbourhood & Community Services,NCS,Care Purchase Budget,54490,Voids,515150,04/08/2011,1900059812,"1,192.43",Cotebrook,104638
Warrington Borough Council,http://statistics.data.gov.uk/id/local-authority/00EU,Neighbourhood & Community Services,NCS,Care Purchase - OP & OT Central,54420,CP-Nursing Care-External,441200,04/08/2011,1900059813,"1,628.00",Care First Health Care Ltd - Bedfor,104569
Warrington Borough Council,http://statistics.data.gov.uk/id/local-authority/00EU,Neighbourhood & Community Services,NCS,Care Purchase - Mental Health Team 1,54230,CP-Domicil.External,440950,04/08/2011,1900059814,"1,760.89",Independent Living Alliance,100726
Warrington Borough Council,http://statistics.data.gov.uk/id/local-authority/00EU,Neighbourhood & Community Services,NCS,Care Purchase - Mental Health Team 1,54230,CP-Domicil.External,440950,04/08/2011,1900059816,"1,647.80",Independent Living Alliance,100726
Warrington Borough Council,http://statistics.data.gov.uk/id/local-authority/00EU,Neighbourhood & Community Services,NCS,Care Purchase - OP & OT Central,54420,CP-LongStayExternal,441150,04/08/2011,1900059818,"1,520.00",Kingsview Homes Ltd,100614
Warrington Borough Council,http://statistics.data.gov.uk/id/local-authority/00EU,Neighbourhood & Community Services,NCS,Care Purchase - Learning Disability,54450,CP-LongStayExternal,441150,04/08/2011,1900059819,"10,388.00",Bank Hall Farm,103693
Warrington Borough Council,http://statistics.data.gov.uk/id/local-authority/00EU,Neighbourhood & Community Services,NCS,Care Purchase - Learning Disability,54450,CP-Nursing Care-External,441200,04/08/2011,1900059820,"4,728.00",Barberry Care Home,104791
Warrington Borough Council,http://statistics.data.gov.uk/id/local-authority/00EU,Neighbourhood & Community Services,NCS,Care Purchase - OP & OT Central,54420,CP-LongStayExternal,441150,04/08/2011,1900059821,"3,064.00",Longview Care Home Ltd,102331
Warrington Borough Council,http://statistics.data.gov.uk/id/local-authority/00EU,Neighbourhood & Community Services,NCS,Care Purchase - Learning Disability,54450,CP-Nursing Care-External,441200,04/08/2011,1900059822,"3,588.00",Stocks Hall Care Homes Ltd,102512
Warrington Borough Council,http://statistics.data.gov.uk/id/local-authority/00EU,Neighbourhood & Community Services,NCS,Care Purchase - Mental Health Team 1,54230,CP-Domicil.External,440950,04/08/2011,1900059823,"1,209.20",Redacted Personal Data,100052
Warrington Borough Council,http://statistics.data.gov.uk/id/local-authority/00EU,Neighbourhood & Community Services,NCS,Care Purchase - PD,54440,CP-Domicil.External,440950,04/08/2011,1900059823,"1,209.20",Redacted Personal Data,100052
Warrington Borough Council,http://statistics.data.gov.uk/id/local-authority/00EU,Neighbourhood & Community Services,NCS,Care Purchase - OP & OT Central,54420,CP-LongStayExternal,441150,04/08/2011,1900059824,"1,506.92",Meridian Healthcare Ltd,101845
Warrington Borough Council,http://statistics.data.gov.uk/id/local-authority/00EU,Neighbourhood & Community Services,NCS,Care Purchase - OP & OT Central,54420,CP-Nursing Care-External,441200,04/08/2011,1900059826,"1,694.88",Meridian Healthcare Ltd,101845
Warrington Borough Council,http://statistics.data.gov.uk/id/local-authority/00EU,Neighbourhood & Community Services,NCS,Access Social Care,53220,Waste Initiatives,443200,04/08/2011,1900059828,677.1,Shred It,105129
Warrington Borough Council,http://statistics.data.gov.uk/id/local-authority/00EU,Children & Young People,CHL,Foster Allowances,31106,Fostering Allowance,550050,04/08/2011,1900059830,500,Redacted Personal Data,106283
Warrington Borough Council,http://statistics.data.gov.uk/id/local-authority/00EU,Children & Young People,CHL,Agency Placements,30904,CP ExternalOther Exp,440800,05/08/2011,1900059838,"9,156.00",Penarth Group,101958
Warrington Borough Council,http://statistics.data.gov.uk/id/local-authority/00EU,Neighbourhood & Community Services,NCS,Care Purchase - Learning Disability,54450,CP Adult Placement,443450,05/08/2011,1900059851,611.56,Redacted Personal Data,108798
Warrington Borough Council,http://statistics.data.gov.uk/id/local-authority/00EU,Neighbourhood & Community Services,NCS,Care Purchase - Learning Disability,54450,CP Adult Placement,443450,05/08/2011,1900059858,740.26,Redacted Personal Data,108799
Warrington Borough Council,http://statistics.data.gov.uk/id/local-authority/00EU,Assistant Chief Executive,CEX,Democratic Services,11400,Training,190150,05/08/2011,1900059872,"5,225.00",ASDO Qualifications Training,107447
Warrington Borough Council,http://statistics.data.gov.uk/id/local-authority/00EU,People & Improvement,PIM,Future Jobs Fund,22400,Payment of Grants,470050,05/08/2011,1900059877,700,Cri,440139
Warrington Borough Council,http://statistics.data.gov.uk/id/local-authority/00EU,Neighbourhood & Community Services,NCS,Support Services,52101,Car Leasing Charges,350000,05/08/2011,1900059882,"3,621.29",Lombard Vehicle Management,101395
Warrington Borough Council,http://statistics.data.gov.uk/id/local-authority/00EU,Neighbourhood & Community Services,NCS,Support Services,52101,Car Leasing Charges,350000,05/08/2011,1900059882,646.32,Lombard Vehicle Management,101395
Warrington Borough Council,http://statistics.data.gov.uk/id/local-authority/00EU,Neighbourhood & Community Services,NCS,Mental Health Outreach Team,54530,Car Leasing Charges,350000,05/08/2011,1900059884,"2,689.92",Arnold Clark Finance Ltd,103263
Warrington Borough Council,http://statistics.data.gov.uk/id/local-authority/00EU,Children & Young People,CHL,Inclusion,32207,Car Leasing Charges,350000,05/08/2011,1900059886,"2,241.48",Arnold Clark Finance Ltd,103263
Warrington Borough Council,http://statistics.data.gov.uk/id/local-authority/00EU,Neighbourhood & Community Services,NCS,Care Call,54550,Car Leasing Charges,350000,05/08/2011,1900059888,"2,520.00",Arnold Clark Finance Ltd,103263
Warrington Borough Council,http://statistics.data.gov.uk/id/local-authority/00EU,Assistant Chief Executive,CEX,Emergency Planning (Civil Defence),12240,Car Leasing Charges,350000,05/08/2011,1900059889,"2,396.04",Arnold Clark Finance Ltd,103263
Warrington Borough Council,http://statistics.data.gov.uk/id/local-authority/00EU,Neighbourhood & Community Services,NCS,School Swimming,51015,Vehicle Hire Charges,320000,05/08/2011,1900059890,"7,380.00",Fairbrothers Limited,104709
Warrington Borough Council,http://statistics.data.gov.uk/id/local-authority/00EU,Environment & Regeneration,ER0,Environ. Eng. Cons.,44110,Car Leasing Charges,350000,05/08/2011,1900059891,"1,845.36",Arnold Clark Finance Ltd,103263
Warrington Borough Council,http://statistics.data.gov.uk/id/local-authority/00EU,Environment & Regeneration,ER0,Highways Cont. Serv.,44220,Car Leasing Charges,350000,05/08/2011,1900059892,"2,665.08",Arnold Clark Finance Ltd,103263
Warrington Borough Council,http://statistics.data.gov.uk/id/local-authority/00EU,Environment & Regeneration,ER0,Highways Cont. Serv.,44220,Car Leasing Charges,350000,05/08/2011,1900059892,550.92,Arnold Clark Finance Ltd,103263
Warrington Borough Council,http://statistics.data.gov.uk/id/local-authority/00EU,Assistant Chief Executive,CEX,Coroners Service,11100,Analysts Fees,440300,05/08/2011,1900059895,"2,370.00",Forensics Ltd Head Office,105295
Warrington Borough Council,http://statistics.data.gov.uk/id/local-authority/00EU,Children & Young People,CHL,St Katherine's Children's Home,31109,Consult.& Prof. Serv,440000,05/08/2011,1900059907,816,Verity Care Ltd,107357
Warrington Borough Council,http://statistics.data.gov.uk/id/local-authority/00EU,Environment & Regeneration,ER0,Building Maintenance,43220,Consult.& Prof. Serv,440000,05/08/2011,1900059912,700,The Gilbraithe Partnership,100841
Warrington Borough Council,http://statistics.data.gov.uk/id/local-authority/00EU,Children & Young People,CHL,Commissioning,31116,CP ExternalOther Exp,440800,05/08/2011,1900059921,"13,751.00",The Relationships Centre,101184
Warrington Borough Council,http://statistics.data.gov.uk/id/local-authority/00EU,Neighbourhood & Community Services,NCS,Transport,54950,Transport-Snad Cot,300600,05/08/2011,1900059923,"2,165.00",Redacted Personal Data,100473
Warrington Borough Council,http://statistics.data.gov.uk/id/local-authority/00EU,Neighbourhood & Community Services,NCS,Third Sector,53130,Hospitality,490050,05/08/2011,1900059930,636.5,Alford Sports & Social Club,104463
Warrington Borough Council,http://statistics.data.gov.uk/id/local-authority/00EU,Neighbourhood & Community Services,NCS,Westbrook Library,51113,Rent Of Premises,220000,05/08/2011,1900059932,"1,287.80",Homes and Communities Agency,104697
Warrington Borough Council,http://statistics.data.gov.uk/id/local-authority/00EU,Environment & Regeneration,ENO,Housing Projects,82008,Disabled Persons Grant 1996,554000,05/08/2011,1900059948,"4,291.00",Top Flight Stairlifts Ltd,108733
Warrington Borough Council,http://statistics.data.gov.uk/id/local-authority/00EU,Environment & Regeneration,ER0,Core Operational Business,41730,Oil - Gas,301250,05/08/2011,1900059953,"1,282.40",GB Oils Ltd (Martindale Fuels),103439
Warrington Borough Council,http://statistics.data.gov.uk/id/local-authority/00EU,Corporate Financing,COR,Fees & Subscriptions,60020,Audit Comm-Fee,441550,05/08/2011,1900059958,"26,468.50",Audit Commission,104501
Warrington Borough Council,http://statistics.data.gov.uk/id/local-authority/00EU,Neighbourhood & Community Services,NCS,Museum,51120,Equipment Purchase & Contract,400000,05/08/2011,1900059962,612.26,Siemens Financial Services Ltd,101880
Warrington Borough Council,http://statistics.data.gov.uk/id/local-authority/00EU,Environment & Regeneration,ER0,Strategic Planning,43440,Consult.& Prof. Serv,440000,05/08/2011,1900059973,"7,500.00",Mickledore Ltd,106398
Warrington Borough Council,http://statistics.data.gov.uk/id/local-authority/00EU,Assistant Chief Executive,CEX,Senior Management,15000,Car Leasing Charges,350000,05/08/2011,1900059981,"2,821.33",ING Car Lease UK Ltd,106080
Warrington Borough Council,http://statistics.data.gov.uk/id/local-authority/00EU,Neighbourhood & Community Services,NCS,Intermediate Care at Home,54520,Car Leasing Charges,350000,05/08/2011,1900059982,"2,203.09",ING Car Lease UK Ltd,106080
Warrington Borough Council,http://statistics.data.gov.uk/id/local-authority/00EU,Neighbourhood & Community Services,NCS,Support Services,52101,Car Leasing Charges,350000,05/08/2011,1900059983,"2,197.39",ING Car Lease UK Ltd,106080
Warrington Borough Council,http://statistics.data.gov.uk/id/local-authority/00EU,Children & Young People,CHL,CiC Team 2,31101,Car Leasing Charges,350000,05/08/2011,1900059984,"2,329.71",ING Car Lease UK Ltd,106080
Warrington Borough Council,http://statistics.data.gov.uk/id/local-authority/00EU,Children & Young People,CHL,CiC Team 2,31101,Legal Costs Incurred,440200,08/08/2011,1900059986,"2,225.00",Hmcs,440115
Warrington Borough Council,http://statistics.data.gov.uk/id/local-authority/00EU,Children & Young People,CYP,Secondary,81002,Contract Works,492550,08/08/2011,1900059992,"1,815.10",Atmostherm Service Ltd,107002
Warrington Borough Council,http://statistics.data.gov.uk/id/local-authority/00EU,Children & Young People,CYP,Secondary,81002,Contract Works,492550,08/08/2011,1900059997,"1,800.00",Lock it Safe,107325
Warrington Borough Council,http://statistics.data.gov.uk/id/local-authority/00EU,Children & Young People,CHL,CiC Team 2,31101,Legal Costs Incurred,440200,08/08/2011,1900060000,"2,225.00",Hmcs,440115
Warrington Borough Council,http://statistics.data.gov.uk/id/local-authority/00EU,Children & Young People,CYP,Special,81003,Contract Works,492550,08/08/2011,1900060003,"1,410.00",Roy Wadsworth Carpets,106331
Warrington Borough Council,http://statistics.data.gov.uk/id/local-authority/00EU,Environment & Regeneration,ER0,Street Lighting Client,44241,Lighting Energy Char,531550,08/08/2011,1900060046,"24,499.33",Npower Ltd,101884
Warrington Borough Council,http://statistics.data.gov.uk/id/local-authority/00EU,Environment & Regeneration,ER0,Street Lighting Client,44241,Lighting Energy Char,531550,08/08/2011,1900060047,"67,396.51",Npower Ltd,101884
Warrington Borough Council,http://statistics.data.gov.uk/id/local-authority/00EU,Environment & Regeneration,ER0,Street Lighting Client,44241,Lighting Energy Char,531550,08/08/2011,1900060048,"104,464.58",Npower Ltd,101884
Warrington Borough Council,http://statistics.data.gov.uk/id/local-authority/00EU,Children & Young People,CYP,Secondary,81002,Contract Works,492550,08/08/2011,1900060049,900,Psp Publishing Ltd,102280
Warrington Borough Council,http://statistics.data.gov.uk/id/local-authority/00EU,Children & Young People,CYP,Secondary,81002,Contract Works,492550,08/08/2011,1900060052,"5,725.00",Stone Computers Ltd,109020
Warrington Borough Council,http://statistics.data.gov.uk/id/local-authority/00EU,Children & Young People,CYP,Secondary,81002,Contract Works,492550,08/08/2011,1900060053,"20,036.00",Stone Computers Ltd,109020
Warrington Borough Council,http://statistics.data.gov.uk/id/local-authority/00EU,Children & Young People,CYP,Secondary,81002,Contract Works,492550,08/08/2011,1900060054,"10,640.00",Stone Computers Ltd,109020
Warrington Borough Council,http://statistics.data.gov.uk/id/local-authority/00EU,Children & Young People,CYP,Secondary,81002,Contract Works,492550,08/08/2011,1900060055,774,Stone Computers Ltd,109020
Warrington Borough Council,http://statistics.data.gov.uk/id/local-authority/00EU,Children & Young People,CYP,Secondary,81002,Contract Works,492550,08/08/2011,1900060056,719,Stone Computers Ltd,109020
Warrington Borough Council,http://statistics.data.gov.uk/id/local-authority/00EU,Children & Young People,CYP,Secondary,81002,Contract Works,492550,08/08/2011,1900060058,"13,965.00",Stone Computers Ltd,109020
Warrington Borough Council,http://statistics.data.gov.uk/id/local-authority/00EU,Environment & Regeneration,ER0,Street Lighting Client,44241,Lighting Energy Char,531550,08/08/2011,1900060059,"101,094.74",Npower Ltd,101884
Warrington Borough Council,http://statistics.data.gov.uk/id/local-authority/00EU,Environment & Regeneration,ER0,Printing & Graphics,23040,Equipment Purchase & Contract,400000,08/08/2011,1900060060,"8,530.19",Xerox Uk Ltd,100092
Warrington Borough Council,http://statistics.data.gov.uk/id/local-authority/00EU,Environment & Regeneration,ER0,Street Lighting Client,44241,Lighting Energy Char,531550,08/08/2011,1900060062,"104,464.57",Npower Ltd,101884
Warrington Borough Council,http://statistics.data.gov.uk/id/local-authority/00EU,Environment & Regeneration,ER0,Street Lighting Client,44241,Lighting Energy Char,531550,08/08/2011,1900060063,"101,094.75",Npower Ltd,101884
Warrington Borough Council,http://statistics.data.gov.uk/id/local-authority/00EU,Environment & Regeneration,ER0,Street Lighting Client,44241,Lighting Energy Char,531550,08/08/2011,1900060064,"104,464.57",Npower Ltd,101884
Warrington Borough Council,http://statistics.data.gov.uk/id/local-authority/00EU,Environment & Regeneration,ER0,Street Lighting Client,44241,Lighting Energy Char,531550,08/08/2011,1900060066,"104,464.57",Npower Ltd,101884
Warrington Borough Council,http://statistics.data.gov.uk/id/local-authority/00EU,Environment & Regeneration,ER0,Street Lighting Client,44241,Lighting Energy Char,531550,08/08/2011,1900060068,"100,760.12",Npower Ltd,101884
Warrington Borough Council,http://statistics.data.gov.uk/id/local-authority/00EU,Neighbourhood & Community Services,NCS,Care Purchase - PD,54440,Direct Payments,552000,08/08/2011,1900060069,"2,693.77",Redacted Personal Data,100666
Warrington Borough Council,http://statistics.data.gov.uk/id/local-authority/00EU,Environment & Regeneration,ER0,Street Lighting Client,44241,Lighting Energy Char,531550,08/08/2011,1900060070,"104,118.80",Npower Ltd,101884
Warrington Borough Council,http://statistics.data.gov.uk/id/local-authority/00EU,Neighbourhood & Community Services,NCS,Care Purchase - Learning Disability,54450,CP ExternalOther Exp,440800,08/08/2011,1900060071,"5,418.65",The David Lewis Centre,104879
Warrington Borough Council,http://statistics.data.gov.uk/id/local-authority/00EU,Environment & Regeneration,ER0,Street Lighting Client,44241,Lighting Energy Char,531550,08/08/2011,1900060074,"73,492.97",Npower Ltd,101884
Warrington Borough Council,http://statistics.data.gov.uk/id/local-authority/00EU,Neighbourhood & Community Services,NCS,Neighbourhood Co-o Central,51309,Payment of Grants,470050,08/08/2011,1900060076,949,Orford Park Responsible Dog Walkers,109025
Warrington Borough Council,http://statistics.data.gov.uk/id/local-authority/00EU,Environment & Regeneration,ER0,Street Lighting Client,44241,Lighting Energy Char,531550,08/08/2011,1900060077,"75,942.75",Npower Ltd,101884
Warrington Borough Council,http://statistics.data.gov.uk/id/local-authority/00EU,Environment & Regeneration,ER0,Street Lighting Client,44241,Lighting Energy Char,531550,08/08/2011,1900060078,"75,942.74",Npower Ltd,101884
Warrington Borough Council,http://statistics.data.gov.uk/id/local-authority/00EU,Environment & Regeneration,ER0,Street Lighting Client,44241,Lighting Energy Char,531550,08/08/2011,1900060080,"68,593.44",Npower Ltd,101884
Warrington Borough Council,http://statistics.data.gov.uk/id/local-authority/00EU,Environment & Regeneration,ER0,Street Lighting Client,44241,Lighting Energy Char,531550,08/08/2011,1900060081,"75,942.75",Npower Ltd,101884
Warrington Borough Council,http://statistics.data.gov.uk/id/local-authority/00EU,Environment & Regeneration,ER0,Street Lighting Client,44241,Lighting Energy Char,531550,08/08/2011,1900060083,"26,947.43",Npower Ltd,101884
Warrington Borough Council,http://statistics.data.gov.uk/id/local-authority/00EU,Neighbourhood & Community Services,NCS,Care Purchase - Mental Health Team 2,54240,CP-Domicil.External,440950,09/08/2011,1900060091,"1,980.00",Next Stage A Way Forward Ltd,101217
Warrington Borough Council,http://statistics.data.gov.uk/id/local-authority/00EU,Neighbourhood & Community Services,NCS,Care Purchase - Mental Health Team 2,54240,CP-Domicil.External,440950,09/08/2011,1900060092,"1,778.80",Next Stage A Way Forward Ltd,101217
Warrington Borough Council,http://statistics.data.gov.uk/id/local-authority/00EU,Neighbourhood & Community Services,NCS,Care Purchase - Mental Health Team 3,54250,CP-Domicil.External,440950,09/08/2011,1900060093,"1,778.80",Next Stage A Way Forward Ltd,101217
Warrington Borough Council,http://statistics.data.gov.uk/id/local-authority/00EU,Neighbourhood & Community Services,NCS,Care Purchase - Mental Health Team 2,54240,CP-Domicil.External,440950,09/08/2011,1900060094,"1,778.80",Next Stage A Way Forward Ltd,101217
Warrington Borough Council,http://statistics.data.gov.uk/id/local-authority/00EU,Neighbourhood & Community Services,NCS,Care Purchase - Mental Health Team 3,54250,CP-Domicil.External,440950,09/08/2011,1900060095,"1,778.80",Next Stage A Way Forward Ltd,101217
Warrington Borough Council,http://statistics.data.gov.uk/id/local-authority/00EU,Neighbourhood & Community Services,NCS,Care Purchase - Mental Health Team 2,54240,CP-Domicil.External,440950,09/08/2011,1900060096,"1,696.80",Next Stage A Way Forward Ltd,101217
Warrington Borough Council,http://statistics.data.gov.uk/id/local-authority/00EU,Neighbourhood & Community Services,NCS,Care Purchase - Mental Health Team 1,54230,CP-Domicil.External,440950,09/08/2011,1900060098,"1,778.80",Next Stage A Way Forward Ltd,101217
Warrington Borough Council,http://statistics.data.gov.uk/id/local-authority/00EU,Neighbourhood & Community Services,NCS,Care Purchase - Mental Health Team 2,54240,CP-Domicil.External,440950,09/08/2011,1900060099,"1,980.00",Next Stage A Way Forward Ltd,101217
Warrington Borough Council,http://statistics.data.gov.uk/id/local-authority/00EU,Neighbourhood & Community Services,NCS,Care Purchase - Mental Health Team 2,54240,CP-Domicil.External,440950,09/08/2011,1900060100,"1,451.64",Next Stage A Way Forward Ltd,101217
Warrington Borough Council,http://statistics.data.gov.uk/id/local-authority/00EU,Neighbourhood & Community Services,NCS,Care Purchase - Mental Health Team 3,54250,CP-Domicil.External,440950,09/08/2011,1900060101,"1,729.60",Next Stage A Way Forward Ltd,101217
Warrington Borough Council,http://statistics.data.gov.uk/id/local-authority/00EU,Neighbourhood & Community Services,NCS,Care Purchase - Mental Health Team 2,54240,CP-Domicil.External,440950,09/08/2011,1900060102,691.44,Next Stage A Way Forward Ltd,101217
Warrington Borough Council,http://statistics.data.gov.uk/id/local-authority/00EU,Neighbourhood & Community Services,NCS,Care Purchase - Mental Health Team 3,54250,CP-Domicil.External,440950,09/08/2011,1900060103,"1,778.80",Next Stage A Way Forward Ltd,101217
Warrington Borough Council,http://statistics.data.gov.uk/id/local-authority/00EU,Neighbourhood & Community Services,NCS,Care Purchase - OP & OT Central,54420,CP-LongStayExternal,441150,09/08/2011,1900060104,981.86,Dennis Moore Care Ltd,109009
Warrington Borough Council,http://statistics.data.gov.uk/id/local-authority/00EU,Neighbourhood & Community Services,NCS,Care Purchase - Mental Health Team 2,54240,CP-LongStayExternal,441150,09/08/2011,1900060105,"1,778.80",Next Stage A Way Forward Ltd,101217
Warrington Borough Council,http://statistics.data.gov.uk/id/local-authority/00EU,Neighbourhood & Community Services,NCS,Care Purchase - Mental Health Team 2,54240,CP-Domicil.External,440950,09/08/2011,1900060106,"1,892.97",Next Stage A Way Forward Ltd,101217
Warrington Borough Council,http://statistics.data.gov.uk/id/local-authority/00EU,Neighbourhood & Community Services,NCS,Care Purchase - Mental Health Team 3,54250,CP-Domicil.External,440950,09/08/2011,1900060108,"1,105.69",Next Stage A Way Forward Ltd,101217
Warrington Borough Council,http://statistics.data.gov.uk/id/local-authority/00EU,Neighbourhood & Community Services,NCS,Care Purchase - OP & OT Central,54420,CP-LongStayExternal,441150,09/08/2011,1900060109,"1,912.00",Cls Care Services Ltd,104615
Warrington Borough Council,http://statistics.data.gov.uk/id/local-authority/00EU,Neighbourhood & Community Services,NCS,Care Purchase - OP & OT Central,54420,CP-LongStayExternal,441150,09/08/2011,1900060110,"1,660.00",Manor Park Care Home,102013
Warrington Borough Council,http://statistics.data.gov.uk/id/local-authority/00EU,Neighbourhood & Community Services,NCS,Care Purchase - OP & OT Central,54420,CP-Nursing Care-External,441200,09/08/2011,1900060111,"1,532.00",Flightcare Limited,102299
Warrington Borough Council,http://statistics.data.gov.uk/id/local-authority/00EU,Neighbourhood & Community Services,NCS,Care Purchase - Mental Health Team 1,54230,CP-Domicil.External,440950,09/08/2011,1900060112,"3,094.44",Oak Gardens,101620
Warrington Borough Council,http://statistics.data.gov.uk/id/local-authority/00EU,Neighbourhood & Community Services,NCS,Care Purchase - PD,54440,CP-Domicil.External,440950,09/08/2011,1900060112,"15,472.20",Oak Gardens,101620
Warrington Borough Council,http://statistics.data.gov.uk/id/local-authority/00EU,Neighbourhood & Community Services,NCS,Care Purchase Budget,54490,Voids,515150,09/08/2011,1900060112,"3,094.44",Oak Gardens,101620
Warrington Borough Council,http://statistics.data.gov.uk/id/local-authority/00EU,Neighbourhood & Community Services,NCS,Care Purchase - PD,54440,Supporting People - External,441250,09/08/2011,1900060113,"4,434.28",Oak Gardens,101620
Warrington Borough Council,http://statistics.data.gov.uk/id/local-authority/00EU,Neighbourhood & Community Services,NCS,Care Purchase Budget,54490,Voids,515150,09/08/2011,1900060113,"2,597.04",Oak Gardens,101620
Warrington Borough Council,http://statistics.data.gov.uk/id/local-authority/00EU,Neighbourhood & Community Services,NCS,Care Purchase - OP & OT Central,54420,CP-Nursing Care-External,441200,09/08/2011,1900060114,740,Barchester Homes Ltd,105246
Warrington Borough Council,http://statistics.data.gov.uk/id/local-authority/00EU,Neighbourhood & Community Services,NCS,Care Purchase - OP & OT Central,54420,CP-LongStayExternal,441150,09/08/2011,1900060117,"1,540.00",Barchester Homes Ltd,105246
Warrington Borough Council,http://statistics.data.gov.uk/id/local-authority/00EU,Neighbourhood & Community Services,NCS,Care Purchase - Mental Health Team 1,54230,CP-Nursing Care-External,441200,09/08/2011,1900060117,"1,712.00",Barchester Homes Ltd,105246
Warrington Borough Council,http://statistics.data.gov.uk/id/local-authority/00EU,Neighbourhood & Community Services,NCS,Care Purchase - OP & OT Central,54420,CP-Nursing Care-External,441200,09/08/2011,1900060117,"20,544.00",Barchester Homes Ltd,105246
Warrington Borough Council,http://statistics.data.gov.uk/id/local-authority/00EU,Neighbourhood & Community Services,NCS,Care Purchase - PD,54440,CP-Nursing Care-External,441200,09/08/2011,1900060117,"2,224.71",Barchester Homes Ltd,105246
Warrington Borough Council,http://statistics.data.gov.uk/id/local-authority/00EU,Neighbourhood & Community Services,NCS,Care Purchase Budget,54490,CP - Cont Care - External,441350,09/08/2011,1900060117,"5,509.20",Barchester Homes Ltd,105246
Warrington Borough Council,http://statistics.data.gov.uk/id/local-authority/00EU,Neighbourhood & Community Services,NCS,Care Purchase - PD,54440,CP-Domicil.External,440950,09/08/2011,1900060118,571.69,Allied Healthcare Group Ltd,100796
Warrington Borough Council,http://statistics.data.gov.uk/id/local-authority/00EU,Neighbourhood & Community Services,NCS,Care Purchase - Learning Disability,54450,CP-Nursing Care-External,441200,09/08/2011,1900060120,"8,212.00",Community Care Matters Limited,102791
Warrington Borough Council,http://statistics.data.gov.uk/id/local-authority/00EU,Neighbourhood & Community Services,NCS,Care Purchase Budget,54490,CP - Cont Care - External,441350,09/08/2011,1900060120,"19,408.00",Community Care Matters Limited,102791
Warrington Borough Council,http://statistics.data.gov.uk/id/local-authority/00EU,Neighbourhood & Community Services,NCS,Care Purchase - Learning Disability,54450,CP-LongStayExternal,441150,09/08/2011,1900060121,"8,464.00",Community Care Matters Limited,102791
Warrington Borough Council,http://statistics.data.gov.uk/id/local-authority/00EU,Neighbourhood & Community Services,NCS,Care Purchase Budget,54490,CP - Cont Care - External,441350,09/08/2011,1900060121,"20,100.00",Community Care Matters Limited,102791
Warrington Borough Council,http://statistics.data.gov.uk/id/local-authority/00EU,Children & Young People,CHL,Agency Placements,30904,CP ExternalOther Exp,440800,09/08/2011,1900060122,"3,121.65",The Together Trust,101518
Warrington Borough Council,http://statistics.data.gov.uk/id/local-authority/00EU,Neighbourhood & Community Services,NCS,Specialist Day Services,54750,Gen. Personal Needs,490850,09/08/2011,1900060123,"2,080.00",Walton Lea Project,102953
Warrington Borough Council,http://statistics.data.gov.uk/id/local-authority/00EU,Neighbourhood & Community Services,NCS,Neighbourhood Co-o Central,51309,Payment of Grants,470050,09/08/2011,1900060131,"1,330.00",Howley Carnival Association,109037
Warrington Borough Council,http://statistics.data.gov.uk/id/local-authority/00EU,Neighbourhood & Community Services,NCS,Neighbourhood Co-o Central,51309,Payment of Grants,470050,09/08/2011,1900060134,"4,000.00",Radley Common Community Centre,103237
Warrington Borough Council,http://statistics.data.gov.uk/id/local-authority/00EU,Neighbourhood & Community Services,NCS,Select Soccer,51017,Beers Wines Spirits,410100,09/08/2011,1900060169,829.99,Carlsberg Tetley Brewing Ltd,104575
Warrington Borough Council,http://statistics.data.gov.uk/id/local-authority/00EU,Neighbourhood & Community Services,NCS,Birchwood Tennis Centre,51005,Response Maintenance,200000,09/08/2011,1900060171,"6,000.00",Labosport,108871
Warrington Borough Council,http://statistics.data.gov.uk/id/local-authority/00EU,Housing Trust,HST,Post Ballot Costs - WBC,43680,Consult.& Prof. Serv,440000,09/08/2011,1900060173,"15,000.00",Grant Thornton UK LLP,108316
Warrington Borough Council,http://statistics.data.gov.uk/id/local-authority/00EU,Neighbourhood & Community Services,NCS,Care Purchase - PD,54440,CP-Domicil.External,440950,09/08/2011,1900060175,"1,150.50",Crossroads Care,101690
Warrington Borough Council,http://statistics.data.gov.uk/id/local-authority/00EU,Neighbourhood & Community Services,NCS,Care Purchase - Mental Health Team 2,54240,CP-Domicil.External,440950,09/08/2011,1900060176,"1,579.68",Next Stage A Way Forward Ltd,101217
Warrington Borough Council,http://statistics.data.gov.uk/id/local-authority/00EU,Neighbourhood & Community Services,NCS,Care Purchase - Mental Health Team 1,54230,CP-Domicil.External,440950,09/08/2011,1900060177,581.3,Mayfield Home Care Agency,104928
Warrington Borough Council,http://statistics.data.gov.uk/id/local-authority/00EU,Neighbourhood & Community Services,NCS,Care Purchase - Mental Health Team 3,54250,CP-Domicil.External,440950,09/08/2011,1900060177,985.14,Mayfield Home Care Agency,104928
Warrington Borough Council,http://statistics.data.gov.uk/id/local-authority/00EU,Neighbourhood & Community Services,NCS,Care Purchase - OP & OT Central,54420,CP-Domicil.External,440950,09/08/2011,1900060177,"1,215.59",Mayfield Home Care Agency,104928
Warrington Borough Council,http://statistics.data.gov.uk/id/local-authority/00EU,Neighbourhood & Community Services,NCS,Care Purchase - Learning Disability,54450,CP-Domicil.External,440950,09/08/2011,1900060177,"3,680.85",Mayfield Home Care Agency,104928
Warrington Borough Council,http://statistics.data.gov.uk/id/local-authority/00EU,Neighbourhood & Community Services,NCS,Care Purchase Budget,54490,CP - Cont Care - External,441350,09/08/2011,1900060177,"10,390.03",Mayfield Home Care Agency,104928
Warrington Borough Council,http://statistics.data.gov.uk/id/local-authority/00EU,Balance Sheet,BAL,Insurance Fund,91100,Insurance Claims,443400,10/08/2011,1900060182,"105,205.10",Gallagher Bassett International Ltd,104739
Warrington Borough Council,http://statistics.data.gov.uk/id/local-authority/00EU,Assistant Chief Executive,CEX,Customer Insight,12100,Res & Intelligence,440850,10/08/2011,1900060199,"1,600.00",Caci Ltd,101863
Warrington Borough Council,http://statistics.data.gov.uk/id/local-authority/00EU,Assistant Chief Executive,CEX,Council Tax & Recovery,10320,External Printing,430100,10/08/2011,1900060200,858.97,Vertex Data Science,100530
Warrington Borough Council,http://statistics.data.gov.uk/id/local-authority/00EU,People & Improvement,PIM,Business Support Centre,52120,External Printing,430100,10/08/2011,1900060200,"6,362.12",Vertex Data Science,100530
Warrington Borough Council,http://statistics.data.gov.uk/id/local-authority/00EU,Children & Young People,CHL,Child Disability,32212,Direct Payments,552000,10/08/2011,1900060201,735,Redacted Personal Data,460499
Warrington Borough Council,http://statistics.data.gov.uk/id/local-authority/00EU,Children & Young People,CHL,Fostering Team,31105,Consult.& Prof. Serv,440000,10/08/2011,1900060202,945,K Kerfoot Ltd,109052
Warrington Borough Council,http://statistics.data.gov.uk/id/local-authority/00EU,Children & Young People,CHL,Child Disability,32212,Direct Payments,552000,10/08/2011,1900060205,600,Redacted Personal Data,102759
Warrington Borough Council,http://statistics.data.gov.uk/id/local-authority/00EU,Environment & Regeneration,ENO,Housing Projects,82008,Safe & Secure Energy House Assistance,554100,10/08/2011,1900060207,"1,765.00",A1 Roof Seal Ltd,105313
Warrington Borough Council,http://statistics.data.gov.uk/id/local-authority/00EU,Children & Young People,CHL,Fostering Team,31105,Consult.& Prof. Serv,440000,10/08/2011,1900060210,"3,290.80",Oldfield Consltancy Heswall Ltd,109051
Warrington Borough Council,http://statistics.data.gov.uk/id/local-authority/00EU,Neighbourhood & Community Services,NCS,Care Purchase - PD,54440,Direct Payments,552000,10/08/2011,1900060212,760,Redacted Personal Data,101444
Warrington Borough Council,http://statistics.data.gov.uk/id/local-authority/00EU,Neighbourhood & Community Services,NCS,Care Purchase - Learning Disability,54450,Direct Payments,552000,10/08/2011,1900060216,"4,062.76",Redacted Personal Data,101341
Warrington Borough Council,http://statistics.data.gov.uk/id/local-authority/00EU,Neighbourhood & Community Services,NCS,Care Purchase - Learning Disability,54450,Direct Payments,552000,10/08/2011,1900060216,"2,441.77",Redacted Personal Data,101341
Warrington Borough Council,http://statistics.data.gov.uk/id/local-authority/00EU,Neighbourhood & Community Services,NCS,Care Purchase - Learning Disability,54450,Direct Payments,552000,10/08/2011,1900060218,827.08,Redacted Personal Data,102217
Warrington Borough Council,http://statistics.data.gov.uk/id/local-authority/00EU,Neighbourhood & Community Services,NCS,Care Purchase - Learning Disability,54450,Direct Payments,552000,10/08/2011,1900060218,719.28,Redacted Personal Data,102217
Warrington Borough Council,http://statistics.data.gov.uk/id/local-authority/00EU,Environment & Regeneration,ER0,Highways Cont. Serv.,44220,Consult.& Prof. Serv,440000,10/08/2011,1900060222,"3,445.00",Enterprise Managed Services,109033
Warrington Borough Council,http://statistics.data.gov.uk/id/local-authority/00EU,Neighbourhood & Community Services,NCS,Lib - SureStart,51152,Junior Stock,400350,10/08/2011,1900060223,787.44,Bertrams,105746
Warrington Borough Council,http://statistics.data.gov.uk/id/local-authority/00EU,Neighbourhood & Community Services,NCS,Care Purchase - OPMH,54220,CP-Domicil.External,440950,10/08/2011,1900060224,"1,283.20",Safehands Network Ltd,103226
Warrington Borough Council,http://statistics.data.gov.uk/id/local-authority/00EU,Neighbourhood & Community Services,NCS,Care Purchase - OP & OT Central,54420,CP-Domicil.External,440950,10/08/2011,1900060224,"28,145.97",Safehands Network Ltd,103226
Warrington Borough Council,http://statistics.data.gov.uk/id/local-authority/00EU,Neighbourhood & Community Services,NCS,Care Purchase - PD,54440,CP-Domicil.External,440950,10/08/2011,1900060224,"5,662.47",Safehands Network Ltd,103226
Warrington Borough Council,http://statistics.data.gov.uk/id/local-authority/00EU,Neighbourhood & Community Services,NCS,Care Purchase Budget,54490,CP - Cont Care - External,441350,10/08/2011,1900060224,"1,947.61",Safehands Network Ltd,103226
Warrington Borough Council,http://statistics.data.gov.uk/id/local-authority/00EU,Neighbourhood & Community Services,NCS,Library Service - Prison Fund,51163,Adult Books,400300,10/08/2011,1900060225,"1,214.38",Bertrams,105746
Warrington Borough Council,http://statistics.data.gov.uk/id/local-authority/00EU,Neighbourhood & Community Services,NCS,Care Purchase - OPMH,54220,CP-Domicil.External,440950,10/08/2011,1900060226,"1,364.63",Dh Homecare,101961
Warrington Borough Council,http://statistics.data.gov.uk/id/local-authority/00EU,Neighbourhood & Community Services,NCS,Care Purchase - OP & OT Central,54420,CP-Domicil.External,440950,10/08/2011,1900060226,"24,798.70",Dh Homecare,101961
Warrington Borough Council,http://statistics.data.gov.uk/id/local-authority/00EU,Neighbourhood & Community Services,NCS,Care Purchase - PD,54440,CP-Domicil.External,440950,10/08/2011,1900060226,"3,921.27",Dh Homecare,101961
Warrington Borough Council,http://statistics.data.gov.uk/id/local-authority/00EU,Neighbourhood & Community Services,NCS,Care Purchase - PD,54440,CP-Domicil.External,440950,10/08/2011,1900060229,806.37,Bluebird Care Warrington,104094
Warrington Borough Council,http://statistics.data.gov.uk/id/local-authority/00EU,Neighbourhood & Community Services,NCS,Care Purchase - PD,54440,CP-Domicil.External,440950,10/08/2011,1900060230,716.36,Bluebird Care Warrington,104094
Warrington Borough Council,http://statistics.data.gov.uk/id/local-authority/00EU,Environment & Regeneration,ENP,Environment & Regeneration,82000,Consult.& Prof. Serv,440000,10/08/2011,1900060244,"1,920.00",Sda Consulting Llp,103628
Warrington Borough Council,http://statistics.data.gov.uk/id/local-authority/00EU,Environment & Regeneration,ENP,Environment & Regeneration,82000,Consult.& Prof. Serv,440000,10/08/2011,1900060245,"2,195.00",Ross Quality Control Limited,106280
Warrington Borough Council,http://statistics.data.gov.uk/id/local-authority/00EU,Neighbourhood & Community Services,NCS,Care Purchase - Learning Disability,54450,CP-Domicil.External,440950,10/08/2011,1900060249,658.8,Care Uk Care Solutions Ltd,102263
Warrington Borough Council,http://statistics.data.gov.uk/id/local-authority/00EU,Neighbourhood & Community Services,NCS,Care Purchase - Learning Disability,54450,CP-Domicil.External,440950,10/08/2011,1900060250,"1,610.40",Care Uk Care Solutions Ltd,102263
Warrington Borough Council,http://statistics.data.gov.uk/id/local-authority/00EU,Neighbourhood & Community Services,NCS,Care Purchase - Learning Disability,54450,Supporting People - External,441250,10/08/2011,1900060252,732,Care Uk Care Solutions Ltd,102263
Warrington Borough Council,http://statistics.data.gov.uk/id/local-authority/00EU,Neighbourhood & Community Services,NCS,Care Purchase - Mental Health Team 1,54230,CP-LongStayExternal,441150,10/08/2011,1900060253,"1,902.41",Ley Community Drug Services,107958
Warrington Borough Council,http://statistics.data.gov.uk/id/local-authority/00EU,Neighbourhood & Community Services,NCS,Care Purchase - Mental Health Team 3,54250,CP-LongStayExternal,441150,10/08/2011,1900060254,"1,902.41",Ley Community Drug Services,107958
Warrington Borough Council,http://statistics.data.gov.uk/id/local-authority/00EU,Neighbourhood & Community Services,NCS,Care Purchase - OP & OT Central,54420,CP-LongStayExternal,441150,10/08/2011,1900060255,"1,896.64",Ashley House Residential Home,103045
Warrington Borough Council,http://statistics.data.gov.uk/id/local-authority/00EU,Neighbourhood & Community Services,NCS,Care Purchase - Mental Health Team 3,54250,CP-LongStayExternal,441150,10/08/2011,1900060256,"2,048.00",Safeharbour Nursing Home,100824
Warrington Borough Council,http://statistics.data.gov.uk/id/local-authority/00EU,Neighbourhood & Community Services,NCS,Care Purchase - Learning Disability,54450,CP-LongStayExternal,441150,10/08/2011,1900060257,"3,508.00",Potens Ltd TA Heath Lodge,102481
Warrington Borough Council,http://statistics.data.gov.uk/id/local-authority/00EU,Neighbourhood & Community Services,NCS,Care Purchase - Learning Disability,54450,CP-Domicil.External,440950,10/08/2011,1900060258,"2,220.96",M-Power Activity Services Ltd,102186
Warrington Borough Council,http://statistics.data.gov.uk/id/local-authority/00EU,Neighbourhood & Community Services,NCS,Care Purchase - OPMH,54220,CP-LongStayExternal,441150,10/08/2011,1900060260,550,Barchester Healthcare Ltd,104548
Warrington Borough Council,http://statistics.data.gov.uk/id/local-authority/00EU,Neighbourhood & Community Services,NCS,Care Purchase - OPMH,54220,CP-LongStayExternal,441150,10/08/2011,1900060261,507.14,Barchester Healthcare Ltd,104548
Warrington Borough Council,http://statistics.data.gov.uk/id/local-authority/00EU,Neighbourhood & Community Services,NCS,Care Purchase - OP & OT Central,54420,CP-LongStayExternal,441150,10/08/2011,1900060262,"1,540.00",Barchester Healthcare Ltd,104548
Warrington Borough Council,http://statistics.data.gov.uk/id/local-authority/00EU,Neighbourhood & Community Services,NCS,Care Purchase - OP & OT Central,54420,CP-LongStayExternal,441150,10/08/2011,1900060263,"1,180.00",Barchester Healthcare Ltd,104548
Warrington Borough Council,http://statistics.data.gov.uk/id/local-authority/00EU,Neighbourhood & Community Services,NCS,Care Purchase - OP & OT Central,54420,CP-LongStayExternal,441150,10/08/2011,1900060265,"1,540.00",Barchester Healthcare Ltd,104548
Warrington Borough Council,http://statistics.data.gov.uk/id/local-authority/00EU,Neighbourhood & Community Services,NCS,Care Purchase - OP & OT Central,54420,CP-LongStayExternal,441150,10/08/2011,1900060266,500.32,Barchester Healthcare Ltd,104548
Warrington Borough Council,http://statistics.data.gov.uk/id/local-authority/00EU,Neighbourhood & Community Services,NCS,Care Purchase - OP & OT Central,54420,CP-LongStayExternal,441150,10/08/2011,1900060268,"1,540.00",Barchester Healthcare Ltd,104548
Warrington Borough Council,http://statistics.data.gov.uk/id/local-authority/00EU,Neighbourhood & Community Services,NCS,Care Purchase - Learning Disability,54450,CP-Domicil.External,440950,10/08/2011,1900060270,"1,610.40",Care Uk Care Solutions Ltd,102263
Warrington Borough Council,http://statistics.data.gov.uk/id/local-authority/00EU,Neighbourhood & Community Services,NCS,Care Purchase - OPMH,54220,CP-LongStayExternal,441150,10/08/2011,1900060274,"5,316.00",CareConcepts (Appleton) Ltd,105804
Warrington Borough Council,http://statistics.data.gov.uk/id/local-authority/00EU,Neighbourhood & Community Services,NCS,Care Purchase - OP & OT Central,54420,CP-LongStayExternal,441150,10/08/2011,1900060274,"7,024.71",CareConcepts (Appleton) Ltd,105804
Warrington Borough Council,http://statistics.data.gov.uk/id/local-authority/00EU,Neighbourhood & Community Services,NCS,Care Purchase - OPMH,54220,CP-Nursing Care-External,441200,10/08/2011,1900060274,"5,344.00",CareConcepts (Appleton) Ltd,105804
Warrington Borough Council,http://statistics.data.gov.uk/id/local-authority/00EU,Neighbourhood & Community Services,NCS,Care Purchase - OP & OT Central,54420,CP-Nursing Care-External,441200,10/08/2011,1900060274,"28,303.42",CareConcepts (Appleton) Ltd,105804
Warrington Borough Council,http://statistics.data.gov.uk/id/local-authority/00EU,Neighbourhood & Community Services,NCS,Care Purchase Budget,54490,CP - Cont Care - External,441350,10/08/2011,1900060274,"16,136.00",CareConcepts (Appleton) Ltd,105804
Warrington Borough Council,http://statistics.data.gov.uk/id/local-authority/00EU,Neighbourhood & Community Services,NCS,Care Purchase Budget,54490,CP Free Nursing Care External,443500,10/08/2011,1900060274,"15,668.33",CareConcepts (Appleton) Ltd,105804
Warrington Borough Council,http://statistics.data.gov.uk/id/local-authority/00EU,Neighbourhood & Community Services,NCS,Care Purchase - Learning Disability,54450,CP-Nursing Care-External,441200,10/08/2011,1900060275,"45,466.72",WCL - Warrington Community Living,105230
Warrington Borough Council,http://statistics.data.gov.uk/id/local-authority/00EU,Neighbourhood & Community Services,NCS,Care Purchase Budget,54490,CP Free Nursing Care External,443500,10/08/2011,1900060275,"3,534.40",WCL - Warrington Community Living,105230
Warrington Borough Council,http://statistics.data.gov.uk/id/local-authority/00EU,Neighbourhood & Community Services,NCS,Care Purchase Budget,54490,Voids,515150,10/08/2011,1900060275,"3,112.08",WCL - Warrington Community Living,105230
Warrington Borough Council,http://statistics.data.gov.uk/id/local-authority/00EU,Neighbourhood & Community Services,NCS,Care Purchase - OP & OT Central,54420,CP-Domicil.External,440950,10/08/2011,1900060277,898.28,WCL - Warrington Community Living,105230
Warrington Borough Council,http://statistics.data.gov.uk/id/local-authority/00EU,Neighbourhood & Community Services,NCS,Care Purchase - Learning Disability,54450,CP-Domicil.External,440950,10/08/2011,1900060277,"87,376.21",WCL - Warrington Community Living,105230
Warrington Borough Council,http://statistics.data.gov.uk/id/local-authority/00EU,Neighbourhood & Community Services,NCS,Care Purchase - OP & OT Central,54420,Supporting People - External,441250,10/08/2011,1900060277,"1,796.56",WCL - Warrington Community Living,105230
Warrington Borough Council,http://statistics.data.gov.uk/id/local-authority/00EU,Neighbourhood & Community Services,NCS,Care Purchase - Learning Disability,54450,Supporting People - External,441250,10/08/2011,1900060277,"14,055.44",WCL - Warrington Community Living,105230
Warrington Borough Council,http://statistics.data.gov.uk/id/local-authority/00EU,Neighbourhood & Community Services,NCS,Care Purchase Budget,54490,Voids,515150,10/08/2011,1900060277,"7,725.20",WCL - Warrington Community Living,105230
Warrington Borough Council,http://statistics.data.gov.uk/id/local-authority/00EU,Neighbourhood & Community Services,NCS,Care Purchase - OPMH,54220,CP-Domicil.External,440950,10/08/2011,1900060278,"7,405.18",Premier Care Cheshire Ltd,105142
Warrington Borough Council,http://statistics.data.gov.uk/id/local-authority/00EU,Neighbourhood & Community Services,NCS,Care Purchase - Mental Health Team 2,54240,CP-Domicil.External,440950,10/08/2011,1900060278,"1,105.16",Premier Care Cheshire Ltd,105142
Warrington Borough Council,http://statistics.data.gov.uk/id/local-authority/00EU,Neighbourhood & Community Services,NCS,Care Purchase - OP & OT Central,54420,CP-Domicil.External,440950,10/08/2011,1900060278,"60,502.77",Premier Care Cheshire Ltd,105142
Warrington Borough Council,http://statistics.data.gov.uk/id/local-authority/00EU,Neighbourhood & Community Services,NCS,Care Purchase - PD,54440,CP-Domicil.External,440950,10/08/2011,1900060278,"13,679.48",Premier Care Cheshire Ltd,105142
Warrington Borough Council,http://statistics.data.gov.uk/id/local-authority/00EU,Neighbourhood & Community Services,NCS,Care Purchase - Learning Disability,54450,CP-Domicil.External,440950,10/08/2011,1900060278,979.07,Premier Care Cheshire Ltd,105142
Warrington Borough Council,http://statistics.data.gov.uk/id/local-authority/00EU,Children & Young People,CHL,Adoption Team,31107,Subscriptions,470000,10/08/2011,1900060346,"4,300.00",Bury Metropolitan Borough Council,410019
Warrington Borough Council,http://statistics.data.gov.uk/id/local-authority/00EU,Environment & Regeneration,ER0,Customer Contact Centre,52201,Ticket Master Charges,490450,10/08/2011,1900060348,625,The Royal Airforce Charitable Trust,100652
Warrington Borough Council,http://statistics.data.gov.uk/id/local-authority/00EU,Environment & Regeneration,ER0,Customer Contact Centre,52201,Ticket Master Charges,490450,10/08/2011,1900060351,"1,466.28",Tansey'S Coaches Of Warrington,105166
Warrington Borough Council,http://statistics.data.gov.uk/id/local-authority/00EU,Children & Young People,CHL,Agency Placements,30904,CP ExternalOther Exp,440800,11/08/2011,1900060353,"1,132.00",Essandore Care,102775
Warrington Borough Council,http://statistics.data.gov.uk/id/local-authority/00EU,Children & Young People,CHL,Agency Placements,30904,CP ExternalOther Exp,440800,11/08/2011,1900060354,"8,341.52",Essandore Care,102775
Warrington Borough Council,http://statistics.data.gov.uk/id/local-authority/00EU,Children & Young People,CHL,Agency Placements,30904,CP ExternalOther Exp,440800,11/08/2011,1900060355,840,Bed Space,103530
Warrington Borough Council,http://statistics.data.gov.uk/id/local-authority/00EU,Children & Young People,CHL,Agency Placements,30904,CP ExternalOther Exp,440800,11/08/2011,1900060356,500,Bed Space,103530
Warrington Borough Council,http://statistics.data.gov.uk/id/local-authority/00EU,Children & Young People,CHL,Agency Placements,30904,CP ExternalOther Exp,440800,11/08/2011,1900060357,"9,742.86",Quality Protects Children,104027
Warrington Borough Council,http://statistics.data.gov.uk/id/local-authority/00EU,Children & Young People,CHL,Agency Placements,30904,CP ExternalOther Exp,440800,11/08/2011,1900060359,"5,892.90",Inspire Childrens Services,106447
Warrington Borough Council,http://statistics.data.gov.uk/id/local-authority/00EU,Children & Young People,CHL,DSG Inter Authority Recoupment,32009,Recoupment Charges,490700,11/08/2011,1900060360,"21,135.87",Wigan Council,410018
Warrington Borough Council,http://statistics.data.gov.uk/id/local-authority/00EU,Children & Young People,CHL,Agency Placements,30904,CP ExternalOther Exp,440800,11/08/2011,1900060361,"6,285.76",Inspire Childrens Services,106447
Warrington Borough Council,http://statistics.data.gov.uk/id/local-authority/00EU,Children & Young People,CHL,Agency Placements,30904,CP ExternalOther Exp,440800,11/08/2011,1900060362,"5,892.90",Inspire Childrens Services,106447
Warrington Borough Council,http://statistics.data.gov.uk/id/local-authority/00EU,Children & Young People,CHL,Agency Placements,30904,CP ExternalOther Exp,440800,11/08/2011,1900060363,"4,571.36",Inspire Childrens Services,106447
Warrington Borough Council,http://statistics.data.gov.uk/id/local-authority/00EU,Children & Young People,CHL,DSG Inter Authority Recoupment,32009,Recoupment Charges,490700,11/08/2011,1900060364,"3,443.31",Wigan Council,410018
Warrington Borough Council,http://statistics.data.gov.uk/id/local-authority/00EU,Children & Young People,CHL,DSG Independent School Fees,32011,Independent School Fees,490200,11/08/2011,1900060365,"17,608.00",Lakeside School Limited,103188
Warrington Borough Council,http://statistics.data.gov.uk/id/local-authority/00EU,Children & Young People,CHL,DSG Independent School Fees,32011,Independent School Fees,490200,11/08/2011,1900060368,"20,242.00",West Kirby Residential School,103625
Warrington Borough Council,http://statistics.data.gov.uk/id/local-authority/00EU,Children & Young People,CHL,Child Disability,32212,CP-Domicil.External,440950,11/08/2011,1900060370,702,Glenelg Support,107016
Warrington Borough Council,http://statistics.data.gov.uk/id/local-authority/00EU,Children & Young People,CHL,Child Disability,32212,CP-Domicil.External,440950,11/08/2011,1900060371,587.2,Allied Healthcare Group Ltd,100796
Warrington Borough Council,http://statistics.data.gov.uk/id/local-authority/00EU,Assistant Chief Executive,CEX,Housing Benefit,10340,Legal Costs Incurred,440200,11/08/2011,1900060377,700,Miss Claire Jones,103456
Warrington Borough Council,http://statistics.data.gov.uk/id/local-authority/00EU,Assistant Chief Executive,CEX,Chief Exec's Office,14000,Corporate Initiative,491000,11/08/2011,1900060385,"3,150.00",Wigan Council,410018
Warrington Borough Council,http://statistics.data.gov.uk/id/local-authority/00EU,Environment & Regeneration,ER1,Waste Disposal,41830,Recycling Credits,442750,11/08/2011,1900060387,577.55,Clothes Aid,105878
Warrington Borough Council,http://statistics.data.gov.uk/id/local-authority/00EU,Neighbourhood & Community Services,NCS,Care Purchase - Learning Disability,54450,CP ExternalOther Exp,440800,11/08/2011,1900060389,"6,380.84",HWCGS Care Ltd,108619
Warrington Borough Council,http://statistics.data.gov.uk/id/local-authority/00EU,Children & Young People,CHL,Foster Allowances,31106,Fostering Allowance,550050,11/08/2011,1900060406,"1,517.60",Redacted Personal Data,460012
Warrington Borough Council,http://statistics.data.gov.uk/id/local-authority/00EU,Children & Young People,CHL,Adoption Allowances,31108,Adoption Allowance,550300,11/08/2011,1900060415,847.5,Redacted Personal Data,109053
Warrington Borough Council,http://statistics.data.gov.uk/id/local-authority/00EU,Neighbourhood & Community Services,NCS,Care Purchase - OPMH,54220,CP-Nursing Care-External,441200,11/08/2011,1900060419,"2,064.00",St Monica Trust,104021
Warrington Borough Council,http://statistics.data.gov.uk/id/local-authority/00EU,Neighbourhood & Community Services,NCS,Care Purchase - OP & OT Central,54420,CP-Nursing Care-External,441200,11/08/2011,1900060420,"1,427.08",Four Seasons Ta Cherry Trees,103592
Warrington Borough Council,http://statistics.data.gov.uk/id/local-authority/00EU,Neighbourhood & Community Services,NCS,Care Purchase - Learning Disability,54450,CP-LongStayExternal,441150,11/08/2011,1900060421,"4,112.00",Wirral Autistic Society,105251
Warrington Borough Council,http://statistics.data.gov.uk/id/local-authority/00EU,Neighbourhood & Community Services,NCS,Care Purchase - Learning Disability,54450,CP-Day Care-External,441100,11/08/2011,1900060422,"17,517.28",Walton Lea Project,102953
Warrington Borough Council,http://statistics.data.gov.uk/id/local-authority/00EU,Neighbourhood & Community Services,NCS,Care Purchase - OP & OT Central,54420,CP-LongStayExternal,441150,11/08/2011,1900060423,"1,779.96",County Homes,104325
Warrington Borough Council,http://statistics.data.gov.uk/id/local-authority/00EU,Neighbourhood & Community Services,NCS,Care Purchase - Learning Disability,54450,CP ExternalOther Exp,440800,11/08/2011,1900060424,919.79,Macintyre Care,104907
Warrington Borough Council,http://statistics.data.gov.uk/id/local-authority/00EU,Neighbourhood & Community Services,NCS,Care Purchase - Learning Disability,54450,CP-Domicil.External,440950,11/08/2011,1900060425,"17,769.42",Macintyre Care,104907
Warrington Borough Council,http://statistics.data.gov.uk/id/local-authority/00EU,Neighbourhood & Community Services,NCS,Care Purchase - Learning Disability,54450,Supporting People - External,441250,11/08/2011,1900060425,"1,581.00",Macintyre Care,104907
Warrington Borough Council,http://statistics.data.gov.uk/id/local-authority/00EU,Neighbourhood & Community Services,NCS,Care Purchase - OPMH,54220,CP-Domicil.External,440950,11/08/2011,1900060427,759.52,Housing 21,100060
Warrington Borough Council,http://statistics.data.gov.uk/id/local-authority/00EU,Neighbourhood & Community Services,NCS,Care Purchase - OP & OT Central,54420,CP-Domicil.External,440950,11/08/2011,1900060427,"15,935.28",Housing 21,100060
Warrington Borough Council,http://statistics.data.gov.uk/id/local-authority/00EU,Neighbourhood & Community Services,NCS,Care Purchase - PD,54440,CP-Domicil.External,440950,11/08/2011,1900060427,"2,202.13",Housing 21,100060
Warrington Borough Council,http://statistics.data.gov.uk/id/local-authority/00EU,Neighbourhood & Community Services,NCS,Care Purchase - OP & OT Central,54420,CP-Domicil.External,440950,11/08/2011,1900060439,"1,259.52",Bluebird Care Warrington,104094
Warrington Borough Council,http://statistics.data.gov.uk/id/local-authority/00EU,Neighbourhood & Community Services,NCS,Care Purchase - OP & OT Central,54420,CP-Domicil.External,440950,11/08/2011,1900060440,509.32,Bluebird Care Warrington,104094
Warrington Borough Council,http://statistics.data.gov.uk/id/local-authority/00EU,People & Improvement,PIM,Regeneration Support,22240,"Campaigns,  Projects and Events",491950,11/08/2011,1900060441,550,Longford Neighbourhood Service Cent,107743
Warrington Borough Council,http://statistics.data.gov.uk/id/local-authority/00EU,Neighbourhood & Community Services,NCS,Care Purchase - OP & OT Central,54420,CP-Domicil.External,440950,11/08/2011,1900060443,566.16,Bluebird Care Warrington,104094
Warrington Borough Council,http://statistics.data.gov.uk/id/local-authority/00EU,Neighbourhood & Community Services,NCS,Care Purchase - OP & OT Central,54420,CP-Domicil.External,440950,11/08/2011,1900060445,693.28,Bluebird Care Warrington,104094
Warrington Borough Council,http://statistics.data.gov.uk/id/local-authority/00EU,Neighbourhood & Community Services,NCS,Care Purchase - OP & OT Central,54420,CP-Domicil.External,440950,11/08/2011,1900060446,509.6,Bluebird Care Warrington,104094
Warrington Borough Council,http://statistics.data.gov.uk/id/local-authority/00EU,Environment & Regeneration,ER0,Time Square,43551,Consult.& Prof. Serv,440000,11/08/2011,1900060448,770,Cobbetts Llp,102496
Warrington Borough Council,http://statistics.data.gov.uk/id/local-authority/00EU,Corporate Financing,COR,Corporate Planning Items,61020,Legal Costs Incurred,440200,11/08/2011,1900060449,"2,574.30",Weightman Llp,100768
Warrington Borough Council,http://statistics.data.gov.uk/id/local-authority/00EU,Environment & Regeneration,ENP,Environment & Regeneration,82000,Consult.& Prof. Serv,440000,11/08/2011,1900060451,"1,462.80",Ground Gas Solutions Ltd,106360
Warrington Borough Council,http://statistics.data.gov.uk/id/local-authority/00EU,Neighbourhood & Community Services,NCS,Care Purchase - OP & OT Central,54420,CP-Domicil.External,440950,11/08/2011,1900060452,"1,211.06",Bluebird Care Warrington,104094
Warrington Borough Council,http://statistics.data.gov.uk/id/local-authority/00EU,People & Improvement,PIM,People & Improvement,20000,Veh Maint. Materials,300000,11/08/2011,1900060453,"24,500.00",Halfords Ltd,104764
Warrington Borough Council,http://statistics.data.gov.uk/id/local-authority/00EU,Neighbourhood & Community Services,NCS,Care Purchase - OP & OT Central,54420,CP-Domicil.External,440950,11/08/2011,1900060457,608.44,Bluebird Care Warrington,104094
Warrington Borough Council,http://statistics.data.gov.uk/id/local-authority/00EU,Neighbourhood & Community Services,NCS,Care Purchase - OP & OT Central,54420,CP-Domicil.External,440950,11/08/2011,1900060459,"1,075.76",Bluebird Care Warrington,104094
Warrington Borough Council,http://statistics.data.gov.uk/id/local-authority/00EU,Children & Young People,CHL,Fostering Team,31105,Storage Facilities,441900,11/08/2011,1900060460,"2,788.64",Smart Storage Ltd,102745
Warrington Borough Council,http://statistics.data.gov.uk/id/local-authority/00EU,Neighbourhood & Community Services,NCS,Care Purchase - PD,54440,CP-Domicil.External,440950,11/08/2011,1900060462,721.56,Bluebird Care Warrington,104094
Warrington Borough Council,http://statistics.data.gov.uk/id/local-authority/00EU,Neighbourhood & Community Services,NCS,Care Purchase - OP & OT Central,54420,CP-Domicil.External,440950,11/08/2011,1900060464,"1,075.76",Bluebird Care Warrington,104094
Warrington Borough Council,http://statistics.data.gov.uk/id/local-authority/00EU,Neighbourhood & Community Services,NCS,Care Purchase - OP & OT Central,54420,CP-Domicil.External,440950,11/08/2011,1900060485,530.75,Bluebird Care Warrington,104094
Warrington Borough Council,http://statistics.data.gov.uk/id/local-authority/00EU,Neighbourhood & Community Services,NCS,Care Purchase - OP & OT Central,54420,CP-LongStayExternal,441150,11/08/2011,1900060488,529.71,CLS Care Services Ltd,100169
Warrington Borough Council,http://statistics.data.gov.uk/id/local-authority/00EU,Children & Young People,CHL,DSG Support for SEN,32013,Childrens Adaptations,441800,11/08/2011,1900060501,"1,918.75",Jcm Seating Solutions,104828
Warrington Borough Council,http://statistics.data.gov.uk/id/local-authority/00EU,Environment & Regeneration,ER0,ICT & Business Improvement,23020,ICT Comms - Line Rental,450200,11/08/2011,1900060509,"2,803.00",Cable & Wireless Communications,100023
Warrington Borough Council,http://statistics.data.gov.uk/id/local-authority/00EU,Neighbourhood & Community Services,NCS,Care Purchase Budget,54490,CP ExternalOther Exp,440800,11/08/2011,1900060518,"3,588.10",St Marys Care Centre,101503
Warrington Borough Council,http://statistics.data.gov.uk/id/local-authority/00EU,Neighbourhood & Community Services,NCS,Care Purchase - Mental Health Team 1,54230,CP-Day Care-External,441100,11/08/2011,1900060519,"5,961.48",Tru Limited,105194
Warrington Borough Council,http://statistics.data.gov.uk/id/local-authority/00EU,Neighbourhood & Community Services,NCS,Care Purchase - OP & OT Central,54420,CP-Domicil.External,440950,11/08/2011,1900060525,"1,781.92",Bluebird Care Warrington,104094
Warrington Borough Council,http://statistics.data.gov.uk/id/local-authority/00EU,Children & Young People,CHL,Children with Disabilities,31005,Sect 17 (Child Act),490950,11/08/2011,1900060526,612.2,Redacted Personal Data,106926
Warrington Borough Council,http://statistics.data.gov.uk/id/local-authority/00EU,Neighbourhood & Community Services,NCS,Care Purchase - OP & OT Central,54420,CP-Domicil.External,440950,11/08/2011,1900060527,537.88,Bluebird Care Warrington,104094
Warrington Borough Council,http://statistics.data.gov.uk/id/local-authority/00EU,Environment & Regeneration,ER0,Information Governance,23060,Consult.& Prof. Serv,440000,11/08/2011,1900060528,850,Nta Monitor Limited,100967
Warrington Borough Council,http://statistics.data.gov.uk/id/local-authority/00EU,Neighbourhood & Community Services,NCS,Care Purchase - OP & OT Central,54420,CP-Domicil.External,440950,11/08/2011,1900060529,566.16,Bluebird Care Warrington,104094
Warrington Borough Council,http://statistics.data.gov.uk/id/local-authority/00EU,Environment & Regeneration,ER0,ICT & Business Improvement,23020,ICT Comms - Line Rental,450200,11/08/2011,1900060531,522.87,Virgin Media Business,106824
Warrington Borough Council,http://statistics.data.gov.uk/id/local-authority/00EU,Neighbourhood & Community Services,NCS,Care Purchase - PD,54440,CP-Domicil.External,440950,11/08/2011,1900060532,976.6,Bluebird Care Warrington,104094
Warrington Borough Council,http://statistics.data.gov.uk/id/local-authority/00EU,Children & Young People,CHL,SF Harnessing Technology,32109,Computer Hardware - Maintenance,450750,11/08/2011,1900060543,"1,565.25",Virgin Media Business,106824
Warrington Borough Council,http://statistics.data.gov.uk/id/local-authority/00EU,Neighbourhood & Community Services,NCS,Care Purchase - OP & OT Central,54420,CP-Domicil.External,440950,11/08/2011,1900060548,"1,507.76",Bluebird Care Warrington,104094
Warrington Borough Council,http://statistics.data.gov.uk/id/local-authority/00EU,Neighbourhood & Community Services,NCS,Care Purchase Budget,54490,CP - Cont Care - External,441350,11/08/2011,1900060559,"1,640.80",Bluebird Care Warrington,104094
Warrington Borough Council,http://statistics.data.gov.uk/id/local-authority/00EU,Neighbourhood & Community Services,NCS,Care Purchase - PD,54440,CP-Domicil.External,440950,11/08/2011,1900060561,569.24,Bluebird Care Warrington,104094
Warrington Borough Council,http://statistics.data.gov.uk/id/local-authority/00EU,Neighbourhood & Community Services,NCS,Care Purchase - OP & OT Central,54420,CP-Domicil.External,440950,11/08/2011,1900060564,535.6,Bluebird Care Warrington,104094
Warrington Borough Council,http://statistics.data.gov.uk/id/local-authority/00EU,Neighbourhood & Community Services,NCS,Care Purchase - OPMH,54220,CP-LongStayExternal,441150,11/08/2011,1900060566,"4,813.96",WCL - Warrington Community Living,105230
Warrington Borough Council,http://statistics.data.gov.uk/id/local-authority/00EU,Neighbourhood & Community Services,NCS,Care Purchase - Learning Disability,54450,CP-LongStayExternal,441150,11/08/2011,1900060566,"32,981.20",WCL - Warrington Community Living,105230
Warrington Borough Council,http://statistics.data.gov.uk/id/local-authority/00EU,Children & Young People,CHL,Agency Placements,30904,Fostering Accommodation,441050,12/08/2011,1900060567,"5,921.00",The Fostering Partnership Ltd,106274
Warrington Borough Council,http://statistics.data.gov.uk/id/local-authority/00EU,Children & Young People,CHL,Agency Placements,30904,Fostering Accommodation,441050,12/08/2011,1900060568,"3,596.00",Families at Familycare Limited,108419
Warrington Borough Council,http://statistics.data.gov.uk/id/local-authority/00EU,Children & Young People,CHL,Agency Placements,30904,Fostering Accommodation,441050,12/08/2011,1900060569,"2,157.60",Families at Familycare Limited,108419
Warrington Borough Council,http://statistics.data.gov.uk/id/local-authority/00EU,Children & Young People,CHL,Agency Placements,30904,Fostering Accommodation,441050,12/08/2011,1900060570,"2,840.84",Fostering Solutions (North West),101226
Warrington Borough Council,http://statistics.data.gov.uk/id/local-authority/00EU,Children & Young People,CHL,Agency Placements,30904,Fostering Accommodation,441050,12/08/2011,1900060571,"2,990.26",Fostering Solutions (North West),101226
Warrington Borough Council,http://statistics.data.gov.uk/id/local-authority/00EU,Children & Young People,CHL,Agency Placements,30904,Fostering Accommodation,441050,12/08/2011,1900060573,"3,377.14",Fostering Solutions (North West),101226
Warrington Borough Council,http://statistics.data.gov.uk/id/local-authority/00EU,Children & Young People,CHL,Agency Placements,30904,Fostering Accommodation,441050,12/08/2011,1900060575,875.9,Swiis Foster Care,106223
Warrington Borough Council,http://statistics.data.gov.uk/id/local-authority/00EU,Children & Young People,CHL,Agency Placements,30904,Fostering Accommodation,441050,12/08/2011,1900060576,875.9,Swiis Foster Care,106223
Warrington Borough Council,http://statistics.data.gov.uk/id/local-authority/00EU,Children & Young People,CHL,Agency Placements,30904,Fostering Accommodation,441050,12/08/2011,1900060577,"3,520.71",Lorimer Foster Services,101337
Warrington Borough Council,http://statistics.data.gov.uk/id/local-authority/00EU,Children & Young People,CHL,Agency Placements,30904,Fostering Accommodation,441050,12/08/2011,1900060578,"3,764.29",Lorimer Foster Services,101337
Warrington Borough Council,http://statistics.data.gov.uk/id/local-authority/00EU,Children & Young People,CHL,Agency Placements,30904,Fostering Accommodation,441050,12/08/2011,1900060579,"3,520.71",Lorimer Foster Services,101337
Warrington Borough Council,http://statistics.data.gov.uk/id/local-authority/00EU,Children & Young People,CHL,Agency Placements,30904,Fostering Accommodation,441050,12/08/2011,1900060580,"3,542.86",Lorimer Foster Services,101337
Warrington Borough Council,http://statistics.data.gov.uk/id/local-authority/00EU,Children & Young People,CHL,Agency Placements,30904,Fostering Accommodation,441050,12/08/2011,1900060581,"3,068.70",National Fostering Agency England,102141
Warrington Borough Council,http://statistics.data.gov.uk/id/local-authority/00EU,Children & Young People,CHL,Agency Placements,30904,Fostering Accommodation,441050,12/08/2011,1900060582,"2,978.40",National Fostering Agency England,102141
Warrington Borough Council,http://statistics.data.gov.uk/id/local-authority/00EU,Children & Young People,CHL,Agency Placements,30904,Fostering Accommodation,441050,12/08/2011,1900060583,"3,007.20",National Fostering Agency England,102141
Warrington Borough Council,http://statistics.data.gov.uk/id/local-authority/00EU,Children & Young People,CHL,Agency Placements,30904,Fostering Accommodation,441050,12/08/2011,1900060584,"3,107.44",National Fostering Agency England,102141
Warrington Borough Council,http://statistics.data.gov.uk/id/local-authority/00EU,Children & Young People,CHL,Agency Placements,30904,Fostering Accommodation,441050,12/08/2011,1900060585,"3,170.99",National Fostering Agency England,102141
Warrington Borough Council,http://statistics.data.gov.uk/id/local-authority/00EU,Children & Young People,CHL,Agency Placements,30904,Fostering Accommodation,441050,12/08/2011,1900060586,"3,077.68",National Fostering Agency England,102141
Warrington Borough Council,http://statistics.data.gov.uk/id/local-authority/00EU,Environment & Regeneration,ER0,Markets,43711,Resaleables,400600,12/08/2011,1900060593,"1,773.88",National Express Ltd,104957
Warrington Borough Council,http://statistics.data.gov.uk/id/local-authority/00EU,Environment & Regeneration,ENO,Housing Projects,82008,Works Contract Paymt,442500,12/08/2011,1900060595,"5,173.23",Bullock Construction Ltd,105808
Warrington Borough Council,http://statistics.data.gov.uk/id/local-authority/00EU,Environment & Regeneration,ENO,Housing Projects,82008,Works Contract Paymt,442500,12/08/2011,1900060599,"2,500.00",Davis Langdon Llp,103123
Warrington Borough Council,http://statistics.data.gov.uk/id/local-authority/00EU,Neighbourhood & Community Services,NCS,DAT Pooled Budget,53860,Drug Action,443600,12/08/2011,1900060601,891,Co-Op Pharmacy Ltd,101287
Warrington Borough Council,http://statistics.data.gov.uk/id/local-authority/00EU,Balance Sheet,BAL,Single Billing Holding Account,91130,Agency Supply - GF,180000,12/08/2011,1900060605,"39,919.02",Comensura,102009
Warrington Borough Council,http://statistics.data.gov.uk/id/local-authority/00EU,Children & Young People,CHL,CiC Team 1,31100,Legal Costs Incurred,440200,12/08/2011,1900060607,"2,225.00",Hmcs,440115
Warrington Borough Council,http://statistics.data.gov.uk/id/local-authority/00EU,Neighbourhood & Community Services,NCS,DAT Pooled Budget,53860,Drug Action,443600,12/08/2011,1900060616,522,Orford Pharmacy,101867
Warrington Borough Council,http://statistics.data.gov.uk/id/local-authority/00EU,Balance Sheet,BAL,Single Billing Holding Account,91130,Agency Supply - GF,180000,12/08/2011,1900060618,"49,795.67",Comensura,102009
Warrington Borough Council,http://statistics.data.gov.uk/id/local-authority/00EU,Environment & Regeneration,ER1,Walton Estate,41430,Planned Maint Fund,200600,12/08/2011,1900060619,"42,740.00",Marshalls Mono Ltd,107986
Warrington Borough Council,http://statistics.data.gov.uk/id/local-authority/00EU,Children & Young People,CHL,ABG SDG LA Central,32419,Works Contract Paymt,442500,12/08/2011,1900060622,780.06,Paragon Construction Group Ltd,103608
Warrington Borough Council,http://statistics.data.gov.uk/id/local-authority/00EU,Environment & Regeneration,ER0,Energy Conservation,43344,Building Work,200850,12/08/2011,1900060630,"6,200.00",Team,102520
Warrington Borough Council,http://statistics.data.gov.uk/id/local-authority/00EU,Environment & Regeneration,ER0,P.F.I.,43630,PFI,480000,15/08/2011,1900060642,"76,125.00",Arena Housing,102199
Warrington Borough Council,http://statistics.data.gov.uk/id/local-authority/00EU,Children & Young People,CHL,CiC Team 1,31100,Looked after children in Warrington,301000,15/08/2011,1900060643,895,Little Acorns Day Nursery,400012
Warrington Borough Council,http://statistics.data.gov.uk/id/local-authority/00EU,Children & Young People,CHL,CiC Team 1,31100,Looked after children in Warrington,301000,15/08/2011,1900060645,895,Little Acorns Day Nursery,400012
Warrington Borough Council,http://statistics.data.gov.uk/id/local-authority/00EU,Children & Young People,CHL,CiC Team 1,31100,Looked after children in Warrington,301000,15/08/2011,1900060646,870.5,Little Acorns Day Nursery,400012
Warrington Borough Council,http://statistics.data.gov.uk/id/local-authority/00EU,Children & Young People,CHL,CiC Team 1,31100,Looked after children in Warrington,301000,15/08/2011,1900060648,"1,093.00",Little Acorns Day Nursery,400012
Warrington Borough Council,http://statistics.data.gov.uk/id/local-authority/00EU,Environment & Regeneration,ER0,Homelessness,43650,Gen. Personal Needs,490850,15/08/2011,1900060654,"1,654.60",Warrington Housing Association,101208
Warrington Borough Council,http://statistics.data.gov.uk/id/local-authority/00EU,Environment & Regeneration,ER0,Alder Lodge Supporting People,43651,Security Guards,441000,15/08/2011,1900060655,943.55,Akme Securitas Ltd,105276
Warrington Borough Council,http://statistics.data.gov.uk/id/local-authority/00EU,Environment & Regeneration,ER0,Alder Lodge Supporting People,43651,Security Guards,441000,15/08/2011,1900060656,943.55,Akme Securitas Ltd,105276
Warrington Borough Council,http://statistics.data.gov.uk/id/local-authority/00EU,Environment & Regeneration,ER0,Alder Lodge Supporting People,43651,Security Guards,441000,15/08/2011,1900060657,943.55,Akme Securitas Ltd,105276
Warrington Borough Council,http://statistics.data.gov.uk/id/local-authority/00EU,Environment & Regeneration,ER0,Alder Lodge Supporting People,43651,Security Guards,441000,15/08/2011,1900060658,943.55,Akme Securitas Ltd,105276
Warrington Borough Council,http://statistics.data.gov.uk/id/local-authority/00EU,Environment & Regeneration,ER0,Homelessness,43650,B.& B.Allowances,525050,15/08/2011,1900060662,600,Villaggio Hotel,108074
Warrington Borough Council,http://statistics.data.gov.uk/id/local-authority/00EU,Neighbourhood & Community Services,NCS,Care Purchase - OP & OT Central,54420,Direct Payments,552000,15/08/2011,1900060665,613.44,Redacted Personal Data,102180
Warrington Borough Council,http://statistics.data.gov.uk/id/local-authority/00EU,Neighbourhood & Community Services,NCS,Care Purchase - Learning Disability,54450,Direct Payments,552000,15/08/2011,1900060666,"1,973.40",Redacted Personal Data,101310
Warrington Borough Council,http://statistics.data.gov.uk/id/local-authority/00EU,Neighbourhood & Community Services,NCS,Care Purchase - PD,54440,Direct Payments,552000,15/08/2011,1900060667,"1,888.48",Redacted Personal Data,100678
Warrington Borough Council,http://statistics.data.gov.uk/id/local-authority/00EU,Neighbourhood & Community Services,NCS,Care Purchase - OP & OT Central,54420,Direct Payments,552000,15/08/2011,1900060668,"1,651.17",Redacted Personal Data,460502
Warrington Borough Council,http://statistics.data.gov.uk/id/local-authority/00EU,Children & Young People,CHL,Child Disability,32212,Direct Payments,552000,15/08/2011,1900060671,951.43,Redacted Personal Data,460160
Warrington Borough Council,http://statistics.data.gov.uk/id/local-authority/00EU,Children & Young People,CHL,Child Disability,32212,Direct Payments,552000,15/08/2011,1900060671,666,Redacted Personal Data,460160
Warrington Borough Council,http://statistics.data.gov.uk/id/local-authority/00EU,Neighbourhood & Community Services,NCS,Care Purchase - Learning Disability,54450,Direct Payments,552000,15/08/2011,1900060675,680,Redacted Personal Data,460115
Warrington Borough Council,http://statistics.data.gov.uk/id/local-authority/00EU,Neighbourhood & Community Services,NCS,Care Purchase - OP & OT Central,54420,Direct Payments,552000,15/08/2011,1900060676,"1,161.30",Redacted Personal Data,460483
Warrington Borough Council,http://statistics.data.gov.uk/id/local-authority/00EU,Neighbourhood & Community Services,NCS,Care Purchase - PD,54440,Direct Payments,552000,15/08/2011,1900060677,"1,485.40",Redacted Personal Data,101528
Warrington Borough Council,http://statistics.data.gov.uk/id/local-authority/00EU,Neighbourhood & Community Services,NCS,Care Purchase - PD,54440,Direct Payments,552000,15/08/2011,1900060677,"1,106.40",Redacted Personal Data,101528
Warrington Borough Council,http://statistics.data.gov.uk/id/local-authority/00EU,Neighbourhood & Community Services,NCS,Care Purchase - PD,54440,Direct Payments,552000,15/08/2011,1900060678,"1,039.78",Redacted Personal Data,101219
Warrington Borough Council,http://statistics.data.gov.uk/id/local-authority/00EU,Environment & Regeneration,ER0,Homelessness,43650,B.& B.Allowances,525050,15/08/2011,1900060681,577.5,Villaggio Hotel,108074
Warrington Borough Council,http://statistics.data.gov.uk/id/local-authority/00EU,Environment & Regeneration,ER0,Homelessness,43650,B.& B.Allowances,525050,15/08/2011,1900060682,536.25,Villaggio Hotel,108074
Warrington Borough Council,http://statistics.data.gov.uk/id/local-authority/00EU,Neighbourhood & Community Services,NCS,Care Purchase - PD,54440,CP Adult Placement,443450,15/08/2011,1900060683,"1,083.38",Redacted Personal Data,108999
Warrington Borough Council,http://statistics.data.gov.uk/id/local-authority/00EU,Assistant Chief Executive,CEX,Coroners Service,11100,Consult.& Prof. Serv,440000,15/08/2011,1900060684,"1,254.96",Accent Uk,100435
Warrington Borough Council,http://statistics.data.gov.uk/id/local-authority/00EU,Assistant Chief Executive,CEX,Coroners Service,11100,Consult.& Prof. Serv,440000,15/08/2011,1900060685,"1,848.55",Dr J E Napier,100061
Warrington Borough Council,http://statistics.data.gov.uk/id/local-authority/00EU,Children & Young People,CHL,Agency Placements,30904,CP ExternalOther Exp,440800,15/08/2011,1900060686,"5,714.24",Crossway Services,107762
Warrington Borough Council,http://statistics.data.gov.uk/id/local-authority/00EU,Children & Young People,CHL,Agency Placements,30904,CP ExternalOther Exp,440800,15/08/2011,1900060687,"12,798.59",Castle Homes Care Ltd,108070
Warrington Borough Council,http://statistics.data.gov.uk/id/local-authority/00EU,Children & Young People,CHL,Agency Placements,30904,CP-LongStayExternal,441150,15/08/2011,1900060688,"1,520.00",Wargrave House School,400175
Warrington Borough Council,http://statistics.data.gov.uk/id/local-authority/00EU,Children & Young People,CHL,Agency Placements,30904,CP-LongStayExternal,441150,15/08/2011,1900060689,760,Wargrave House School,400175
Warrington Borough Council,http://statistics.data.gov.uk/id/local-authority/00EU,Children & Young People,CHL,Agency Placements,30904,CP-LongStayExternal,441150,15/08/2011,1900060690,646.5,Wargrave House School,400175
Warrington Borough Council,http://statistics.data.gov.uk/id/local-authority/00EU,Children & Young People,CHL,Agency Placements,30904,CP-LongStayExternal,441150,15/08/2011,1900060691,"1,900.00",Wargrave House School,400175
Warrington Borough Council,http://statistics.data.gov.uk/id/local-authority/00EU,Children & Young People,CHL,Agency Placements,30904,CP-LongStayExternal,441150,15/08/2011,1900060693,"1,293.00",Wargrave House School,400175
Warrington Borough Council,http://statistics.data.gov.uk/id/local-authority/00EU,Children & Young People,CHL,Agency Placements,30904,CP-LongStayExternal,441150,15/08/2011,1900060694,"1,163.25",Wargrave House School,400175
Warrington Borough Council,http://statistics.data.gov.uk/id/local-authority/00EU,Children & Young People,CHL,Agency Placements,30904,CP-LongStayExternal,441150,15/08/2011,1900060695,"11,960.25",Wargrave House School,400175
Warrington Borough Council,http://statistics.data.gov.uk/id/local-authority/00EU,Children & Young People,CHL,Agency Placements,30904,CP-LongStayExternal,441150,15/08/2011,1900060696,775.5,Wargrave House School,400175
Warrington Borough Council,http://statistics.data.gov.uk/id/local-authority/00EU,Children & Young People,CHL,Agency Placements,30904,CP-LongStayExternal,441150,15/08/2011,1900060697,"1,163.25",Wargrave House School,400175
Warrington Borough Council,http://statistics.data.gov.uk/id/local-authority/00EU,Children & Young People,CHL,Agency Placements,30904,CP-LongStayExternal,441150,15/08/2011,1900060698,775.5,Wargrave House School,400175
Warrington Borough Council,http://statistics.data.gov.uk/id/local-authority/00EU,Children & Young People,CHL,Agency Placements,30904,CP-LongStayExternal,441150,15/08/2011,1900060699,"1,163.25",Wargrave House School,400175
Warrington Borough Council,http://statistics.data.gov.uk/id/local-authority/00EU,Children & Young People,CHL,Agency Placements,30904,CP-LongStayExternal,441150,15/08/2011,1900060700,775.5,Wargrave House School,400175
Warrington Borough Council,http://statistics.data.gov.uk/id/local-authority/00EU,Children & Young People,CHL,Agency Placements,30904,CP-LongStayExternal,441150,15/08/2011,1900060701,775.5,Wargrave House School,400175
Warrington Borough Council,http://statistics.data.gov.uk/id/local-authority/00EU,Children & Young People,CHL,Placement Services Team,31103,Accommodation Allowance,550650,15/08/2011,1900060702,598.04,Arena Options,101746
Warrington Borough Council,http://statistics.data.gov.uk/id/local-authority/00EU,Children & Young People,CHL,Placement Services Team,31103,Accommodation Allowance,550650,15/08/2011,1900060703,598.04,Arena Options,101746
Warrington Borough Council,http://statistics.data.gov.uk/id/local-authority/00EU,Children & Young People,CHL,Agency Placements,30904,CP ExternalOther Exp,440800,15/08/2011,1900060704,810,Bed Space,103530
Warrington Borough Council,http://statistics.data.gov.uk/id/local-authority/00EU,Children & Young People,CHL,Agency Placements,30904,CP ExternalOther Exp,440800,15/08/2011,1900060705,810,Bed Space,103530
Warrington Borough Council,http://statistics.data.gov.uk/id/local-authority/00EU,Children & Young People,CHL,Agency Placements,30904,CP ExternalOther Exp,440800,15/08/2011,1900060706,810,Bed Space,103530
Warrington Borough Council,http://statistics.data.gov.uk/id/local-authority/00EU,Children & Young People,CHL,Agency Placements,30904,CP ExternalOther Exp,440800,15/08/2011,1900060708,930,Bed Space,103530
Warrington Borough Council,http://statistics.data.gov.uk/id/local-authority/00EU,Children & Young People,CHL,Agency Placements,30904,CP ExternalOther Exp,440800,15/08/2011,1900060709,500,Bed Space,103530
Warrington Borough Council,http://statistics.data.gov.uk/id/local-authority/00EU,Children & Young People,CHL,Agency Placements,30904,CP ExternalOther Exp,440800,15/08/2011,1900060710,"11,071.34",Quality Time Care Ltd,103207
Warrington Borough Council,http://statistics.data.gov.uk/id/local-authority/00EU,Children & Young People,CHL,Agency Placements,30904,CP ExternalOther Exp,440800,15/08/2011,1900060715,"12,178.66",Keys Child Care Ltd,100391
Warrington Borough Council,http://statistics.data.gov.uk/id/local-authority/00EU,Children & Young People,CHL,Agency Placements,30904,CP ExternalOther Exp,440800,15/08/2011,1900060716,"2,125.00",Keys Child Care Ltd,100391
Warrington Borough Council,http://statistics.data.gov.uk/id/local-authority/00EU,Children & Young People,CHL,Agency Placements,30904,CP ExternalOther Exp,440800,15/08/2011,1900060718,"1,275.00",Keys Child Care Ltd,100391
Warrington Borough Council,http://statistics.data.gov.uk/id/local-authority/00EU,Children & Young People,CHL,Agency Placements,30904,CP ExternalOther Exp,440800,15/08/2011,1900060719,"2,125.00",Keys Child Care Ltd,100391
Warrington Borough Council,http://statistics.data.gov.uk/id/local-authority/00EU,Assistant Chief Executive,CEX,Coroners Service,11100,Consult.& Prof. Serv,440000,15/08/2011,1900060720,595.9,Dr C P Johnson,104840
Warrington Borough Council,http://statistics.data.gov.uk/id/local-authority/00EU,Children & Young People,CHL,Agency Placements,30904,CP ExternalOther Exp,440800,15/08/2011,1900060721,"11,237.50",Quality Time Care Ltd,103207
Warrington Borough Council,http://statistics.data.gov.uk/id/local-authority/00EU,Assistant Chief Executive,CEX,Coroners Service,11100,Post Mortem Fees-Rep,440250,15/08/2011,1900060732,645.5,Dr B.N.A Hamid,100354
Warrington Borough Council,http://statistics.data.gov.uk/id/local-authority/00EU,Assistant Chief Executive,CEX,Coroners Service,11100,Consult.& Prof. Serv,440000,15/08/2011,1900060738,840,Dr Stuart D Rosen,107361
Warrington Borough Council,http://statistics.data.gov.uk/id/local-authority/00EU,Assistant Chief Executive,CEX,Coroners Service,11100,Consult.& Prof. Serv,440000,15/08/2011,1900060740,600,Analysis,109035
Warrington Borough Council,http://statistics.data.gov.uk/id/local-authority/00EU,Children & Young People,CHL,Foster Allowances,31106,Training,190150,15/08/2011,1900060751,710,Action Training Services,104449
Warrington Borough Council,http://statistics.data.gov.uk/id/local-authority/00EU,Environment & Regeneration,ER1,Transport Holding Account,41311,Road Fund Licences,300200,15/08/2011,1900060752,541.67,Post Office Counters Ltd,100004
Warrington Borough Council,http://statistics.data.gov.uk/id/local-authority/00EU,Environment & Regeneration,ER1,Transport Holding Account,41311,Road Fund Licences,300200,15/08/2011,1900060752,541.67,Post Office Counters Ltd,100004
Warrington Borough Council,http://statistics.data.gov.uk/id/local-authority/00EU,Environment & Regeneration,ER1,Transport Holding Account,41311,Road Fund Licences,300200,15/08/2011,1900060752,541.67,Post Office Counters Ltd,100004
Warrington Borough Council,http://statistics.data.gov.uk/id/local-authority/00EU,Environment & Regeneration,ER1,Transport Holding Account,41311,Road Fund Licences,300200,15/08/2011,1900060752,541.67,Post Office Counters Ltd,100004
Warrington Borough Council,http://statistics.data.gov.uk/id/local-authority/00EU,Children & Young People,CHL,Commissioning,31116,CP ExternalOther Exp,440800,15/08/2011,1900060757,"4,899.43",St Josephs Family Centre,105100
Warrington Borough Council,http://statistics.data.gov.uk/id/local-authority/00EU,Children & Young People,CHL,Agency Placements,30904,CP ExternalOther Exp,440800,15/08/2011,1900060758,"17,492.99",Prospects for Young People Ltd,108467
Warrington Borough Council,http://statistics.data.gov.uk/id/local-authority/00EU,Children & Young People,CHL,Agency Placements,30904,CP-LongStayExternal,441150,15/08/2011,1900060759,760,Wargrave House School,400175
Warrington Borough Council,http://statistics.data.gov.uk/id/local-authority/00EU,Children & Young People,CHL,Agency Placements,30904,CP ExternalOther Exp,440800,15/08/2011,1900060760,"17,143.00",Prospects for Young People Ltd,108467
Warrington Borough Council,http://statistics.data.gov.uk/id/local-authority/00EU,Assistant Chief Executive,CEX,Coroners Service,11100,Removal Bodies & Exc,440350,16/08/2011,1900060763,716.51,Crewe Funeral Services,101724
Warrington Borough Council,http://statistics.data.gov.uk/id/local-authority/00EU,Assistant Chief Executive,CEX,Coroners Service,11100,Post Mortem Fees-Rep,440250,16/08/2011,1900060765,"1,003.00",Dr W E Kenyon,104851
Warrington Borough Council,http://statistics.data.gov.uk/id/local-authority/00EU,Children & Young People,CHL,DSG Inter Authority Recoupment,32009,Recoupment Charges,490700,16/08/2011,1900060766,"1,550.00",Oliver House Priory,107946
Warrington Borough Council,http://statistics.data.gov.uk/id/local-authority/00EU,Children & Young People,CHL,Agency Placements,30904,CP ExternalOther Exp,440800,16/08/2011,1900060768,723.2,The Together Trust,101518
Warrington Borough Council,http://statistics.data.gov.uk/id/local-authority/00EU,Children & Young People,CHL,Agency Placements,30904,Fostering Accommodation,441050,16/08/2011,1900060769,"3,299.33",National Fostering Agency Scotland,108289
Warrington Borough Council,http://statistics.data.gov.uk/id/local-authority/00EU,Children & Young People,CHL,Commissioning,31116,CP ExternalOther Exp,440800,16/08/2011,1900060770,"20,239.00",The Childrens Society Services Ltd,104601
Warrington Borough Council,http://statistics.data.gov.uk/id/local-authority/00EU,Children & Young People,CHL,Agency Placements,30904,CP ExternalOther Exp,440800,16/08/2011,1900060771,"1,808.00",The Together Trust,101518
Warrington Borough Council,http://statistics.data.gov.uk/id/local-authority/00EU,Children & Young People,CHL,Agency Placements,30904,CP ExternalOther Exp,440800,16/08/2011,1900060772,"2,531.20",The Together Trust,101518
Warrington Borough Council,http://statistics.data.gov.uk/id/local-authority/00EU,Children & Young People,CHL,Agency Placements,30904,CP ExternalOther Exp,440800,16/08/2011,1900060773,723.2,The Together Trust,101518
Warrington Borough Council,http://statistics.data.gov.uk/id/local-authority/00EU,Children & Young People,CHL,Agency Placements,30904,CP ExternalOther Exp,440800,16/08/2011,1900060774,"2,774.80",The Together Trust,101518
Warrington Borough Council,http://statistics.data.gov.uk/id/local-authority/00EU,Children & Young People,CHL,Agency Placements,30904,CP ExternalOther Exp,440800,16/08/2011,1900060775,"15,500.00",Quality Education with Care Limited,107393
Warrington Borough Council,http://statistics.data.gov.uk/id/local-authority/00EU,Children & Young People,CHL,Agency Placements,30904,CP ExternalOther Exp,440800,16/08/2011,1900060776,"3,121.65",The Together Trust,101518
Warrington Borough Council,http://statistics.data.gov.uk/id/local-authority/00EU,Children & Young People,CHL,Agency Placements,30904,CP ExternalOther Exp,440800,16/08/2011,1900060777,"3,121.65",The Together Trust,101518
Warrington Borough Council,http://statistics.data.gov.uk/id/local-authority/00EU,Children & Young People,CHL,Agency Placements,30904,CP ExternalOther Exp,440800,16/08/2011,1900060778,"2,774.80",The Together Trust,101518
Warrington Borough Council,http://statistics.data.gov.uk/id/local-authority/00EU,Children & Young People,CHL,Agency Placements,30904,Fostering Accommodation,441050,16/08/2011,1900060779,"3,578.70",The Together Trust,101518
Warrington Borough Council,http://statistics.data.gov.uk/id/local-authority/00EU,Children & Young People,CHL,Agency Placements,30904,CP-LongStayExternal,441150,16/08/2011,1900060780,775,Wargrave House School,400175
Warrington Borough Council,http://statistics.data.gov.uk/id/local-authority/00EU,Children & Young People,CHL,Agency Placements,30904,CP ExternalOther Exp,440800,16/08/2011,1900060781,"3,935.28",The Together Trust,101518
Warrington Borough Council,http://statistics.data.gov.uk/id/local-authority/00EU,Children & Young People,CHL,Agency Placements,30904,CP ExternalOther Exp,440800,16/08/2011,1900060782,"2,623.52",The Together Trust,101518
Warrington Borough Council,http://statistics.data.gov.uk/id/local-authority/00EU,Children & Young People,CHL,Agency Placements,30904,CP ExternalOther Exp,440800,16/08/2011,1900060783,"2,623.52",The Together Trust,101518
Warrington Borough Council,http://statistics.data.gov.uk/id/local-authority/00EU,Children & Young People,CHL,Agency Placements,30904,CP ExternalOther Exp,440800,16/08/2011,1900060784,"2,623.52",The Together Trust,101518
Warrington Borough Council,http://statistics.data.gov.uk/id/local-authority/00EU,Children & Young People,CHL,CiC Team 1,31100,Looked after children in Warrington,301000,16/08/2011,1900060785,875.9,Swiis Foster Care,106223
Warrington Borough Council,http://statistics.data.gov.uk/id/local-authority/00EU,Children & Young People,CHL,Agency Placements,30904,CP-LongStayExternal,441150,16/08/2011,1900060788,"5,247.04",The Together Trust,101518
Warrington Borough Council,http://statistics.data.gov.uk/id/local-authority/00EU,Children & Young People,CHL,Agency Placements,30904,CP ExternalOther Exp,440800,16/08/2011,1900060791,"3,428.52",St Helens Chamber Ltd,108793
Warrington Borough Council,http://statistics.data.gov.uk/id/local-authority/00EU,Children & Young People,CHL,Agency Placements,30904,CP ExternalOther Exp,440800,16/08/2011,1900060792,"1,074.40",Blue Triangle Housing Association,109043
Warrington Borough Council,http://statistics.data.gov.uk/id/local-authority/00EU,Children & Young People,CHL,Agency Placements,30904,CP ExternalOther Exp,440800,16/08/2011,1900060793,"5,892.90",St Helens Chamber Ltd,108793
Warrington Borough Council,http://statistics.data.gov.uk/id/local-authority/00EU,Children & Young People,CHL,Commissioning,31116,CP ExternalOther Exp,440800,16/08/2011,1900060794,"12,136.91",Stepping Stone Project Ltd,440116
Warrington Borough Council,http://statistics.data.gov.uk/id/local-authority/00EU,Children & Young People,CHL,Commissioning,31116,CP ExternalOther Exp,440800,16/08/2011,1900060795,"3,030.00",Nspcc Registered Charity,440076
Warrington Borough Council,http://statistics.data.gov.uk/id/local-authority/00EU,Children & Young People,CHL,Agency Placements,30904,CP ExternalOther Exp,440800,16/08/2011,1900060796,"5,357.10",Crossway Services,107762
Warrington Borough Council,http://statistics.data.gov.uk/id/local-authority/00EU,Children & Young People,CHL,Commissioning,33001,Payment of Grants,470050,16/08/2011,1900060801,"10,133.39",Connexions-Cheshire-Warrington,440144
Warrington Borough Council,http://statistics.data.gov.uk/id/local-authority/00EU,Children & Young People,CHL,Commissioning,33001,Payment of Grants,470050,16/08/2011,1900060803,"13,379.18",Connexions-Cheshire-Warrington,440144
Warrington Borough Council,http://statistics.data.gov.uk/id/local-authority/00EU,Children & Young People,CHL,Commissioning,33001,Payment of Grants,470050,16/08/2011,1900060804,"6,188.88",Connexions-Cheshire-Warrington,440144
Warrington Borough Council,http://statistics.data.gov.uk/id/local-authority/00EU,Children & Young People,CHL,Commissioning,33001,Payment of Grants,470050,16/08/2011,1900060807,"33,330.00",Warrington District CAB,440159
Warrington Borough Council,http://statistics.data.gov.uk/id/local-authority/00EU,Children & Young People,CHL,Agency Placements,30904,CP ExternalOther Exp,440800,16/08/2011,1900060809,"12,400.00",Keys Child Care Ltd,100391
Warrington Borough Council,http://statistics.data.gov.uk/id/local-authority/00EU,Children & Young People,CHL,Agency Placements,30904,CP-LongStayExternal,441150,16/08/2011,1900060810,"1,560.00",EAM House Respite Home,107912
Warrington Borough Council,http://statistics.data.gov.uk/id/local-authority/00EU,Children & Young People,CHL,Agency Placements,30904,CP ExternalOther Exp,440800,16/08/2011,1900060811,"14,392.86",Northerncare,108065
Warrington Borough Council,http://statistics.data.gov.uk/id/local-authority/00EU,Children & Young People,CHL,Agency Placements,30904,CP ExternalOther Exp,440800,16/08/2011,1900060812,"12,400.00",Keys Child Care Ltd,100391
Warrington Borough Council,http://statistics.data.gov.uk/id/local-authority/00EU,Children & Young People,CHL,Agency Placements,30904,CP ExternalOther Exp,440800,16/08/2011,1900060813,"12,400.00",Keys Child Care Ltd,100391
Warrington Borough Council,http://statistics.data.gov.uk/id/local-authority/00EU,Children & Young People,CHL,Agency Placements,30904,Fostering Accommodation,441050,16/08/2011,1900060815,875.9,Swiis Foster Care,106223
Warrington Borough Council,http://statistics.data.gov.uk/id/local-authority/00EU,Children & Young People,CHL,Agency Placements,30904,CP-LongStayExternal,441150,16/08/2011,1900060816,740,EAM House Respite Home,107912
Warrington Borough Council,http://statistics.data.gov.uk/id/local-authority/00EU,Children & Young People,CHL,Agency Placements,30904,CP-LongStayExternal,441150,16/08/2011,1900060819,"1,300.00",EAM House Respite Home,107912
Warrington Borough Council,http://statistics.data.gov.uk/id/local-authority/00EU,Children & Young People,CHL,Agency Placements,30904,CP ExternalOther Exp,440800,16/08/2011,1900060821,"13,928.57",Northerncare,108065
Warrington Borough Council,http://statistics.data.gov.uk/id/local-authority/00EU,Children & Young People,CHL,EIG Funding - 2 Year Old,31601,Payment of Grants,470050,16/08/2011,1900060827,582,The Lakes Nursery,101036
Warrington Borough Council,http://statistics.data.gov.uk/id/local-authority/00EU,Balance Sheet,BAL,Single Billing Holding Account,91130,Electricity,210000,16/08/2011,1900060843,"78,758.28",Npower Ltd,101884
Warrington Borough Council,http://statistics.data.gov.uk/id/local-authority/00EU,Balance Sheet,BAL,Single Billing Holding Account,91130,Electricity,210000,16/08/2011,1900060851,"56,215.90",Npower Ltd,101884
Warrington Borough Council,http://statistics.data.gov.uk/id/local-authority/00EU,Assistant Chief Executive,CEX,Council Tax & Recovery,10320,Court Costs,460100,16/08/2011,1900060852,"2,250.00",Hmcs North Cheshire Collections,102261
Warrington Borough Council,http://statistics.data.gov.uk/id/local-authority/00EU,Children & Young People,CHL,Agency Placements,30904,CP ExternalOther Exp,440800,16/08/2011,1900060856,"15,000.00",Quality Education with Care Limited,107393
Warrington Borough Council,http://statistics.data.gov.uk/id/local-authority/00EU,Environment & Regeneration,ENO,Housing Projects,82008,Works Contract Paymt,442500,16/08/2011,1900060857,"96,830.00",Bullock Construction Ltd,105808
Warrington Borough Council,http://statistics.data.gov.uk/id/local-authority/00EU,Balance Sheet,BAL,Single Billing Holding Account,91130,Electricity,210000,16/08/2011,1900060859,"42,963.45",Npower Ltd,101884
Warrington Borough Council,http://statistics.data.gov.uk/id/local-authority/00EU,Balance Sheet,BAL,Single Billing Holding Account,91130,Electricity,210000,16/08/2011,1900060859,"2,443.60",Npower Ltd,101884
Warrington Borough Council,http://statistics.data.gov.uk/id/local-authority/00EU,Balance Sheet,BAL,Single Billing Holding Account,91130,Electricity,210000,16/08/2011,1900060859,533.46,Npower Ltd,101884
Warrington Borough Council,http://statistics.data.gov.uk/id/local-authority/00EU,Children & Young People,CHL,Agency Placements,30904,CP ExternalOther Exp,440800,16/08/2011,1900060865,"17,207.00",WIngs Education Ltd,109065
Warrington Borough Council,http://statistics.data.gov.uk/id/local-authority/00EU,Neighbourhood & Community Services,NCS,DAT Pooled Budget,53860,Drug Action,443600,16/08/2011,1900060879,838.5,Hall And Stevens Pharmacy,104278
Warrington Borough Council,http://statistics.data.gov.uk/id/local-authority/00EU,Children & Young People,CHL,Residence / Special Guardianship,31114,Residence Orders,550350,16/08/2011,1900060884,799.71,Redacted Personal Data,103995
Warrington Borough Council,http://statistics.data.gov.uk/id/local-authority/00EU,Children & Young People,CHL,CiC Team 2,31101,Legal Costs Incurred,440200,16/08/2011,1900060888,"2,600.00",Hmcs,440115
Warrington Borough Council,http://statistics.data.gov.uk/id/local-authority/00EU,Neighbourhood & Community Services,NCS,Care Purchase - Mental Health Team 1,54230,CP-LongStayExternal,441150,16/08/2011,1900060889,"5,660.00",Thames Health Care Ltd,102170
Warrington Borough Council,http://statistics.data.gov.uk/id/local-authority/00EU,Neighbourhood & Community Services,NCS,Care Purchase - PD,54440,CP-Domicil.External,440950,16/08/2011,1900060892,"1,181.04",Bluebird Care Warrington,104094
Warrington Borough Council,http://statistics.data.gov.uk/id/local-authority/00EU,Neighbourhood & Community Services,NCS,Care Purchase - OP & OT Central,54420,CP-Domicil.External,440950,16/08/2011,1900060894,509.6,Bluebird Care Warrington,104094
Warrington Borough Council,http://statistics.data.gov.uk/id/local-authority/00EU,Neighbourhood & Community Services,NCS,Care Purchase - PD,54440,Direct Payments,552000,16/08/2011,1900060896,651.6,Redacted Personal Data,102010
Warrington Borough Council,http://statistics.data.gov.uk/id/local-authority/00EU,Neighbourhood & Community Services,NCS,Care Purchase - PD,54440,CP-Domicil.External,440950,16/08/2011,1900060897,"2,308.31",Creative Support Ltd,100902
Warrington Borough Council,http://statistics.data.gov.uk/id/local-authority/00EU,Neighbourhood & Community Services,NCS,Care Purchase - Mental Health Team 1,54230,CP-Domicil.External,440950,16/08/2011,1900060898,"9,928.16",Creative Support Ltd,100902
Warrington Borough Council,http://statistics.data.gov.uk/id/local-authority/00EU,Neighbourhood & Community Services,NCS,Care Purchase - PD,54440,CP-Domicil.External,440950,16/08/2011,1900060898,"1,099.20",Creative Support Ltd,100902
Warrington Borough Council,http://statistics.data.gov.uk/id/local-authority/00EU,Neighbourhood & Community Services,NCS,Care Purchase - Learning Disability,54450,CP-Domicil.External,440950,16/08/2011,1900060898,851.88,Creative Support Ltd,100902
Warrington Borough Council,http://statistics.data.gov.uk/id/local-authority/00EU,Children & Young People,CHL,Agency Placements,30904,Fostering Accommodation,441050,16/08/2011,1900060899,"3,623.90",The Together Trust,101518
Warrington Borough Council,http://statistics.data.gov.uk/id/local-authority/00EU,Children & Young People,CHL,Agency Placements,30904,CP ExternalOther Exp,440800,16/08/2011,1900060900,930,Bed Space,103530
Warrington Borough Council,http://statistics.data.gov.uk/id/local-authority/00EU,Neighbourhood & Community Services,NCS,Care Purchase - Learning Disability,54450,CP-Domicil.External,440950,16/08/2011,1900060901,535.86,Creative Support Ltd,100902
Warrington Borough Council,http://statistics.data.gov.uk/id/local-authority/00EU,Neighbourhood & Community Services,NCS,Care Purchase - OP & OT Central,54420,Direct Payments,552000,16/08/2011,1900060902,660.8,Redacted Personal Data,102183
Warrington Borough Council,http://statistics.data.gov.uk/id/local-authority/00EU,Neighbourhood & Community Services,NCS,Care Purchase - OP & OT Central,54420,CP-Domicil.External,440950,16/08/2011,1900060905,"1,075.20",Bluebird Care Warrington,104094
Warrington Borough Council,http://statistics.data.gov.uk/id/local-authority/00EU,Neighbourhood & Community Services,NCS,Care Purchase - OP & OT Central,54420,CP-Domicil.External,440950,16/08/2011,1900060906,541.84,Bluebird Care Warrington,104094
Warrington Borough Council,http://statistics.data.gov.uk/id/local-authority/00EU,Neighbourhood & Community Services,NCS,Care Purchase - OP & OT Central,54420,CP-Domicil.External,440950,16/08/2011,1900060907,"1,518.12",Bluebird Care Warrington,104094
Warrington Borough Council,http://statistics.data.gov.uk/id/local-authority/00EU,Neighbourhood & Community Services,NCS,Care Purchase - OPMH,54220,CP-Domicil.External,440950,16/08/2011,1900060909,539.76,Bluebird Care Warrington,104094
Warrington Borough Council,http://statistics.data.gov.uk/id/local-authority/00EU,Neighbourhood & Community Services,NCS,Care Purchase - PD,54440,Direct Payments,552000,16/08/2011,1900060910,"3,549.08",Redacted Personal Data,460323
Warrington Borough Council,http://statistics.data.gov.uk/id/local-authority/00EU,Neighbourhood & Community Services,NCS,Care Purchase - PD,54440,Direct Payments,552000,16/08/2011,1900060910,561.08,Redacted Personal Data,460323
Warrington Borough Council,http://statistics.data.gov.uk/id/local-authority/00EU,Neighbourhood & Community Services,NCS,Care Purchase - PD,54440,Direct Payments,552000,16/08/2011,1900060912,"1,697.60",Redacted Personal Data,460127
Warrington Borough Council,http://statistics.data.gov.uk/id/local-authority/00EU,Neighbourhood & Community Services,NCS,Carers Co-ordinator,53240,CP - Cont Care - External,441350,16/08/2011,1900060913,"1,941.63",Redacted Personal Data,460508
Warrington Borough Council,http://statistics.data.gov.uk/id/local-authority/00EU,Neighbourhood & Community Services,NCS,Care Purchase - OP & OT Central,54420,Direct Payments,552000,16/08/2011,1900060915,912.4,Redacted Personal Data,101825
Warrington Borough Council,http://statistics.data.gov.uk/id/local-authority/00EU,Neighbourhood & Community Services,NCS,Care Purchase - PD,54440,CP-Domicil.External,440950,16/08/2011,1900060918,724.4,Bluebird Care Warrington,104094
Warrington Borough Council,http://statistics.data.gov.uk/id/local-authority/00EU,Neighbourhood & Community Services,NCS,Care Purchase - OP & OT Central,54420,CP-LongStayExternal,441150,16/08/2011,1900060920,"1,350.57",Orchard Care Homes,102524
Warrington Borough Council,http://statistics.data.gov.uk/id/local-authority/00EU,Neighbourhood & Community Services,NCS,Care Purchase - Learning Disability,54450,CP-Nursing Care-External,441200,16/08/2011,1900060922,600,Health & Social Care Partnerships,107996
Warrington Borough Council,http://statistics.data.gov.uk/id/local-authority/00EU,Neighbourhood & Community Services,NCS,Care Purchase - OP & OT Central,54420,CP-Nursing Care-External,441200,16/08/2011,1900060923,"4,440.00",St Marys Care Centre,101503
Warrington Borough Council,http://statistics.data.gov.uk/id/local-authority/00EU,Neighbourhood & Community Services,NCS,Care Purchase - OP & OT Central,54420,CP-Domicil.External,440950,16/08/2011,1900060924,"26,484.85",The Extracare Charitable Trust,100497
Warrington Borough Council,http://statistics.data.gov.uk/id/local-authority/00EU,Neighbourhood & Community Services,NCS,Care Purchase - PD,54440,CP-Domicil.External,440950,16/08/2011,1900060924,"3,326.80",The Extracare Charitable Trust,100497
Warrington Borough Council,http://statistics.data.gov.uk/id/local-authority/00EU,Neighbourhood & Community Services,NCS,Care Purchase Budget,54490,CP - Cont Care - External,441350,16/08/2011,1900060924,"2,392.64",The Extracare Charitable Trust,100497
Warrington Borough Council,http://statistics.data.gov.uk/id/local-authority/00EU,Neighbourhood & Community Services,NCS,Care Purchase Budget,54490,CP Free Nursing Care External,443500,16/08/2011,1900060924,"3,478.40",The Extracare Charitable Trust,100497
Warrington Borough Council,http://statistics.data.gov.uk/id/local-authority/00EU,Neighbourhood & Community Services,NCS,Care Purchase - OP & OT Central,54420,CP-Domicil.External,440950,16/08/2011,1900060925,"2,076.93",The Extracare Charitable Trust,100497
Warrington Borough Council,http://statistics.data.gov.uk/id/local-authority/00EU,Neighbourhood & Community Services,NCS,Care Purchase - Learning Disability,54450,CP-Domicil.External,440950,16/08/2011,1900060926,649.56,P S S,105048
Warrington Borough Council,http://statistics.data.gov.uk/id/local-authority/00EU,Children & Young People,CHL,Agency Placements,30904,CP ExternalOther Exp,440800,16/08/2011,1900060930,810,Bed Space,103530
Warrington Borough Council,http://statistics.data.gov.uk/id/local-authority/00EU,Children & Young People,CHL,Agency Placements,30904,CP ExternalOther Exp,440800,16/08/2011,1900060931,810,Bed Space,103530
Warrington Borough Council,http://statistics.data.gov.uk/id/local-authority/00EU,Neighbourhood & Community Services,NCS,Care Purchase - ABI,54260,CP-Nursing Care-External,441200,17/08/2011,1900060932,"4,140.00",Southbank Nursing Home,100679
Warrington Borough Council,http://statistics.data.gov.uk/id/local-authority/00EU,Neighbourhood & Community Services,NCS,Care Purchase Budget,54490,CP ExternalOther Exp,440800,17/08/2011,1900060933,"3,922.14",Keate House Residential Home,104849
Warrington Borough Council,http://statistics.data.gov.uk/id/local-authority/00EU,Neighbourhood & Community Services,NCS,Care Purchase - Learning Disability,54450,CP-Domicil.External,440950,17/08/2011,1900060934,"9,360.38",Creative Support Ltd,100902
Warrington Borough Council,http://statistics.data.gov.uk/id/local-authority/00EU,Neighbourhood & Community Services,NCS,Care Purchase - OP & OT Central,54420,CP-Domicil.External,440950,17/08/2011,1900060935,831.94,Bluebird Care Warrington,104094
Warrington Borough Council,http://statistics.data.gov.uk/id/local-authority/00EU,Neighbourhood & Community Services,NCS,Care Purchase - PD,54440,CP-Domicil.External,440950,17/08/2011,1900060936,525.2,Bluebird Care Warrington,104094
Warrington Borough Council,http://statistics.data.gov.uk/id/local-authority/00EU,Neighbourhood & Community Services,NCS,Care Purchase - OP & OT Central,54420,CP-Domicil.External,440950,17/08/2011,1900060938,654.04,Bluebird Care Warrington,104094
Warrington Borough Council,http://statistics.data.gov.uk/id/local-authority/00EU,Neighbourhood & Community Services,NCS,Care Purchase - Learning Disability,54450,CP-LongStayExternal,441150,17/08/2011,1900060941,875,Margaret House Respite Care Home,108053
Warrington Borough Council,http://statistics.data.gov.uk/id/local-authority/00EU,Neighbourhood & Community Services,NCS,Care Purchase Budget,54490,CP ExternalOther Exp,440800,17/08/2011,1900060942,"4,176.00",Holly Bush Residential Home,104789
Warrington Borough Council,http://statistics.data.gov.uk/id/local-authority/00EU,Neighbourhood & Community Services,NCS,Care Purchase Budget,54490,CP ExternalOther Exp,440800,17/08/2011,1900060943,"2,225.85",Wcl - Heathside Mews,101742
Warrington Borough Council,http://statistics.data.gov.uk/id/local-authority/00EU,Neighbourhood & Community Services,NCS,Care Purchase - Mental Health Team 3,54250,CP-Domicil.External,440950,17/08/2011,1900060945,"2,142.00",Macintyre Care,104907
Warrington Borough Council,http://statistics.data.gov.uk/id/local-authority/00EU,Neighbourhood & Community Services,NCS,Care Purchase - Learning Disability,54450,CP-Domicil.External,440950,17/08/2011,1900060945,"129,967.38",Macintyre Care,104907
Warrington Borough Council,http://statistics.data.gov.uk/id/local-authority/00EU,Neighbourhood & Community Services,NCS,Care Purchase - Mental Health Team 3,54250,Supporting People - External,441250,17/08/2011,1900060945,"2,193.00",Macintyre Care,104907
Warrington Borough Council,http://statistics.data.gov.uk/id/local-authority/00EU,Neighbourhood & Community Services,NCS,Care Purchase - Learning Disability,54450,Supporting People - External,441250,17/08/2011,1900060945,"27,616.50",Macintyre Care,104907
Warrington Borough Council,http://statistics.data.gov.uk/id/local-authority/00EU,Neighbourhood & Community Services,NCS,Care Purchase - Learning Disability,54450,CP-Domicil.External,440950,17/08/2011,1900060946,"45,872.56",Creative Support Ltd,100902
Warrington Borough Council,http://statistics.data.gov.uk/id/local-authority/00EU,Neighbourhood & Community Services,NCS,Care Purchase - ABI,54260,Supporting People - External,441250,17/08/2011,1900060946,"1,667.00",Creative Support Ltd,100902
Warrington Borough Council,http://statistics.data.gov.uk/id/local-authority/00EU,Neighbourhood & Community Services,NCS,Care Purchase - Learning Disability,54450,Supporting People - External,441250,17/08/2011,1900060946,"8,408.88",Creative Support Ltd,100902
Warrington Borough Council,http://statistics.data.gov.uk/id/local-authority/00EU,Neighbourhood & Community Services,NCS,Care Purchase - OPMH,54220,CP-Domicil.External,440950,17/08/2011,1900060947,"2,900.03",Medico Nursing and Homecare,105063
Warrington Borough Council,http://statistics.data.gov.uk/id/local-authority/00EU,Neighbourhood & Community Services,NCS,Care Purchase - Mental Health Team 3,54250,CP-Domicil.External,440950,17/08/2011,1900060947,"1,297.20",Medico Nursing and Homecare,105063
Warrington Borough Council,http://statistics.data.gov.uk/id/local-authority/00EU,Neighbourhood & Community Services,NCS,Care Purchase - OP & OT Central,54420,CP-Domicil.External,440950,17/08/2011,1900060947,"32,772.80",Medico Nursing and Homecare,105063
Warrington Borough Council,http://statistics.data.gov.uk/id/local-authority/00EU,Neighbourhood & Community Services,NCS,Care Purchase - PD,54440,CP-Domicil.External,440950,17/08/2011,1900060947,"16,096.60",Medico Nursing and Homecare,105063
Warrington Borough Council,http://statistics.data.gov.uk/id/local-authority/00EU,Environment & Regeneration,ER1,Head of Service - Env Management,41210,Consult.& Prof. Serv,440000,17/08/2011,1900060949,"3,387.00",Apse,440056
Warrington Borough Council,http://statistics.data.gov.uk/id/local-authority/00EU,Children & Young People,CHL,Agency Placements,30904,CP ExternalOther Exp,440800,17/08/2011,1900060950,"11,071.34",Quality Time Care Ltd,103207
Warrington Borough Council,http://statistics.data.gov.uk/id/local-authority/00EU,Children & Young People,CHL,Placement Services Team,31103,Looked after children in Warrington,301000,17/08/2011,1900060951,"2,420.00",G-Map Services,106244
Warrington Borough Council,http://statistics.data.gov.uk/id/local-authority/00EU,Children & Young People,CHL,Placement Services Team,31103,Looked after children in Warrington,301000,17/08/2011,1900060953,"2,420.00",G-Map Services,106244
Warrington Borough Council,http://statistics.data.gov.uk/id/local-authority/00EU,Children & Young People,CHL,Child Disability,32212,CP-Domicil.External,440950,17/08/2011,1900060954,"1,788.76",Carewatch North Cheshire,104573
Warrington Borough Council,http://statistics.data.gov.uk/id/local-authority/00EU,Children & Young People,CHL,Child Disability,32212,CP-Domicil.External,440950,17/08/2011,1900060959,717.07,Castlerock Care Services,105279
Warrington Borough Council,http://statistics.data.gov.uk/id/local-authority/00EU,Neighbourhood & Community Services,NCS,Supporting People Grant Payments,53260,Learning Disability,535000,17/08/2011,1900060965,"4,221.19",Warrington Mencap,102670
Warrington Borough Council,http://statistics.data.gov.uk/id/local-authority/00EU,Neighbourhood & Community Services,NCS,Supporting People Grant Payments,53260,Learning Disability,535000,17/08/2011,1900060967,"4,125.62",Warrington Mencap,102670
Warrington Borough Council,http://statistics.data.gov.uk/id/local-authority/00EU,Neighbourhood & Community Services,NCS,Equipment Store,54930,Gas,210050,17/08/2011,1900060968,"4,222.40",Scottish Power Manweb,103031
Warrington Borough Council,http://statistics.data.gov.uk/id/local-authority/00EU,Children & Young People,CHL,Agency Placements,30904,CP ExternalOther Exp,440800,17/08/2011,1900060974,"1,132.00",Essandore Care,102775
Warrington Borough Council,http://statistics.data.gov.uk/id/local-authority/00EU,Children & Young People,CHL,Agency Placements,30904,CP ExternalOther Exp,440800,17/08/2011,1900060975,"8,341.52",Essandore Care,102775
Warrington Borough Council,http://statistics.data.gov.uk/id/local-authority/00EU,Assistant Chief Executive,CEX,Democratic Services,11400,Subscriptions,470000,17/08/2011,1900060976,512,CIPFA Business Limited,103650
Warrington Borough Council,http://statistics.data.gov.uk/id/local-authority/00EU,People & Improvement,PIM,People & Improvement,20000,Subscriptions,470000,17/08/2011,1900060976,504,CIPFA Business Limited,103650
Warrington Borough Council,http://statistics.data.gov.uk/id/local-authority/00EU,Corporate Financing,COR,Debt Management Expenses,62080,Subscriptions,470000,17/08/2011,1900060976,560,CIPFA Business Limited,103650
Warrington Borough Council,http://statistics.data.gov.uk/id/local-authority/00EU,Balance Sheet,BAL,Insurance Fund,91100,Subscriptions,470000,17/08/2011,1900060976,504,CIPFA Business Limited,103650
Warrington Borough Council,http://statistics.data.gov.uk/id/local-authority/00EU,Children & Young People,CHL,CiC Team 1,31100,Furniture & Fittings Curriculum,400200,17/08/2011,1900060978,"3,150.00",Redacted Personal Data,108145
Warrington Borough Council,http://statistics.data.gov.uk/id/local-authority/00EU,Neighbourhood & Community Services,NCS,Supporting People Administration,53250,Consult.& Prof. Serv,440000,17/08/2011,1900060979,"1,500.00",University of St Andrews,109078
Warrington Borough Council,http://statistics.data.gov.uk/id/local-authority/00EU,Neighbourhood & Community Services,NCS,Supporting People Grant Payments,53260,People with Mental Health Problems,535200,17/08/2011,1900060989,"68,390.85",Warrington Community Care,105229
Warrington Borough Council,http://statistics.data.gov.uk/id/local-authority/00EU,Neighbourhood & Community Services,NCS,Care Purchase - Learning Disability,54450,CP-Day Care-External,441100,17/08/2011,1900060994,"1,235.22",Metropolitan Borough Of Wigan,440073
Warrington Borough Council,http://statistics.data.gov.uk/id/local-authority/00EU,Neighbourhood & Community Services,NCS,Care Purchase - Learning Disability,54450,CP-Day Care-External,441100,17/08/2011,1900060995,"1,380.54",Metropolitan Borough Of Wigan,440073
Warrington Borough Council,http://statistics.data.gov.uk/id/local-authority/00EU,Neighbourhood & Community Services,NCS,Care Purchase - Learning Disability,54450,CP-Day Care-External,441100,17/08/2011,1900060996,726.6,Metropolitan Borough Of Wigan,440073
Warrington Borough Council,http://statistics.data.gov.uk/id/local-authority/00EU,Neighbourhood & Community Services,NCS,Care Purchase - PD,54440,Direct Payments,552000,16/08/2011,1900060997,"2,768.20",Redacted Personal Data,100049
Warrington Borough Council,http://statistics.data.gov.uk/id/local-authority/00EU,Neighbourhood & Community Services,NCS,Care Purchase - Learning Disability,54450,Direct Payments,552000,16/08/2011,1900060999,501.92,Redacted Personal Data,100270
Warrington Borough Council,http://statistics.data.gov.uk/id/local-authority/00EU,Neighbourhood & Community Services,NCS,Care Purchase - PD,54440,Direct Payments,552000,16/08/2011,1900061000,"1,796.56",Redacted Personal Data,100338
Warrington Borough Council,http://statistics.data.gov.uk/id/local-authority/00EU,Neighbourhood & Community Services,NCS,Care Purchase - PD,54440,Direct Payments,552000,16/08/2011,1900061001,"1,000.00",Redacted Personal Data,100340
Warrington Borough Council,http://statistics.data.gov.uk/id/local-authority/00EU,Neighbourhood & Community Services,NCS,Care Purchase - PD,54440,Direct Payments,552000,16/08/2011,1900061004,"1,200.00",Redacted Personal Data,100472
Warrington Borough Council,http://statistics.data.gov.uk/id/local-authority/00EU,Neighbourhood & Community Services,NCS,Care Purchase - PD,54440,Direct Payments,552000,16/08/2011,1900061006,"3,263.00",Redacted Personal Data,100505
Warrington Borough Council,http://statistics.data.gov.uk/id/local-authority/00EU,Neighbourhood & Community Services,NCS,Care Purchase - PD,54440,Direct Payments,552000,16/08/2011,1900061007,736.6,Redacted Personal Data,100508
Warrington Borough Council,http://statistics.data.gov.uk/id/local-authority/00EU,Neighbourhood & Community Services,NCS,Care Purchase - Learning Disability,54450,Direct Payments,552000,16/08/2011,1900061008,"1,061.76",Redacted Personal Data,100607
Warrington Borough Council,http://statistics.data.gov.uk/id/local-authority/00EU,Neighbourhood & Community Services,NCS,Care Purchase - PD,54440,Direct Payments,552000,16/08/2011,1900061010,"2,262.80",Redacted Personal Data,100666
Warrington Borough Council,http://statistics.data.gov.uk/id/local-authority/00EU,Neighbourhood & Community Services,NCS,Care Purchase - PD,54440,Direct Payments,552000,16/08/2011,1900061011,"1,778.08",Redacted Personal Data,100667
Warrington Borough Council,http://statistics.data.gov.uk/id/local-authority/00EU,Neighbourhood & Community Services,NCS,Care Purchase - PD,54440,Direct Payments,552000,16/08/2011,1900061012,851.2,Redacted Personal Data,100766
Warrington Borough Council,http://statistics.data.gov.uk/id/local-authority/00EU,Neighbourhood & Community Services,NCS,Care Purchase - PD,54440,Direct Payments,552000,16/08/2011,1900061013,"3,059.00",Redacted Personal Data,100879
Warrington Borough Council,http://statistics.data.gov.uk/id/local-authority/00EU,Neighbourhood & Community Services,NCS,Care Purchase - PD,54440,Direct Payments,552000,16/08/2011,1900061014,"1,073.92",Redacted Personal Data,100890
Warrington Borough Council,http://statistics.data.gov.uk/id/local-authority/00EU,Children & Young People,CHL,Child Disability,32212,Direct Payments,552000,16/08/2011,1900061015,"1,102.40",Redacted Personal Data,100907
Warrington Borough Council,http://statistics.data.gov.uk/id/local-authority/00EU,Children & Young People,CHL,Child Disability,32212,Direct Payments,552000,16/08/2011,1900061016,564.2,Redacted Personal Data,100933
Warrington Borough Council,http://statistics.data.gov.uk/id/local-authority/00EU,Children & Young People,CHL,Child Disability,32212,Direct Payments,552000,16/08/2011,1900061017,652.6,Redacted Personal Data,100934
Warrington Borough Council,http://statistics.data.gov.uk/id/local-authority/00EU,Neighbourhood & Community Services,NCS,Care Purchase - Learning Disability,54450,Direct Payments,552000,16/08/2011,1900061018,"1,120.00",Redacted Personal Data,100945
Warrington Borough Council,http://statistics.data.gov.uk/id/local-authority/00EU,Neighbourhood & Community Services,NCS,Care Purchase - Learning Disability,54450,Direct Payments,552000,16/08/2011,1900061019,"2,311.36",Redacted Personal Data,100954
Warrington Borough Council,http://statistics.data.gov.uk/id/local-authority/00EU,Neighbourhood & Community Services,NCS,Care Purchase - Learning Disability,54450,Direct Payments,552000,16/08/2011,1900061020,"3,771.00",Redacted Personal Data,100959
Warrington Borough Council,http://statistics.data.gov.uk/id/local-authority/00EU,Neighbourhood & Community Services,NCS,Care Purchase - PD,54440,Direct Payments,552000,16/08/2011,1900061021,728.04,Redacted Personal Data,100977
Warrington Borough Council,http://statistics.data.gov.uk/id/local-authority/00EU,Children & Young People,CHL,Child Disability,32212,Direct Payments,552000,16/08/2011,1900061022,"1,007.20",Redacted Personal Data,100989
Warrington Borough Council,http://statistics.data.gov.uk/id/local-authority/00EU,Neighbourhood & Community Services,NCS,Care Purchase - PD,54440,Direct Payments,552000,16/08/2011,1900061023,"1,177.40",Redacted Personal Data,101007
Warrington Borough Council,http://statistics.data.gov.uk/id/local-authority/00EU,Neighbourhood & Community Services,NCS,Care Purchase - PD,54440,Direct Payments,552000,16/08/2011,1900061024,"2,164.80",Redacted Personal Data,101016
Warrington Borough Council,http://statistics.data.gov.uk/id/local-authority/00EU,Neighbourhood & Community Services,NCS,Care Purchase - Learning Disability,54450,Direct Payments,552000,16/08/2011,1900061026,"1,711.36",Redacted Personal Data,101045
Warrington Borough Council,http://statistics.data.gov.uk/id/local-authority/00EU,Children & Young People,CHL,Child Disability,32212,Direct Payments,552000,16/08/2011,1900061027,556.8,Redacted Personal Data,101065
Warrington Borough Council,http://statistics.data.gov.uk/id/local-authority/00EU,Neighbourhood & Community Services,NCS,Care Purchase - Learning Disability,54450,Direct Payments,552000,16/08/2011,1900061029,"2,501.60",Redacted Personal Data,101096
Warrington Borough Council,http://statistics.data.gov.uk/id/local-authority/00EU,Children & Young People,CHL,Child Disability,32212,Direct Payments,552000,16/08/2011,1900061030,"4,792.00",Redacted Personal Data,101104
Warrington Borough Council,http://statistics.data.gov.uk/id/local-authority/00EU,Neighbourhood & Community Services,NCS,Care Purchase - PD,54440,Direct Payments,552000,16/08/2011,1900061031,617.4,Redacted Personal Data,101141
Warrington Borough Council,http://statistics.data.gov.uk/id/local-authority/00EU,Neighbourhood & Community Services,NCS,Care Purchase - PD,54440,Direct Payments,552000,16/08/2011,1900061032,653.72,Redacted Personal Data,101147
Warrington Borough Council,http://statistics.data.gov.uk/id/local-authority/00EU,Neighbourhood & Community Services,NCS,Care Purchase - PD,54440,Direct Payments,552000,16/08/2011,1900061033,674.72,Redacted Personal Data,101150
Warrington Borough Council,http://statistics.data.gov.uk/id/local-authority/00EU,Children & Young People,CHL,Child Disability,32212,Direct Payments,552000,16/08/2011,1900061035,647.16,Redacted Personal Data,101174
Warrington Borough Council,http://statistics.data.gov.uk/id/local-authority/00EU,Neighbourhood & Community Services,NCS,Care Purchase - Learning Disability,54450,Direct Payments,552000,16/08/2011,1900061040,"2,331.00",Redacted Personal Data,101246
Warrington Borough Council,http://statistics.data.gov.uk/id/local-authority/00EU,Neighbourhood & Community Services,NCS,Care Purchase - PD,54440,Direct Payments,552000,16/08/2011,1900061042,"2,300.16",Redacted Personal Data,101276
Warrington Borough Council,http://statistics.data.gov.uk/id/local-authority/00EU,Children & Young People,CHL,Child Disability,32212,Direct Payments,552000,16/08/2011,1900061044,666,Redacted Personal Data,101322
Warrington Borough Council,http://statistics.data.gov.uk/id/local-authority/00EU,Neighbourhood & Community Services,NCS,Care Purchase - PD,54440,Direct Payments,552000,16/08/2011,1900061047,"1,439.20",Redacted Personal Data,101335
Warrington Borough Council,http://statistics.data.gov.uk/id/local-authority/00EU,Neighbourhood & Community Services,NCS,Care Purchase - PD,54440,Direct Payments,552000,16/08/2011,1900061048,841.36,Redacted Personal Data,101336
Warrington Borough Council,http://statistics.data.gov.uk/id/local-authority/00EU,Neighbourhood & Community Services,NCS,Care Purchase - PD,54440,Direct Payments,552000,16/08/2011,1900061049,"1,160.00",Redacted Personal Data,101354
Warrington Borough Council,http://statistics.data.gov.uk/id/local-authority/00EU,Neighbourhood & Community Services,NCS,Care Purchase - Learning Disability,54450,Direct Payments,552000,16/08/2011,1900061051,704.32,Redacted Personal Data,101396
Warrington Borough Council,http://statistics.data.gov.uk/id/local-authority/00EU,Children & Young People,CHL,Child Disability,32212,Direct Payments,552000,16/08/2011,1900061052,984.4,Redacted Personal Data,101407
Warrington Borough Council,http://statistics.data.gov.uk/id/local-authority/00EU,Neighbourhood & Community Services,NCS,Care Purchase - PD,54440,Direct Payments,552000,16/08/2011,1900061053,"1,219.68",Redacted Personal Data,101415
Warrington Borough Council,http://statistics.data.gov.uk/id/local-authority/00EU,Neighbourhood & Community Services,NCS,Care Purchase - Learning Disability,54450,Direct Payments,552000,16/08/2011,1900061054,640,Redacted Personal Data,101420
Warrington Borough Council,http://statistics.data.gov.uk/id/local-authority/00EU,Neighbourhood & Community Services,NCS,Care Purchase - PD,54440,Direct Payments,552000,16/08/2011,1900061056,"1,564.76",Redacted Personal Data,101431
Warrington Borough Council,http://statistics.data.gov.uk/id/local-authority/00EU,Neighbourhood & Community Services,NCS,Care Purchase - PD,54440,Direct Payments,552000,16/08/2011,1900061057,680.2,Redacted Personal Data,101444
Warrington Borough Council,http://statistics.data.gov.uk/id/local-authority/00EU,Children & Young People,CHL,Child Disability,32212,Direct Payments,552000,16/08/2011,1900061058,519.92,Redacted Personal Data,101457
Warrington Borough Council,http://statistics.data.gov.uk/id/local-authority/00EU,Neighbourhood & Community Services,NCS,Care Purchase - Learning Disability,54450,Direct Payments,552000,16/08/2011,1900061059,"3,561.32",Redacted Personal Data,101463
Warrington Borough Council,http://statistics.data.gov.uk/id/local-authority/00EU,Neighbourhood & Community Services,NCS,Care Purchase - Learning Disability,54450,Direct Payments,552000,16/08/2011,1900061062,"4,801.84",Redacted Personal Data,101472
Warrington Borough Council,http://statistics.data.gov.uk/id/local-authority/00EU,Neighbourhood & Community Services,NCS,Care Purchase - PD,54440,Direct Payments,552000,16/08/2011,1900061064,795.16,Redacted Personal Data,101515
Warrington Borough Council,http://statistics.data.gov.uk/id/local-authority/00EU,Neighbourhood & Community Services,NCS,Care Purchase - Learning Disability,54450,Direct Payments,552000,16/08/2011,1900061065,"1,280.00",Redacted Personal Data,101516
Warrington Borough Council,http://statistics.data.gov.uk/id/local-authority/00EU,Neighbourhood & Community Services,NCS,Care Purchase - PD,54440,Direct Payments,552000,16/08/2011,1900061067,662.76,Redacted Personal Data,101541
Warrington Borough Council,http://statistics.data.gov.uk/id/local-authority/00EU,Neighbourhood & Community Services,NCS,Care Purchase - PD,54440,Direct Payments,552000,16/08/2011,1900061068,"1,200.00",Redacted Personal Data,101542
Warrington Borough Council,http://statistics.data.gov.uk/id/local-authority/00EU,Neighbourhood & Community Services,NCS,Care Purchase - Learning Disability,54450,Direct Payments,552000,16/08/2011,1900061069,715.28,Redacted Personal Data,101547
Warrington Borough Council,http://statistics.data.gov.uk/id/local-authority/00EU,Neighbourhood & Community Services,NCS,Care Purchase - Learning Disability,54450,Direct Payments,552000,16/08/2011,1900061070,"3,083.16",Redacted Personal Data,101551
Warrington Borough Council,http://statistics.data.gov.uk/id/local-authority/00EU,Neighbourhood & Community Services,NCS,Care Purchase - Learning Disability,54450,Direct Payments,552000,16/08/2011,1900061074,"2,365.84",Redacted Personal Data,101568
Warrington Borough Council,http://statistics.data.gov.uk/id/local-authority/00EU,Neighbourhood & Community Services,NCS,Care Purchase - Learning Disability,54450,Direct Payments,552000,16/08/2011,1900061075,"1,611.52",Redacted Personal Data,101584
Warrington Borough Council,http://statistics.data.gov.uk/id/local-authority/00EU,Children & Young People,CHL,Child Disability,32212,Direct Payments,552000,16/08/2011,1900061076,758.36,Redacted Personal Data,101592
Warrington Borough Council,http://statistics.data.gov.uk/id/local-authority/00EU,Children & Young People,CHL,Child Disability,32212,Direct Payments,552000,16/08/2011,1900061077,710.4,Redacted Personal Data,101595
Warrington Borough Council,http://statistics.data.gov.uk/id/local-authority/00EU,Neighbourhood & Community Services,NCS,Care Purchase - Learning Disability,54450,Direct Payments,552000,16/08/2011,1900061079,"1,150.92",Redacted Personal Data,101614
Warrington Borough Council,http://statistics.data.gov.uk/id/local-authority/00EU,Neighbourhood & Community Services,NCS,Care Purchase - Learning Disability,54450,Direct Payments,552000,16/08/2011,1900061080,"1,237.00",Redacted Personal Data,101619
Warrington Borough Council,http://statistics.data.gov.uk/id/local-authority/00EU,Neighbourhood & Community Services,NCS,Care Purchase - Learning Disability,54450,Direct Payments,552000,16/08/2011,1900061081,864.32,Redacted Personal Data,101625
Warrington Borough Council,http://statistics.data.gov.uk/id/local-authority/00EU,Children & Young People,CHL,Child Disability,32212,Direct Payments,552000,16/08/2011,1900061083,"1,000.00",Redacted Personal Data,101630
Warrington Borough Council,http://statistics.data.gov.uk/id/local-authority/00EU,Neighbourhood & Community Services,NCS,Care Purchase - PD,54440,Direct Payments,552000,16/08/2011,1900061087,560,Redacted Personal Data,101677
Warrington Borough Council,http://statistics.data.gov.uk/id/local-authority/00EU,Neighbourhood & Community Services,NCS,Care Purchase - Learning Disability,54450,Direct Payments,552000,16/08/2011,1900061088,819.92,Redacted Personal Data,101686
Warrington Borough Council,http://statistics.data.gov.uk/id/local-authority/00EU,Neighbourhood & Community Services,NCS,Care Purchase - Learning Disability,54450,Direct Payments,552000,16/08/2011,1900061089,729.56,Redacted Personal Data,101701
Warrington Borough Council,http://statistics.data.gov.uk/id/local-authority/00EU,Neighbourhood & Community Services,NCS,Care Purchase - Learning Disability,54450,Direct Payments,552000,16/08/2011,1900061090,729.56,Redacted Personal Data,101704
Warrington Borough Council,http://statistics.data.gov.uk/id/local-authority/00EU,Neighbourhood & Community Services,NCS,Care Purchase - Learning Disability,54450,Direct Payments,552000,16/08/2011,1900061093,"1,287.36",Redacted Personal Data,101730
Warrington Borough Council,http://statistics.data.gov.uk/id/local-authority/00EU,Children & Young People,CHL,Child Disability,32212,Direct Payments,552000,16/08/2011,1900061094,548,Redacted Personal Data,101734
Warrington Borough Council,http://statistics.data.gov.uk/id/local-authority/00EU,Neighbourhood & Community Services,NCS,Care Purchase - Learning Disability,54450,Direct Payments,552000,16/08/2011,1900061095,538.96,Redacted Personal Data,101748
Warrington Borough Council,http://statistics.data.gov.uk/id/local-authority/00EU,Neighbourhood & Community Services,NCS,Care Purchase - PD,54440,Direct Payments,552000,16/08/2011,1900061096,587.44,Redacted Personal Data,101752
Warrington Borough Council,http://statistics.data.gov.uk/id/local-authority/00EU,Children & Young People,CHL,Child Disability,32212,Direct Payments,552000,16/08/2011,1900061097,"1,001.72",Redacted Personal Data,101758
Warrington Borough Council,http://statistics.data.gov.uk/id/local-authority/00EU,Children & Young People,CHL,Child Disability,32212,Direct Payments,552000,16/08/2011,1900061100,621.6,Redacted Personal Data,101761
Warrington Borough Council,http://statistics.data.gov.uk/id/local-authority/00EU,Neighbourhood & Community Services,NCS,Care Purchase - Mental Health Team 1,54230,Direct Payments,552000,16/08/2011,1900061101,"1,723.04",Redacted Personal Data,101808
Warrington Borough Council,http://statistics.data.gov.uk/id/local-authority/00EU,Children & Young People,CHL,Child Disability,32212,Direct Payments,552000,16/08/2011,1900061102,577.2,Redacted Personal Data,101826
Warrington Borough Council,http://statistics.data.gov.uk/id/local-authority/00EU,Children & Young People,CHL,Child Disability,32212,Direct Payments,552000,16/08/2011,1900061103,"1,278.40",Redacted Personal Data,101849
Warrington Borough Council,http://statistics.data.gov.uk/id/local-authority/00EU,Neighbourhood & Community Services,NCS,Care Purchase - PD,54440,Direct Payments,552000,16/08/2011,1900061104,"1,600.00",Redacted Personal Data,101888
Warrington Borough Council,http://statistics.data.gov.uk/id/local-authority/00EU,Neighbourhood & Community Services,NCS,Care Purchase - PD,54440,Direct Payments,552000,16/08/2011,1900061110,785.92,Redacted Personal Data,102222
Warrington Borough Council,http://statistics.data.gov.uk/id/local-authority/00EU,Neighbourhood & Community Services,NCS,Care Purchase - PD,54440,Direct Payments,552000,16/08/2011,1900061112,"1,825.76",Redacted Personal Data,102241
Warrington Borough Council,http://statistics.data.gov.uk/id/local-authority/00EU,Neighbourhood & Community Services,NCS,Care Purchase - PD,54440,Direct Payments,552000,16/08/2011,1900061113,851.52,Redacted Personal Data,102348
Warrington Borough Council,http://statistics.data.gov.uk/id/local-authority/00EU,Neighbourhood & Community Services,NCS,Care Purchase - Learning Disability,54450,Direct Payments,552000,16/08/2011,1900061114,504.32,Redacted Personal Data,102547
Warrington Borough Council,http://statistics.data.gov.uk/id/local-authority/00EU,Neighbourhood & Community Services,NCS,Care Purchase - Learning Disability,54450,Direct Payments,552000,16/08/2011,1900061119,762.72,Redacted Personal Data,102667
Warrington Borough Council,http://statistics.data.gov.uk/id/local-authority/00EU,Neighbourhood & Community Services,NCS,Care Purchase - Learning Disability,54450,Direct Payments,552000,16/08/2011,1900061120,"1,431.36",Redacted Personal Data,102688
Warrington Borough Council,http://statistics.data.gov.uk/id/local-authority/00EU,Neighbourhood & Community Services,NCS,Care Purchase - Learning Disability,54450,Direct Payments,552000,16/08/2011,1900061121,"1,104.32",Redacted Personal Data,102710
Warrington Borough Council,http://statistics.data.gov.uk/id/local-authority/00EU,Neighbourhood & Community Services,NCS,Care Purchase - PD,54440,Direct Payments,552000,16/08/2011,1900061132,934.64,Redacted Personal Data,103320
Warrington Borough Council,http://statistics.data.gov.uk/id/local-authority/00EU,Children & Young People,CHL,Child Disability,32212,Direct Payments,552000,16/08/2011,1900061133,933.76,Redacted Personal Data,103330
Warrington Borough Council,http://statistics.data.gov.uk/id/local-authority/00EU,Neighbourhood & Community Services,NCS,Care Purchase - PD,54440,Direct Payments,552000,16/08/2011,1900061134,"1,739.60",Redacted Personal Data,103372
Warrington Borough Council,http://statistics.data.gov.uk/id/local-authority/00EU,Neighbourhood & Community Services,NCS,Care Purchase - PD,54440,Direct Payments,552000,16/08/2011,1900061135,"1,506.40",Redacted Personal Data,103404
Warrington Borough Council,http://statistics.data.gov.uk/id/local-authority/00EU,Neighbourhood & Community Services,NCS,Care Purchase - PD,54440,Direct Payments,552000,16/08/2011,1900061143,"1,005.92",Redacted Personal Data,103587
Warrington Borough Council,http://statistics.data.gov.uk/id/local-authority/00EU,Neighbourhood & Community Services,NCS,Care Purchase - PD,54440,Direct Payments,552000,16/08/2011,1900061144,952,Redacted Personal Data,103593
Warrington Borough Council,http://statistics.data.gov.uk/id/local-authority/00EU,Neighbourhood & Community Services,NCS,Care Purchase - Learning Disability,54450,Direct Payments,552000,16/08/2011,1900061145,688.44,Redacted Personal Data,103611
Warrington Borough Council,http://statistics.data.gov.uk/id/local-authority/00EU,Neighbourhood & Community Services,NCS,Care Purchase - PD,54440,Direct Payments,552000,16/08/2011,1900061146,"1,593.68",Redacted Personal Data,103613
Warrington Borough Council,http://statistics.data.gov.uk/id/local-authority/00EU,Neighbourhood & Community Services,NCS,Care Purchase - Learning Disability,54450,Direct Payments,552000,16/08/2011,1900061147,"1,021.76",Redacted Personal Data,103614
Warrington Borough Council,http://statistics.data.gov.uk/id/local-authority/00EU,Neighbourhood & Community Services,NCS,Care Purchase - PD,54440,Direct Payments,552000,16/08/2011,1900061151,896,Redacted Personal Data,103674
Warrington Borough Council,http://statistics.data.gov.uk/id/local-authority/00EU,Neighbourhood & Community Services,NCS,Care Purchase - PD,54440,Direct Payments,552000,16/08/2011,1900061153,"1,898.56",Redacted Personal Data,103696
Warrington Borough Council,http://statistics.data.gov.uk/id/local-authority/00EU,Neighbourhood & Community Services,NCS,Care Purchase - Learning Disability,54450,Direct Payments,552000,16/08/2011,1900061154,952.16,Redacted Personal Data,103697
Warrington Borough Council,http://statistics.data.gov.uk/id/local-authority/00EU,Children & Young People,CHL,Child Disability,32212,Direct Payments,552000,16/08/2011,1900061156,548,Redacted Personal Data,103718
Warrington Borough Council,http://statistics.data.gov.uk/id/local-authority/00EU,Children & Young People,CHL,Child Disability,32212,Direct Payments,552000,16/08/2011,1900061157,637.36,Redacted Personal Data,103723
Warrington Borough Council,http://statistics.data.gov.uk/id/local-authority/00EU,Neighbourhood & Community Services,NCS,Care Purchase - PD,54440,Direct Payments,552000,16/08/2011,1900061160,"1,848.92",Redacted Personal Data,103730
Warrington Borough Council,http://statistics.data.gov.uk/id/local-authority/00EU,Children & Young People,CHL,Child Disability,32212,Direct Payments,552000,16/08/2011,1900061164,940.8,Redacted Personal Data,103764
Warrington Borough Council,http://statistics.data.gov.uk/id/local-authority/00EU,Neighbourhood & Community Services,NCS,Care Purchase - Learning Disability,54450,Direct Payments,552000,16/08/2011,1900061166,"9,169.80",Redacted Personal Data,103771
Warrington Borough Council,http://statistics.data.gov.uk/id/local-authority/00EU,Neighbourhood & Community Services,NCS,Care Purchase - PD,54440,Direct Payments,552000,16/08/2011,1900061167,"1,240.00",Redacted Personal Data,103794
Warrington Borough Council,http://statistics.data.gov.uk/id/local-authority/00EU,Children & Young People,CHL,Child Disability,32212,Direct Payments,552000,16/08/2011,1900061171,502,Redacted Personal Data,103820
Warrington Borough Council,http://statistics.data.gov.uk/id/local-authority/00EU,Neighbourhood & Community Services,NCS,Care Purchase - PD,54440,Direct Payments,552000,16/08/2011,1900061175,564.8,Redacted Personal Data,103871
Warrington Borough Council,http://statistics.data.gov.uk/id/local-authority/00EU,Children & Young People,CHL,Child Disability,32212,Direct Payments,552000,16/08/2011,1900061182,561.92,Redacted Personal Data,104033
Warrington Borough Council,http://statistics.data.gov.uk/id/local-authority/00EU,Neighbourhood & Community Services,NCS,Care Purchase - PD,54440,Direct Payments,552000,16/08/2011,1900061189,629.72,Redacted Personal Data,104327
Warrington Borough Council,http://statistics.data.gov.uk/id/local-authority/00EU,Neighbourhood & Community Services,NCS,Care Purchase - Learning Disability,54450,Direct Payments,552000,16/08/2011,1900061191,"1,018.56",Redacted Personal Data,105576
Warrington Borough Council,http://statistics.data.gov.uk/id/local-authority/00EU,Neighbourhood & Community Services,NCS,Care Purchase - Learning Disability,54450,Direct Payments,552000,16/08/2011,1900061193,537.6,Redacted Personal Data,105598
Warrington Borough Council,http://statistics.data.gov.uk/id/local-authority/00EU,Neighbourhood & Community Services,NCS,Care Purchase - Learning Disability,54450,Direct Payments,552000,16/08/2011,1900061195,731.96,Redacted Personal Data,105621
Warrington Borough Council,http://statistics.data.gov.uk/id/local-authority/00EU,Neighbourhood & Community Services,NCS,Care Purchase - Learning Disability,54450,Direct Payments,552000,16/08/2011,1900061199,638,Redacted Personal Data,105625
Warrington Borough Council,http://statistics.data.gov.uk/id/local-authority/00EU,Neighbourhood & Community Services,NCS,Care Purchase - PD,54440,Direct Payments,552000,16/08/2011,1900061207,508.4,Redacted Personal Data,105665
Warrington Borough Council,http://statistics.data.gov.uk/id/local-authority/00EU,Children & Young People,CHL,Child Disability,32212,Direct Payments,552000,16/08/2011,1900061208,500.64,Redacted Personal Data,105666
Warrington Borough Council,http://statistics.data.gov.uk/id/local-authority/00EU,Neighbourhood & Community Services,NCS,Care Purchase - PD,54440,Direct Payments,552000,16/08/2011,1900061216,538.72,Redacted Personal Data,105683
Warrington Borough Council,http://statistics.data.gov.uk/id/local-authority/00EU,Neighbourhood & Community Services,NCS,Care Purchase - PD,54440,Direct Payments,552000,16/08/2011,1900061217,657.12,Redacted Personal Data,105684
Warrington Borough Council,http://statistics.data.gov.uk/id/local-authority/00EU,Children & Young People,CHL,Child Disability,32212,Direct Payments,552000,16/08/2011,1900061218,880.04,Redacted Personal Data,105687
Warrington Borough Council,http://statistics.data.gov.uk/id/local-authority/00EU,Neighbourhood & Community Services,NCS,Care Purchase - PD,54440,Direct Payments,552000,16/08/2011,1900061221,"2,064.36",Redacted Personal Data,105727
Warrington Borough Council,http://statistics.data.gov.uk/id/local-authority/00EU,Children & Young People,CHL,Child Disability,32212,Direct Payments,552000,16/08/2011,1900061223,753.6,Redacted Personal Data,105729
Warrington Borough Council,http://statistics.data.gov.uk/id/local-authority/00EU,Neighbourhood & Community Services,NCS,Care Purchase - PD,54440,Direct Payments,552000,16/08/2011,1900061225,751.36,Redacted Personal Data,105758
Warrington Borough Council,http://statistics.data.gov.uk/id/local-authority/00EU,Neighbourhood & Community Services,NCS,Care Purchase - PD,54440,Direct Payments,552000,16/08/2011,1900061228,"1,134.00",Redacted Personal Data,105909
Warrington Borough Council,http://statistics.data.gov.uk/id/local-authority/00EU,Neighbourhood & Community Services,NCS,Care Purchase - PD,54440,Direct Payments,552000,16/08/2011,1900061235,812.64,Redacted Personal Data,106145
Warrington Borough Council,http://statistics.data.gov.uk/id/local-authority/00EU,Children & Young People,CHL,Child Disability,32212,Direct Payments,552000,16/08/2011,1900061237,546,Redacted Personal Data,106258
Warrington Borough Council,http://statistics.data.gov.uk/id/local-authority/00EU,Children & Young People,CHL,Child Disability,32212,Direct Payments,552000,16/08/2011,1900061241,690.32,Redacted Personal Data,106441
Warrington Borough Council,http://statistics.data.gov.uk/id/local-authority/00EU,Children & Young People,CHL,Child Disability,32212,Direct Payments,552000,16/08/2011,1900061246,640.88,Redacted Personal Data,106603
Warrington Borough Council,http://statistics.data.gov.uk/id/local-authority/00EU,Neighbourhood & Community Services,NCS,Care Purchase - PD,54440,Direct Payments,552000,16/08/2011,1900061247,664.68,Redacted Personal Data,106630
Warrington Borough Council,http://statistics.data.gov.uk/id/local-authority/00EU,Children & Young People,CHL,Child Disability,32212,Direct Payments,552000,16/08/2011,1900061250,686.52,Redacted Personal Data,106708
Warrington Borough Council,http://statistics.data.gov.uk/id/local-authority/00EU,Children & Young People,CHL,Child Disability,32212,Direct Payments,552000,16/08/2011,1900061252,621.44,Redacted Personal Data,106744
Warrington Borough Council,http://statistics.data.gov.uk/id/local-authority/00EU,Children & Young People,CHL,Child Disability,32212,Direct Payments,552000,16/08/2011,1900061256,557.64,Redacted Personal Data,106954
Warrington Borough Council,http://statistics.data.gov.uk/id/local-authority/00EU,Neighbourhood & Community Services,NCS,Care Purchase - Learning Disability,54450,Direct Payments,552000,16/08/2011,1900061267,906.6,Redacted Personal Data,107297
Warrington Borough Council,http://statistics.data.gov.uk/id/local-authority/00EU,Neighbourhood & Community Services,NCS,Care Purchase - PD,54440,Direct Payments,552000,16/08/2011,1900061269,733.48,Redacted Personal Data,107299
Warrington Borough Council,http://statistics.data.gov.uk/id/local-authority/00EU,Neighbourhood & Community Services,NCS,Care Purchase - PD,54440,Direct Payments,552000,16/08/2011,1900061270,559.72,Redacted Personal Data,107363
Warrington Borough Council,http://statistics.data.gov.uk/id/local-authority/00EU,Neighbourhood & Community Services,NCS,Care Purchase - Learning Disability,54450,Direct Payments,552000,16/08/2011,1900061273,"1,153.32",Redacted Personal Data,107437
Warrington Borough Council,http://statistics.data.gov.uk/id/local-authority/00EU,Neighbourhood & Community Services,NCS,Care Purchase - PD,54440,Direct Payments,552000,16/08/2011,1900061276,"1,018.56",Redacted Personal Data,107665
Warrington Borough Council,http://statistics.data.gov.uk/id/local-authority/00EU,Children & Young People,CHL,Child Disability,32212,Direct Payments,552000,16/08/2011,1900061285,761.44,Redacted Personal Data,107777
Warrington Borough Council,http://statistics.data.gov.uk/id/local-authority/00EU,Children & Young People,CHL,Child Disability,32212,Direct Payments,552000,16/08/2011,1900061287,663.2,Redacted Personal Data,107799
Warrington Borough Council,http://statistics.data.gov.uk/id/local-authority/00EU,Neighbourhood & Community Services,NCS,Care Purchase - PD,54440,Direct Payments,552000,16/08/2011,1900061298,560,Redacted Personal Data,460066
Warrington Borough Council,http://statistics.data.gov.uk/id/local-authority/00EU,Neighbourhood & Community Services,NCS,Care Purchase - PD,54440,Direct Payments,552000,16/08/2011,1900061299,661.76,Redacted Personal Data,460082
Warrington Borough Council,http://statistics.data.gov.uk/id/local-authority/00EU,Neighbourhood & Community Services,NCS,Care Purchase - Learning Disability,54450,Direct Payments,552000,16/08/2011,1900061300,"3,523.20",Redacted Personal Data,460091
Warrington Borough Council,http://statistics.data.gov.uk/id/local-authority/00EU,Neighbourhood & Community Services,NCS,Care Purchase - PD,54440,Direct Payments,552000,16/08/2011,1900061302,679.04,Redacted Personal Data,460097
Warrington Borough Council,http://statistics.data.gov.uk/id/local-authority/00EU,Children & Young People,CHL,Child Disability,32212,Direct Payments,552000,16/08/2011,1900061303,976.8,Redacted Personal Data,460112
Warrington Borough Council,http://statistics.data.gov.uk/id/local-authority/00EU,Neighbourhood & Community Services,NCS,Care Purchase - Learning Disability,54450,Direct Payments,552000,16/08/2011,1900061304,"1,000.00",Redacted Personal Data,460113
Warrington Borough Council,http://statistics.data.gov.uk/id/local-authority/00EU,Children & Young People,CHL,Child Disability,32212,Direct Payments,552000,16/08/2011,1900061306,"1,776.00",Redacted Personal Data,460139
Warrington Borough Council,http://statistics.data.gov.uk/id/local-authority/00EU,Children & Young People,CHL,Child Disability,32212,Direct Payments,552000,16/08/2011,1900061313,551.2,Redacted Personal Data,460165
Warrington Borough Council,http://statistics.data.gov.uk/id/local-authority/00EU,Neighbourhood & Community Services,NCS,Care Purchase - Mental Health Team 1,54230,Direct Payments,552000,16/08/2011,1900061317,771.44,Redacted Personal Data,460171
Warrington Borough Council,http://statistics.data.gov.uk/id/local-authority/00EU,Neighbourhood & Community Services,NCS,Care Purchase - Learning Disability,54450,Direct Payments,552000,16/08/2011,1900061318,"1,013.80",Redacted Personal Data,460172
Warrington Borough Council,http://statistics.data.gov.uk/id/local-authority/00EU,Children & Young People,CHL,Child Disability,32212,Direct Payments,552000,16/08/2011,1900061320,"1,284.28",Redacted Personal Data,460177
Warrington Borough Council,http://statistics.data.gov.uk/id/local-authority/00EU,Neighbourhood & Community Services,NCS,Care Purchase - Learning Disability,54450,Direct Payments,552000,16/08/2011,1900061324,540.16,Redacted Personal Data,460182
Warrington Borough Council,http://statistics.data.gov.uk/id/local-authority/00EU,Neighbourhood & Community Services,NCS,Care Purchase - Learning Disability,54450,Direct Payments,552000,16/08/2011,1900061327,573.24,Redacted Personal Data,460191
